Workbook

Sheet Cover
A1: DISTRICT NAME | D1: Page Unified School District | I1: COUNTY | J1: Coconino | O1: CTDS NUMBER | Q1: 030208000 | Z1: 030305000 | AA1: File origination date: | AB1: 2023-09-21
Z2: 100337000
Z3: 100344000
Z4: 130302000
Z5: 130307000
Z6: 060345000
Z7: 050309000
Z8: 020801000
Z9: 030801000
A10: ANNUAL FINANCIAL REPORT | O10: =IF(OR(P11<>"",P13<>" ",P15<>" ",P17<>" ",P19<>" ",P20<>" ",P23<>" ",P24<>" ",P26<>" ",P27<>" ",P28<>" ",P29<>" ",P32<>" "),"ALERT: The following items need to be addressed before the AFR is submitted."," ") ->  | Z10: 050802000
P11: =IF('Page 2'!J46=0,"",IF(OR('Coding Errors'!G17<>"",'Coding Errors'!G29<>"",'Coding Errors'!G42<>"",'Coding Errors'!G56<>"",'Coding Errors'!G64<>""),"Corrections needed in accounting records - See highlighted cells on the Coding Errors tab.","")) ->  | Z11: 070801000
Z12: 070802000
P13: =IF('Accounting Data'!AA1>0,"The Rollup Fund column on the Accounting Data tab is not complete. Enter an appropriate fund code from the USFR Chart of Accounts in the Rollup Fund column for any Final Fund cell that is highlighted red."," ") ->  | Z13: 080850000
A14: We, the Governing Board of the District, hereby certify the | Z14: 090835000
A15: Annual Financial Report and School Level Reporting Form per A.R.S. §15-904 | P15: =IF(OR(CoverCTDS=Z1,CoverCTDS=Z2,CoverCTDS=Z3,CoverCTDS=Z4,CoverCTDS=Z5,CoverCTDS=Z6,CoverCTDS=Z7,CoverCTDS=Z21)," ",IF(AND(F001TOTALEXP>0,'Page 6'!N13<=0,'Page 6'!Y43=FALSE),"Page 6, Other Funds Section: Instructional Improvement Fund 020 side table is not complete."," ")) ->  | Z15: 090836000
A16: for the Fiscal Year | Z16: 100811000
A17: 2023 | P17: =IF(F665Transf=0," ",IF(SUM('[1]Page 7'!J49+'[1]Page 7'!J50)=0,"Page 6, Other Funds Section: Energy and Water Savings Fund transfers not budgeted for correctly on the expenditure budget."," ")) ->  | Z17: 110801000
Z18: 110802000
P19: =IF(OR(CoverCTDS=Z1,CoverCTDS=Z2,CoverCTDS=Z3,CoverCTDS=Z4,CoverCTDS=Z5,CoverCTDS=Z6,CoverCTDS=Z7,CoverCTDS=Z8,CoverCTDS=Z9,CoverCTDS=Z10,CoverCTDS=Z11,CoverCTDS=Z12,CoverCTDS=Z13,CoverCTDS=Z14,CoverCTDS=Z15,CoverCTDS=Z16,CoverCTDS=Z17,CoverCTDS=Z18,CoverCTDS=Z19,CoverCTDS=Z20,CoverCTDS=Z21)," ",IF(F001TOTALEXP>0,IF(AND(TotCurrExpFed<=0,'Page 7'!F36<=0),"Page 7, Section D:Current Expenditures Table is not complete."," ")," ")) ->  | Z19: 130801000
C20: SIGNATURE/DATE | I20: SIGNATURE/DATE | P20: =IF(AND(F001P200TotActExp>0,TotMOSpEdExp<>ROUND(F001P200TotActExp,0)),"Page 8, Section B: Amount in this table should agree to M&O page 2, line 24. Please ensure all M&O Fund, Program 200 and 300 SPED expenditures are included."," ") ->  | Z20: 130802000
Z21: 060203000
Z22: 140801000
P23: =IF(AND(F001TOTALEXP>0,CurrentYearSalary=0,PriorYearSalary=0,'Page 7'!T33=FALSE),"Page 7, Section I is not complete."," ") -> 
P24: =IF(SUM('Page 9'!D43:D44)=0," ",IF(AND(((SUM('Page 9'!D35:D39,'Page 9'!F35:F39)/SUM('Page 9'!D43:D44))>10000),(SUM('Page 9'!D35:D39,'Page 9'!F35:F39)/SUM('Page 9'!D43:D44))<80000)," ","Page 9: Teacher salary information and FTE does not appear to be appropriate.")) -> 
P26: =IF(OR(CoverCTDS=Z1,CoverCTDS=Z2,CoverCTDS=Z3,CoverCTDS=Z4,CoverCTDS=Z5,CoverCTDS=Z6,CoverCTDS=Z7,CoverCTDS=Z8,CoverCTDS=Z9,CoverCTDS=Z13,CoverCTDS=Z14,CoverCTDS=Z18,CoverCTDS=Z21,CoverCTDS=Z22)," ",IF(TotExpNPEFS>0,IF(SUM('Page 9'!D35:F39)<=0,"Page 9: Teacher Salaries Table is not complete."," ")," ")) -> 
P27: =IF(OR(CoverCTDS=Z1,CoverCTDS=Z2,CoverCTDS=Z3,CoverCTDS=Z4,CoverCTDS=Z5,CoverCTDS=Z6,CoverCTDS=Z7,CoverCTDS=Z8,CoverCTDS=Z9,CoverCTDS=Z13,CoverCTDS=Z14,CoverCTDS=Z18,CoverCTDS=Z21)," ",IF(TotExpNPEFS>0,IF(SUM('Page 9'!D42:D44)<=0,"Page 9: Other Items Table is not complete."," ")," ")) -> 
P28: =IF(OR(CoverCTDS=Z1,CoverCTDS=Z2,CoverCTDS=Z3,CoverCTDS=Z6,CoverCTDS=Z7,CoverCTDS=Z8,CoverCTDS=Z13)," ",IF(F001TOTALEXP=0," ",IF(SUM('Page 4'!H50:H54)>0," ","Page 4: Capital Assets Table is not complete."))) -> 
P29: =IF('Page 2'!J46=0," ",IF(OR('Page 1'!AA11="yes",'Page 1'!AA26="yes",'Page 1'!AA32="yes",'Page 1'!AA38="yes",'Page 1'!AA47="yes",'Page 1'!AA53="yes",'Page 4'!AB7="yes",'Page 5'!AA6="yes",'Page 6'!Y7="yes",'Page 6'!Y41="yes",'Page 7'!AA5="yes",'Page 8'!AA5="yes",'Page 9'!AA57="yes",'Page 10'!AA41="yes"),Z29," ")) -> 
P30: CVRDEBTSERV
C31: The Annual Financial Report file(s) for FY 2023 uploaded to the Arizona Department of Education's website on
C32: 2023-10-06 | F32: contain(s) the data for the AFR described above. | P32: =IF('Accounting Data'!C100000=""," ","Accounting data entered has too many rows for this file please contact the Accountability Services Division of the Auditor General's Office for a larger file.") -> 
C33: Date
P34: =IF(AA34="X","","Districts must review the FY 2023 AFR Formula Corrections file and make any required formula corrections before finalizing and submitting the AFR. Select the X in the dropdown box in cell AA34 once this step is complete.") ->  | AA34: X
C37: Superintendent Signature | I37: Business Manager Signature
C39: Dr. Bryce Anderson | I39: Lori Wilson
C40: Superintendent (Typed Name) | I40: Business Manager (Typed Name) | P40: TOTAL EXPENDITURES BY FUND
O41: 1. | P41: Maintenance & Operation (from page 2, line 32) | V41: $ | W41: =F001TOTALEXP -> 17036947
C42: Lori Wilson | I42: 928-608-4357 | O42: 2. | P42: Classroom Site Funds (from page 3, line 13) | V42: $ | W42: ='Page 3'!M21 -> 1400851
C43: District Contact Employee | I43: Telephone Number | O43: 3. | P43: Unrestricted Capital Outlay (from page 4, UCO Fund line 10) | V43: $ | W43: =F610TotActExp -> 1277403
I45: lwilson@pageud.org
I46: Email

Sheet Page 1
A1: DISTRICT NAME | B1: =CoverDistrictName -> Page Unified School District | F1: COUNTY | G1: =County -> Coconino | K1: CTDS NUMBER | L1: =Cover!Q1 -> 030208000
E3: MAINTENANCE AND OPERATION FUND 001 | F3: UNRESTRICTED CAPITAL OUTLAY FUND 610 | G3: ADJACENT WAYS | H3: BOND BUILDING | I3: DEBT SERVICE
A4: FUNDS AVAILABLE | G4: FUND 620 | H4: FUND 630 | I4: FUND 700 (4)
E5: ACTUAL | F5: ACTUAL | G5: ACTUAL | H5: ACTUAL | I5: ACTUAL
A6: Beginning Fund Balance (1) | D6: 1. | E6: ='Accounting Data'!R2 -> 4309650 | F6: ='Accounting Data'!R374 -> 1126077 | G6: ='Accounting Data'!R375 -> 437340 | H6: ='Accounting Data'!R376 -> 0 | I6: ='Accounting Data'!R385 -> 1110 | J6: 1.
A7: REVENUES
A8: 1000 Local
A9: 1110 Property Taxes | D9: 2. | E9: =-(SUMIFS('Accounting Data'!C2:C100000,'Accounting Data'!E2:E100000,"001",'Accounting Data'!J2:J100000,"111?")) -> 2949367 | F9: =-(SUMIFS('Accounting Data'!C2:C100000,'Accounting Data'!E2:E100000,"610",'Accounting Data'!J2:J100000,"111?")) -> 289956 | G9: =-(SUMIFS('Accounting Data'!C2:C100000,'Accounting Data'!E2:E100000,"620",'Accounting Data'!J2:J100000,"111?")) -> 92950 | I9: =-(SUMIFS('Accounting Data'!C2:C100000,'Accounting Data'!E2:E100000,"700",'Accounting Data'!J2:J100000,"111?")) -> 0 | J9: 2. | K9: -1 | L9: The Maintenance and Operation Fund beginning fund balance includes the revolving
A10: 1140 Penalties and Interest on Taxes | D10: 3. | E10: =-(SUMIFS('Accounting Data'!C2:C100000,'Accounting Data'!E2:E100000,"001",'Accounting Data'!J2:J100000,"114?")) -> 0 | J10: 3. | L10: account cash balance of | N10: 5000 | O10: at 7/1/22.
A11: 1280 Revenue in Lieu of Taxes | D11: 4. | E11: =-(SUMIFS('Accounting Data'!C2:C100000,'Accounting Data'!E2:E100000,"001",'Accounting Data'!J2:J100000,"128?")) -> 0 | F11: =-(SUMIFS('Accounting Data'!C2:C100000,'Accounting Data'!E2:E100000,"610",'Accounting Data'!J2:J100000,"128?")) -> 0 | G11: =-(SUMIFS('Accounting Data'!C2:C100000,'Accounting Data'!E2:E100000,"620",'Accounting Data'!J2:J100000,"128?")) -> 0 | I11: =-(SUMIFS('Accounting Data'!C2:C100000,'Accounting Data'!E2:E100000,"700",'Accounting Data'!J2:J100000,"128?")) -> 0 | J11: 4. | AA11: =IF(OR($N$10="",$N$10="$",$L$13="",$L$13="$",$N$16="",$N$16="$",$P$18="",$P$18="$"),"yes","") -> 
A12: 1311 Tuition from Individuals Excluding Summer School | D12: 5. | E12: =-(SUMIFS('Accounting Data'!C2:C100000,'Accounting Data'!E2:E100000,"001",'Accounting Data'!J2:J100000,"1311")) -> 0 | F12: =-(SUMIFS('Accounting Data'!C2:C100000,'Accounting Data'!E2:E100000,"610",'Accounting Data'!J2:J100000,"1311")) -> 0 | I12: =-(SUMIFS('Accounting Data'!C2:C100000,'Accounting Data'!E2:E100000,"700",'Accounting Data'!J2:J100000,"1311")) -> 0 | J12: 5. | K12: -2 | L12: The Government Property Lease Excise Tax revenue included on line 19 is
A13: 1312 Tuition from Individuals for Summer School | D13: 6. | E13: =-(SUMIFS('Accounting Data'!C2:C100000,'Accounting Data'!E2:E100000,"001",'Accounting Data'!J2:J100000,"1312")) -> 0 | F13: =-(SUMIFS('Accounting Data'!C2:C100000,'Accounting Data'!E2:E100000,"610",'Accounting Data'!J2:J100000,"1312")) -> 0 | I13: =-(SUMIFS('Accounting Data'!C2:C100000,'Accounting Data'!E2:E100000,"700",'Accounting Data'!J2:J100000,"1312")) -> 0 | J13: 6. | L13: 76962
A14: 1320 Tuition from Other Arizona Districts | D14: 7. | E14: =-(SUMIFS('Accounting Data'!C2:C100000,'Accounting Data'!E2:E100000,"001",'Accounting Data'!J2:J100000,"132?")) -> 0 | F14: =-(SUMIFS('Accounting Data'!C2:C100000,'Accounting Data'!E2:E100000,"610",'Accounting Data'!J2:J100000,"132?")) -> 0 | I14: =-(SUMIFS('Accounting Data'!C2:C100000,'Accounting Data'!E2:E100000,"700",'Accounting Data'!J2:J100000,"132?")) -> 0 | J14: 7.
A15: 1330 Tuition from Out-of-State Districts | D15: 8. | E15: =-(SUMIFS('Accounting Data'!C2:C100000,'Accounting Data'!E2:E100000,"001",'Accounting Data'!J2:J100000,"133?")) -> 192543 | F15: =-(SUMIFS('Accounting Data'!C2:C100000,'Accounting Data'!E2:E100000,"610",'Accounting Data'!J2:J100000,"133?")) -> 0 | I15: =-(SUMIFS('Accounting Data'!C2:C100000,'Accounting Data'!E2:E100000,"700",'Accounting Data'!J2:J100000,"133?")) -> 0 | J15: 8. | K15: -3 | L15: The Maintenance and Operation Fund ending fund balance includes the revolving
A16: 1340 Tuition from Other Private Sources (Other than Individuals) | D16: 9. | E16: =-(SUMIFS('Accounting Data'!C2:C100000,'Accounting Data'!E2:E100000,"001",'Accounting Data'!J2:J100000,"134?")) -> 0 | F16: =-(SUMIFS('Accounting Data'!C2:C100000,'Accounting Data'!E2:E100000,"610",'Accounting Data'!J2:J100000,"134?")) -> 0 | I16: =-(SUMIFS('Accounting Data'!C2:C100000,'Accounting Data'!E2:E100000,"700",'Accounting Data'!J2:J100000,"134?")) -> 0 | J16: 9. | L16: account cash balance of | N16: 4310402 | O16: at 6/30/23.
A17: 1350 Tuition from Other Government Sources Within Arizona | D17: 10. | E17: =-(SUMIFS('Accounting Data'!C2:C100000,'Accounting Data'!E2:E100000,"001",'Accounting Data'!J2:J100000,"135?")) -> 4500 | F17: =-(SUMIFS('Accounting Data'!C2:C100000,'Accounting Data'!E2:E100000,"610",'Accounting Data'!J2:J100000,"135?")) -> 0 | I17: =-(SUMIFS('Accounting Data'!C2:C100000,'Accounting Data'!E2:E100000,"700",'Accounting Data'!J2:J100000,"135?")) -> 0 | J17: 10.
A18: 1360 Tuition from Other Government Sources Outside Arizona | D18: 11. | E18: =-(SUMIFS('Accounting Data'!C2:C100000,'Accounting Data'!E2:E100000,"001",'Accounting Data'!J2:J100000,"136?")) -> 0 | F18: =-(SUMIFS('Accounting Data'!C2:C100000,'Accounting Data'!E2:E100000,"610",'Accounting Data'!J2:J100000,"136?")) -> 0 | I18: =-(SUMIFS('Accounting Data'!C2:C100000,'Accounting Data'!E2:E100000,"700",'Accounting Data'!J2:J100000,"136?")) -> 0 | J18: 11. | K18: -4 | L18: Debt Service Fund, interest expenditures amount: | P18: 0
A19: 1410 Transportation Fees from Individuals | D19: 12. | E19: =-(SUMIFS('Accounting Data'!C2:C100000,'Accounting Data'!E2:E100000,"001",'Accounting Data'!J2:J100000,"141?")) -> 0 | F19: =-(SUMIFS('Accounting Data'!C2:C100000,'Accounting Data'!E2:E100000,"610",'Accounting Data'!J2:J100000,"141?")) -> 0 | I19: =-(SUMIFS('Accounting Data'!C2:C100000,'Accounting Data'!E2:E100000,"700",'Accounting Data'!J2:J100000,"141?")) -> 0 | J19: 12.
A20: 1420 Transportation Fees from Other Arizona Districts | D20: 13. | E20: =-(SUMIFS('Accounting Data'!C2:C100000,'Accounting Data'!E2:E100000,"001",'Accounting Data'!J2:J100000,"142?")) -> 0 | F20: =-(SUMIFS('Accounting Data'!C2:C100000,'Accounting Data'!E2:E100000,"610",'Accounting Data'!J2:J100000,"142?")) -> 0 | I20: =-(SUMIFS('Accounting Data'!C2:C100000,'Accounting Data'!E2:E100000,"700",'Accounting Data'!J2:J100000,"142?")) -> 0 | J20: 13.
A21: 1430 Transportation Fees from Out-of-State Districts | D21: 14. | E21: =-(SUMIFS('Accounting Data'!C2:C100000,'Accounting Data'!E2:E100000,"001",'Accounting Data'!J2:J100000,"143?")) -> 0 | F21: =-(SUMIFS('Accounting Data'!C2:C100000,'Accounting Data'!E2:E100000,"610",'Accounting Data'!J2:J100000,"143?")) -> 0 | I21: =-(SUMIFS('Accounting Data'!C2:C100000,'Accounting Data'!E2:E100000,"700",'Accounting Data'!J2:J100000,"143?")) -> 0 | J21: 14.
A22: 1440 Transportation Fees from Other Private Sources (Other than Individuals) | D22: 15. | E22: =-(SUMIFS('Accounting Data'!C2:C100000,'Accounting Data'!E2:E100000,"001",'Accounting Data'!J2:J100000,"144?")) -> 0 | F22: =-(SUMIFS('Accounting Data'!C2:C100000,'Accounting Data'!E2:E100000,"610",'Accounting Data'!J2:J100000,"144?")) -> 0 | I22: =-(SUMIFS('Accounting Data'!C2:C100000,'Accounting Data'!E2:E100000,"700",'Accounting Data'!J2:J100000,"144?")) -> 0 | J22: 15.
A23: 1450 Transportation Fees from Other Government Sources Within Arizona | D23: 16. | E23: =-(SUMIFS('Accounting Data'!C2:C100000,'Accounting Data'!E2:E100000,"001",'Accounting Data'!J2:J100000,"145?")) -> 0 | F23: =-(SUMIFS('Accounting Data'!C2:C100000,'Accounting Data'!E2:E100000,"610",'Accounting Data'!J2:J100000,"145?")) -> 0 | I23: =-(SUMIFS('Accounting Data'!C2:C100000,'Accounting Data'!E2:E100000,"700",'Accounting Data'!J2:J100000,"145?")) -> 0 | J23: 16.
A24: 1460 Transportation Fees from Other Government Sources Outside Arizona | D24: 17. | E24: =-(SUMIFS('Accounting Data'!C2:C100000,'Accounting Data'!E2:E100000,"001",'Accounting Data'!J2:J100000,"146?")) -> 0 | F24: =-(SUMIFS('Accounting Data'!C2:C100000,'Accounting Data'!E2:E100000,"610",'Accounting Data'!J2:J100000,"146?")) -> 0 | I24: =-(SUMIFS('Accounting Data'!C2:C100000,'Accounting Data'!E2:E100000,"700",'Accounting Data'!J2:J100000,"146?")) -> 0 | J24: 17.
A25: 1500 Investment Income | D25: 18. | E25: =-(SUMIFS('Accounting Data'!C2:C100000,'Accounting Data'!E2:E100000,"001",'Accounting Data'!J2:J100000,"15??")) -> 68233 | F25: =-(SUMIFS('Accounting Data'!C2:C100000,'Accounting Data'!E2:E100000,"610",'Accounting Data'!J2:J100000,"15??")) -> 14667 | G25: =-(SUMIFS('Accounting Data'!C2:C100000,'Accounting Data'!E2:E100000,"620",'Accounting Data'!J2:J100000,"15??")) -> 5830 | H25: =-(SUMIFS('Accounting Data'!C2:C100000,'Accounting Data'!E2:E100000,"630",'Accounting Data'!J2:J100000,"15??")) -> 0 | I25: =-(SUMIFS('Accounting Data'!C2:C100000,'Accounting Data'!E2:E100000,"700",'Accounting Data'!J2:J100000,"15??")) -> 1 | J25: 18.
A26: Other (Specify) (2) | B26: 1940 Property Lease Excise Tax, 1980 Prior Year, 1990 Miscelaneous | D26: 19. | E26: =-(SUMIFS('Accounting Data'!C2:C100000,'Accounting Data'!E2:E100000,"001",'Accounting Data'!J2:J100000,"1???"))-SUM(E9:E25) -> 82798 | F26: =-(SUMIFS('Accounting Data'!C2:C100000,'Accounting Data'!E2:E100000,"610",'Accounting Data'!J2:J100000,"1???"))-SUM(F9:F25) -> 3201 | G26: =-(SUMIFS('Accounting Data'!C2:C100000,'Accounting Data'!E2:E100000,"620",'Accounting Data'!J2:J100000,"1???"))-(G9+G11+G25) -> 0 | H26: =-(SUMIFS('Accounting Data'!C2:C100000,'Accounting Data'!E2:E100000,"630",'Accounting Data'!J2:J100000,"1???"))-H25 -> 0 | I26: =-(SUMIFS('Accounting Data'!C2:C100000,'Accounting Data'!E2:E100000,"700",'Accounting Data'!J2:J100000,"1???"))-SUM(I9:I25) -> 0 | J26: 19. | AA26: =IF(OR(AND(E26<>0,B26=""),AND(F26<>0,B26=""),AND(G26<>0,B26=""),AND(H26<>0,B26=""),AND(I26<>0,B26="")),"Yes","") -> 
A27: Subtotal (lines 2-19) | D27: 20. | E27: =SUM(E9:E26) -> 3297441 | F27: =F9+SUM(F11:F26) -> 307824 | G27: =G9+G11+SUM(G25:G26) -> 98780 | H27: =SUM(H25:H26) -> 0 | I27: =I9+SUM(I11:I26) -> 1 | J27: 20.
A28: 2000 County
A29: 2110 County School Fund | D29: 21. | E29: =-(SUMIFS('Accounting Data'!C2:C100000,'Accounting Data'!E2:E100000,"001",'Accounting Data'!J2:J100000,"211?")) -> 0 | F29: =-(SUMIFS('Accounting Data'!C2:C100000,'Accounting Data'!E2:E100000,"610",'Accounting Data'!J2:J100000,"211?")) -> 0 | J29: 21.
A30: 2120 County Equalization Assistance | D30: 22. | E30: =-(SUMIFS('Accounting Data'!C2:C100000,'Accounting Data'!E2:E100000,"001",'Accounting Data'!J2:J100000,"212?")) -> 408842 | F30: =-(SUMIFS('Accounting Data'!C2:C100000,'Accounting Data'!E2:E100000,"610",'Accounting Data'!J2:J100000,"212?")) -> 21518 | J30: 22.
A31: 2210 Special County School Reserve Fund | D31: 23. | E31: =-(SUMIFS('Accounting Data'!C2:C100000,'Accounting Data'!E2:E100000,"001",'Accounting Data'!J2:J100000,"221?")) -> 0 | F31: =-(SUMIFS('Accounting Data'!C2:C100000,'Accounting Data'!E2:E100000,"610",'Accounting Data'!J2:J100000,"221?")) -> 0 | J31: 23.
A32: Other (Specify) | D32: 24. | E32: =-(SUMIFS('Accounting Data'!C2:C100000,'Accounting Data'!E2:E100000,"001",'Accounting Data'!J2:J100000,"2???"))-SUM(E29:E31) -> 0 | F32: =-(SUMIFS('Accounting Data'!C2:C100000,'Accounting Data'!E2:E100000,"610",'Accounting Data'!J2:J100000,"2???"))-SUM(F29:F31) -> 0 | J32: 24. | AA32: =IF(OR(AND(E32<>0,B32=""),AND(F32<>0,B32=""),AND(G32<>0,B32=""),AND(H32<>0,B32=""),AND(I32<>0,B32="")),"Yes","") -> 
A33: Subtotal (lines 21-24) | D33: 25. | E33: =SUM(E29:E32) -> 408842 | F33: =SUM(F29:F32) -> 21518 | J33: 25.
A34: 3000 State
A35: 3100 Unrestricted | D35: 26. | E35: =-(SUMIFS('Accounting Data'!C2:C100000,'Accounting Data'!E2:E100000,"001",'Accounting Data'!J2:J100000,"310?")) -> 161394 | F35: =-(SUMIFS('Accounting Data'!C2:C100000,'Accounting Data'!E2:E100000,"610",'Accounting Data'!J2:J100000,"310?")) -> 0 | J35: 26.
A36: 3110 State Equalization Assistance | D36: 27. | E36: =-(SUMIFS('Accounting Data'!C2:C100000,'Accounting Data'!E2:E100000,"001",'Accounting Data'!J2:J100000,"311?")) -> 13695224 | F36: =-(SUMIFS('Accounting Data'!C2:C100000,'Accounting Data'!E2:E100000,"610",'Accounting Data'!J2:J100000,"311?")) -> 784590 | J36: 27.
A37: 3120 Additional State Aid | D37: 28. | E37: =-(SUMIFS('Accounting Data'!C2:C100000,'Accounting Data'!E2:E100000,"001",'Accounting Data'!J2:J100000,"312?")) -> 359435 | F37: =-(SUMIFS('Accounting Data'!C2:C100000,'Accounting Data'!E2:E100000,"610",'Accounting Data'!J2:J100000,"312?")) -> 30311 | J37: 28.
A38: Other (Specify) | B38: NPS & Coconino County Grant | D38: 29. | E38: =-(SUMIFS('Accounting Data'!C2:C100000,'Accounting Data'!E2:E100000,"001",'Accounting Data'!J2:J100000,"3???"))-SUM(E35:E37) -> 2500 | F38: =-(SUMIFS('Accounting Data'!C2:C100000,'Accounting Data'!E2:E100000,"610",'Accounting Data'!J2:J100000,"3???"))-SUM(F35:F37) -> 0 | I38: =-(SUMIFS('Accounting Data'!C2:C100000,'Accounting Data'!E2:E100000,"700",'Accounting Data'!J2:J100000,"3???")) -> 0 | J38: 29. | AA38: =IF(OR(AND(E38<>0,B38=""),AND(F38<>0,B38=""),AND(G38<>0,B38=""),AND(H38<>0,B38=""),AND(I38<>0,B38="")),"Yes","") -> 
A39: Subtotal (lines 26-29) | D39: 30. | E39: =SUM(E35:E38) -> 14218553 | F39: =SUM(F35:F38) -> 814901 | I39: =I38 -> 0 | J39: 30.
A40: 4000 Federal
A41: 4100 Unrestricted Revenue Received Directly from the Federal Government | D41: 31. | E41: =-(SUMIFS('Accounting Data'!C2:C100000,'Accounting Data'!E2:E100000,"001",'Accounting Data'!J2:J100000,"41??")) -> 0 | J41: 31.
A42: 4200 Unrestricted Revenue Received from the Federal Government through the State | D42: 32. | E42: =-(SUMIFS('Accounting Data'!C2:C100000,'Accounting Data'!E2:E100000,"001",'Accounting Data'!J2:J100000,"42??")) -> 0 | J42: 32.
J43: 33.
A44: 4700 Revenue Received from the Federal Government through Other Intermediate Agencies | D44: 33. | E44: =-(SUMIFS('Accounting Data'!C2:C100000,'Accounting Data'!E2:E100000,"001",'Accounting Data'!J2:J100000,"47??")) -> 0 | J44: 33.
A45: 4800 Revenue in Lieu of Taxes | D45: 34. | E45: =-(SUMIFS('Accounting Data'!C2:C100000,'Accounting Data'!E2:E100000,"001",'Accounting Data'!J2:J100000,"48??")) -> 0 | J45: 34.
A46: 4900 Revenue for/on Behalf of the District | D46: 35. | E46: =-(SUMIFS('Accounting Data'!C2:C100000,'Accounting Data'!E2:E100000,"001",'Accounting Data'!J2:J100000,"49??")) -> 0 | J46: 35.
A47: Other (Specify) | D47: 36. | E47: =-(SUMIFS('Accounting Data'!C2:C100000,'Accounting Data'!E2:E100000,"001",'Accounting Data'!J2:J100000,"4???"))-SUM(E41:E46) -> 0 | I47: =-(SUMIFS('Accounting Data'!C2:C100000,'Accounting Data'!E2:E100000,"700",'Accounting Data'!J2:J100000,"4???")) -> 0 | J47: 36. | AA47: =IF(OR(AND(E47<>0,B47=""),AND(F47<>0,B47=""),AND(G47<>0,B47=""),AND(H47<>0,B47=""),AND(I47<>0,B47="")),"Yes","") -> 
A48: Subtotal (lines 31-36) | D48: 37. | E48: =SUM(E41:E42)+SUM(E44:E47) -> 0 | I48: =I47 -> 0 | J48: 37.
A50: Total Fund Revenue (lines 20, 25, 30, and 37) | D50: 38. | E50: =E27+E33+E39+E48 -> 17924836 | F50: =F27+F33+F39+F48 -> 1144243 | G50: =G27+G33+G39+G48 -> 98780 | H50: =H27+H33+H39+H48 -> 0 | I50: =I27+I33+I39+I48 -> 1 | J50: 38.
A51: 5100 Issuance of Bonds | D51: 39. | H51: =-(SUMIFS('Accounting Data'!C2:C100000,'Accounting Data'!E2:E100000,"630",'Accounting Data'!J2:J100000,"51??")) -> 0 | I51: =-(SUMIFS('Accounting Data'!C2:C100000,'Accounting Data'!E2:E100000,"700",'Accounting Data'!J2:J100000,"51??")) -> 0 | J51: 39.
A52: 5200 Fund Transfers-In | D52: 40. | E52: =-(SUMIFS('Accounting Data'!C2:C100000,'Accounting Data'!E2:E100000,"001",'Accounting Data'!J2:J100000,"52??")) -> 0 | F52: =-(SUMIFS('Accounting Data'!C2:C100000,'Accounting Data'!E2:E100000,"610",'Accounting Data'!J2:J100000,"52??")) -> 0 | G52: =-(SUMIFS('Accounting Data'!C2:C100000,'Accounting Data'!E2:E100000,"620",'Accounting Data'!J2:J100000,"52??")) -> 0 | H52: =-(SUMIFS('Accounting Data'!C2:C100000,'Accounting Data'!E2:E100000,"630",'Accounting Data'!J2:J100000,"52??")) -> 0 | I52: =-(SUMIFS('Accounting Data'!C2:C100000,'Accounting Data'!E2:E100000,"700",'Accounting Data'!J2:J100000,"52??")) -> 0 | J52: 40.
A53: Other (Specify) | B53: Insurance Proceeds | D53: 41. | E53: =-(SUMIFS('Accounting Data'!C2:C100000,'Accounting Data'!E2:E100000,"001",'Accounting Data'!J2:J100000,"5???"))-F001TransIn -> 38462 | F53: =-(SUMIFS('Accounting Data'!C2:C100000,'Accounting Data'!E2:E100000,"610",'Accounting Data'!J2:J100000,"5???"))-F610TransIn -> 0 | G53: =-(SUMIFS('Accounting Data'!C2:C100000,'Accounting Data'!E2:E100000,"620",'Accounting Data'!J2:J100000,"5???"))-F620TransfIn -> 0 | H53: =-(SUMIFS('Accounting Data'!C2:C100000,'Accounting Data'!E2:E100000,"630",'Accounting Data'!J2:J100000,"5???"))-SUM(H51:H52) -> 0 | I53: =-(SUMIFS('Accounting Data'!C2:C100000,'Accounting Data'!E2:E100000,"700",'Accounting Data'!J2:J100000,"5???"))-SUM(I51:I52) -> 0 | J53: 41. | AA53: =IF(OR(AND(E53<>0,B53=""),AND(F53<>0,B53=""),AND(G53<>0,B53=""),AND(H53<>0,B53=""),AND(I53<>0,B53="")),"Yes","") -> 
A54: TOTAL FUNDS AVAILABLE (lines 1 and 38 through 41) | D54: 42. | E54: =SUM(E6+E50+E52+E53) -> 22272948 | F54: =SUM(F6+F50+F52+F53) -> 2270320 | G54: =SUM(G6+G50+G52+G53) -> 536120 | H54: =SUM(H6+H50+H51+H52+H53) -> 0 | I54: =SUM(I6+I50+I51+I52+I53) -> 1111 | J54: 42.
A55: Total Expenditures | D55: 43. | E55: =F001TOTALEXP -> 17036947 | F55: =F610TotActExp -> 1277403 | G55: =SUMIFS('Accounting Data'!C2:C100000,'Accounting Data'!E2:E100000,"620",'Accounting Data'!J2:J100000,"6???")-SUMIFS('Accounting Data'!C2:C100000,'Accounting Data'!E2:E100000,"620",'Accounting Data'!J2:J100000,"69??") -> 65896 | H55: =SUMIFS('Accounting Data'!C2:C100000,'Accounting Data'!E2:E100000,"630",'Accounting Data'!J2:J100000,"6???")-SUMIFS('Accounting Data'!C2:C100000,'Accounting Data'!E2:E100000,"630",'Accounting Data'!J2:J100000,"69??") -> 0 | I55: =SUMIFS('Accounting Data'!C2:C100000,'Accounting Data'!E2:E100000,"700",'Accounting Data'!J2:J100000,"6???")-SUMIFS('Accounting Data'!C2:C100000,'Accounting Data'!E2:E100000,"700",'Accounting Data'!J2:J100000,"69??") -> 0 | J55: 43.
A56: 6900 Other Financing Uses and Other Items Including Transfers-Out | D56: 44. | E56: =SUMIFS('Accounting Data'!C2:C100000,'Accounting Data'!E2:E100000,"001",'Accounting Data'!J2:J100000,"69??") -> 0 | F56: =SUMIFS('Accounting Data'!C2:C100000,'Accounting Data'!E2:E100000,"610",'Accounting Data'!J2:J100000,"69??") -> 0 | G56: =SUMIFS('Accounting Data'!C2:C100000,'Accounting Data'!E2:E100000,"620",'Accounting Data'!J2:J100000,"69??") -> 0 | H56: =SUMIFS('Accounting Data'!C2:C100000,'Accounting Data'!E2:E100000,"630",'Accounting Data'!J2:J100000,"69??") -> 0 | I56: =SUMIFS('Accounting Data'!C2:C100000,'Accounting Data'!E2:E100000,"700",'Accounting Data'!J2:J100000,"69??") -> 0 | J56: 44.
A57: TOTAL EXPENDITURES AND OTHER USES (lines 43 plus 44) | D57: 45. | E57: =E55+E56 -> 17036947 | F57: =SUM(F55:F56) -> 1277403 | G57: =SUM(G55:G56) -> 65896 | H57: =SUM(H55:H56) -> 0 | I57: =SUM(I55:I56) -> 0 | J57: 45.
A58: ENDING FUND BALANCE (line 42 minus line 45) (3) | D58: 46. | E58: =SUM(E54-E57) -> 5236001 | F58: =SUM(F54-F57) -> 992917 | G58: =SUM(G54-G57) -> 470224 | H58: =SUM(H54-H57) -> 0 | I58: =SUM(I54-I57) -> 1111 | J58: 46.
C67: `

Sheet Page 2
A1: DISTRICT NAME | B1: =CoverDistrictName -> Page Unified School District | E1: COUNTY | F1: =County -> Coconino | I1: CTDS NUMBER | J1: =Cover!Q1 -> 030208000
A2: MAINTENANCE AND OPERATION FUND (001)—EXPENDITURES
E4: Employee | F4: Purchased Services | I4: Totals | L4: % Increase/ Decrease in Actual
A5: Expenditures | D5: Salaries | E5: Benefits | F5: 6300, 6400, | G5: Supplies | H5: Other | I5: Budget | J5: Actual | K5: Prior Year Actual
D6: 6100 | E6: 6200 | F6: 6500 | G6: 6600 | H6: 6800
A7: 100 Regular Education | D7: =SUMIFS('Accounting Data'!C2:C100000,'Accounting Data'!E2:E100000,"001",'Accounting Data'!H2:H100000,"1??",'Accounting Data'!I2:I100000,"1???",'Accounting Data'!J2:J100000,"61??") -> 4438092 | E7: =SUMIFS('Accounting Data'!C2:C100000,'Accounting Data'!E2:E100000,"001",'Accounting Data'!H2:H100000,"1??",'Accounting Data'!I2:I100000,"1???",'Accounting Data'!J2:J100000,"62??") -> 1054330 | F7: =SUMIFS('Accounting Data'!C2:C100000,'Accounting Data'!E2:E100000,"001",'Accounting Data'!H2:H100000,"1??",'Accounting Data'!I2:I100000,"1???",'Accounting Data'!J2:J100000,"63??")+SUMIFS('Accounting Data'!C2:C100000,'Accounting Data'!E2:E100000,"001",'Accounting Data'!H2:H100000,"1??",'Accounting Data'!I2:I100000,"1???",'Accounting Data'!J2:J100000,"64??")+SUMIFS('Accounting Data'!C2:C100000,'Accounting Data'!E2:E100000,"001",'Accounting Data'!H2:H100000,"1??",'Accounting Data'!I2:I100000,"1???",'Accounting Data'!J2:J100000,"65??") -> 4074 | G7: =SUMIFS('Accounting Data'!C2:C100000,'Accounting Data'!E2:E100000,"001",'Accounting Data'!H2:H100000,"1??",'Accounting Data'!I2:I100000,"1???",'Accounting Data'!J2:J100000,"66??") -> 79319 | H7: =SUMIFS('Accounting Data'!C2:C100000,'Accounting Data'!E2:E100000,"001",'Accounting Data'!H2:H100000,"1??",'Accounting Data'!I2:I100000,"1???",'Accounting Data'!J2:J100000,"68??") -> 2109 | I7: =[1]!F001P100F1000 -> 6387985 | J7: =SUM(D7:H7) -> 5577924 | K7: =[2]!F001P100F1000 -> 5585184 | L7: =IF(J7=K7,0,IF(K7>0,(J7-K7)/K7,"--")) -> -0.001
A8: 1000 Instruction | C8: 1. | M8: 1.
A9: 2000 Support Services | D9: =SUMIFS('Accounting Data'!C2:C100000,'Accounting Data'!E2:E100000,"001",'Accounting Data'!H2:H100000,"1??",'Accounting Data'!I2:I100000,"21??",'Accounting Data'!J2:J100000,"61??") -> 324889 | E9: =SUMIFS('Accounting Data'!C2:C100000,'Accounting Data'!E2:E100000,"001",'Accounting Data'!H2:H100000,"1??",'Accounting Data'!I2:I100000,"21??",'Accounting Data'!J2:J100000,"62??") -> 116128 | F9: =SUMIFS('Accounting Data'!C2:C100000,'Accounting Data'!E2:E100000,"001",'Accounting Data'!H2:H100000,"1??",'Accounting Data'!I2:I100000,"21??",'Accounting Data'!J2:J100000,"63??")+SUMIFS('Accounting Data'!C2:C100000,'Accounting Data'!E2:E100000,"001",'Accounting Data'!H2:H100000,"1??",'Accounting Data'!I2:I100000,"21??",'Accounting Data'!J2:J100000,"64??")+SUMIFS('Accounting Data'!C2:C100000,'Accounting Data'!E2:E100000,"001",'Accounting Data'!H2:H100000,"1??",'Accounting Data'!I2:I100000,"21??",'Accounting Data'!J2:J100000,"65??") -> 3522 | G9: =SUMIFS('Accounting Data'!C2:C100000,'Accounting Data'!E2:E100000,"001",'Accounting Data'!H2:H100000,"1??",'Accounting Data'!I2:I100000,"21??",'Accounting Data'!J2:J100000,"66??") -> 4954 | H9: =SUMIFS('Accounting Data'!C2:C100000,'Accounting Data'!E2:E100000,"001",'Accounting Data'!H2:H100000,"1??",'Accounting Data'!I2:I100000,"21??",'Accounting Data'!J2:J100000,"68??") -> 60 | I9: =[1]!F001P100F2100 -> 509507 | J9: =SUM(D9:H9) -> 449553 | K9: =[2]!F001P100F2100 -> 375128 | L9: =IF(J9=K9,0,IF(K9>0,(J9-K9)/K9,"--")) -> 0.198
A10: 2100 Students | C10: 2. | M10: 2.
A11: 2200 Instructional Staff | C11: 3. | D11: =SUMIFS('Accounting Data'!C2:C100000,'Accounting Data'!E2:E100000,"001",'Accounting Data'!H2:H100000,"1??",'Accounting Data'!I2:I100000,"22??",'Accounting Data'!J2:J100000,"61??") -> 118649 | E11: =SUMIFS('Accounting Data'!C2:C100000,'Accounting Data'!E2:E100000,"001",'Accounting Data'!H2:H100000,"1??",'Accounting Data'!I2:I100000,"22??",'Accounting Data'!J2:J100000,"62??") -> 34625 | F11: =SUMIFS('Accounting Data'!C2:C100000,'Accounting Data'!E2:E100000,"001",'Accounting Data'!H2:H100000,"1??",'Accounting Data'!I2:I100000,"22??",'Accounting Data'!J2:J100000,"63??")+SUMIFS('Accounting Data'!C2:C100000,'Accounting Data'!E2:E100000,"001",'Accounting Data'!H2:H100000,"1??",'Accounting Data'!I2:I100000,"22??",'Accounting Data'!J2:J100000,"64??")+SUMIFS('Accounting Data'!C2:C100000,'Accounting Data'!E2:E100000,"001",'Accounting Data'!H2:H100000,"1??",'Accounting Data'!I2:I100000,"22??",'Accounting Data'!J2:J100000,"65??") -> 20666 | G11: =SUMIFS('Accounting Data'!C2:C100000,'Accounting Data'!E2:E100000,"001",'Accounting Data'!H2:H100000,"1??",'Accounting Data'!I2:I100000,"22??",'Accounting Data'!J2:J100000,"66??") -> 8160 | H11: =SUMIFS('Accounting Data'!C2:C100000,'Accounting Data'!E2:E100000,"001",'Accounting Data'!H2:H100000,"1??",'Accounting Data'!I2:I100000,"22??",'Accounting Data'!J2:J100000,"68??") -> 1398 | I11: =[1]!F001P100F2200 -> 239987 | J11: =SUM(D11:H11) -> 183498 | K11: =[2]!F001P100F2200 -> 89231 | L11: =IF(J11=K11,0,IF(K11>0,(J11-K11)/K11,"--")) -> 1.056 | M11: 3.
A12: 2300 General Administration | C12: 4. | D12: =SUMIFS('Accounting Data'!C2:C100000,'Accounting Data'!E2:E100000,"001",'Accounting Data'!H2:H100000,"1??",'Accounting Data'!I2:I100000,"23??",'Accounting Data'!J2:J100000,"61??") -> 276099 | E12: =SUMIFS('Accounting Data'!C2:C100000,'Accounting Data'!E2:E100000,"001",'Accounting Data'!H2:H100000,"1??",'Accounting Data'!I2:I100000,"23??",'Accounting Data'!J2:J100000,"62??") -> 65172 | F12: =SUMIFS('Accounting Data'!C2:C100000,'Accounting Data'!E2:E100000,"001",'Accounting Data'!H2:H100000,"1??",'Accounting Data'!I2:I100000,"23??",'Accounting Data'!J2:J100000,"63??")+SUMIFS('Accounting Data'!C2:C100000,'Accounting Data'!E2:E100000,"001",'Accounting Data'!H2:H100000,"1??",'Accounting Data'!I2:I100000,"23??",'Accounting Data'!J2:J100000,"64??")+SUMIFS('Accounting Data'!C2:C100000,'Accounting Data'!E2:E100000,"001",'Accounting Data'!H2:H100000,"1??",'Accounting Data'!I2:I100000,"23??",'Accounting Data'!J2:J100000,"65??") -> 59351 | G12: =SUMIFS('Accounting Data'!C2:C100000,'Accounting Data'!E2:E100000,"001",'Accounting Data'!H2:H100000,"1??",'Accounting Data'!I2:I100000,"23??",'Accounting Data'!J2:J100000,"66??") -> 3050 | H12: =SUMIFS('Accounting Data'!C2:C100000,'Accounting Data'!E2:E100000,"001",'Accounting Data'!H2:H100000,"1??",'Accounting Data'!I2:I100000,"23??",'Accounting Data'!J2:J100000,"68??") -> 16081 | I12: =[1]!F001P100F2300 -> 591409 | J12: =SUM(D12:H12) -> 419753 | K12: =[2]!F001P100F2300 -> 414583 | L12: =IF(J12=K12,0,IF(K12>0,(J12-K12)/K12,"--")) -> 0.012 | M12: 4.
A13: 2400 School Administration | C13: 5. | D13: =SUMIFS('Accounting Data'!C2:C100000,'Accounting Data'!E2:E100000,"001",'Accounting Data'!H2:H100000,"1??",'Accounting Data'!I2:I100000,"24??",'Accounting Data'!J2:J100000,"61??") -> 740930 | E13: =SUMIFS('Accounting Data'!C2:C100000,'Accounting Data'!E2:E100000,"001",'Accounting Data'!H2:H100000,"1??",'Accounting Data'!I2:I100000,"24??",'Accounting Data'!J2:J100000,"62??") -> 214788 | F13: =SUMIFS('Accounting Data'!C2:C100000,'Accounting Data'!E2:E100000,"001",'Accounting Data'!H2:H100000,"1??",'Accounting Data'!I2:I100000,"24??",'Accounting Data'!J2:J100000,"63??")+SUMIFS('Accounting Data'!C2:C100000,'Accounting Data'!E2:E100000,"001",'Accounting Data'!H2:H100000,"1??",'Accounting Data'!I2:I100000,"24??",'Accounting Data'!J2:J100000,"64??")+SUMIFS('Accounting Data'!C2:C100000,'Accounting Data'!E2:E100000,"001",'Accounting Data'!H2:H100000,"1??",'Accounting Data'!I2:I100000,"24??",'Accounting Data'!J2:J100000,"65??") -> 990 | G13: =SUMIFS('Accounting Data'!C2:C100000,'Accounting Data'!E2:E100000,"001",'Accounting Data'!H2:H100000,"1??",'Accounting Data'!I2:I100000,"24??",'Accounting Data'!J2:J100000,"66??") -> 3397 | H13: =SUMIFS('Accounting Data'!C2:C100000,'Accounting Data'!E2:E100000,"001",'Accounting Data'!H2:H100000,"1??",'Accounting Data'!I2:I100000,"24??",'Accounting Data'!J2:J100000,"68??") -> 3818 | I13: =[1]!F001P100F2400 -> 1101652 | J13: 963923 | K13: =[2]!F001P100F2400 -> 1065500 | L13: -0.095 | M13: 5.
A14: 2500 Central Services | C14: 6. | D14: =SUMIFS('Accounting Data'!C2:C100000,'Accounting Data'!E2:E100000,"001",'Accounting Data'!H2:H100000,"1??",'Accounting Data'!I2:I100000,"25??",'Accounting Data'!J2:J100000,"61??") -> 536987 | E14: =SUMIFS('Accounting Data'!C2:C100000,'Accounting Data'!E2:E100000,"001",'Accounting Data'!H2:H100000,"1??",'Accounting Data'!I2:I100000,"25??",'Accounting Data'!J2:J100000,"62??") -> 197939 | F14: =SUMIFS('Accounting Data'!C2:C100000,'Accounting Data'!E2:E100000,"001",'Accounting Data'!H2:H100000,"1??",'Accounting Data'!I2:I100000,"25??",'Accounting Data'!J2:J100000,"63??")+SUMIFS('Accounting Data'!C2:C100000,'Accounting Data'!E2:E100000,"001",'Accounting Data'!H2:H100000,"1??",'Accounting Data'!I2:I100000,"25??",'Accounting Data'!J2:J100000,"64??")+SUMIFS('Accounting Data'!C2:C100000,'Accounting Data'!E2:E100000,"001",'Accounting Data'!H2:H100000,"1??",'Accounting Data'!I2:I100000,"25??",'Accounting Data'!J2:J100000,"65??") -> 99826 | G14: =SUMIFS('Accounting Data'!C2:C100000,'Accounting Data'!E2:E100000,"001",'Accounting Data'!H2:H100000,"1??",'Accounting Data'!I2:I100000,"25??",'Accounting Data'!J2:J100000,"66??") -> 49882 | H14: =SUMIFS('Accounting Data'!C2:C100000,'Accounting Data'!E2:E100000,"001",'Accounting Data'!H2:H100000,"1??",'Accounting Data'!I2:I100000,"25??",'Accounting Data'!J2:J100000,"68??") -> 10898 | I14: =[1]!F001P100F2500 -> 1093533 | J14: 895532 | K14: =[2]!F001P100F2500 -> 990405 | L14: -0.096 | M14: 6.
A15: 2600 Operation & Maintenance of Plant | C15: 7. | D15: =SUMIFS('Accounting Data'!C2:C100000,'Accounting Data'!E2:E100000,"001",'Accounting Data'!H2:H100000,"1??",'Accounting Data'!I2:I100000,"26??",'Accounting Data'!J2:J100000,"61??") -> 1201075 | E15: =SUMIFS('Accounting Data'!C2:C100000,'Accounting Data'!E2:E100000,"001",'Accounting Data'!H2:H100000,"1??",'Accounting Data'!I2:I100000,"26??",'Accounting Data'!J2:J100000,"62??") -> 431099 | F15: =SUMIFS('Accounting Data'!C2:C100000,'Accounting Data'!E2:E100000,"001",'Accounting Data'!H2:H100000,"1??",'Accounting Data'!I2:I100000,"26??",'Accounting Data'!J2:J100000,"63??")+SUMIFS('Accounting Data'!C2:C100000,'Accounting Data'!E2:E100000,"001",'Accounting Data'!H2:H100000,"1??",'Accounting Data'!I2:I100000,"26??",'Accounting Data'!J2:J100000,"64??")+SUMIFS('Accounting Data'!C2:C100000,'Accounting Data'!E2:E100000,"001",'Accounting Data'!H2:H100000,"1??",'Accounting Data'!I2:I100000,"26??",'Accounting Data'!J2:J100000,"65??") -> 561923 | G15: =SUMIFS('Accounting Data'!C2:C100000,'Accounting Data'!E2:E100000,"001",'Accounting Data'!H2:H100000,"1??",'Accounting Data'!I2:I100000,"26??",'Accounting Data'!J2:J100000,"66??") -> 1122163 | H15: =SUMIFS('Accounting Data'!C2:C100000,'Accounting Data'!E2:E100000,"001",'Accounting Data'!H2:H100000,"1??",'Accounting Data'!I2:I100000,"26??",'Accounting Data'!J2:J100000,"68??") -> 660 | I15: =[1]!F001P100F2600 -> 4572682 | J15: 3316920 | K15: =[2]!F001P100F2600 -> 3302092 | L15: 0.004 | M15: 7.
A16: 2900 Other | C16: 8. | D16: =SUMIFS('Accounting Data'!C2:C100000,'Accounting Data'!E2:E100000,"001",'Accounting Data'!H2:H100000,"1??",'Accounting Data'!I2:I100000,"29??",'Accounting Data'!J2:J100000,"61??") -> 0 | E16: =SUMIFS('Accounting Data'!C2:C100000,'Accounting Data'!E2:E100000,"001",'Accounting Data'!H2:H100000,"1??",'Accounting Data'!I2:I100000,"29??",'Accounting Data'!J2:J100000,"62??") -> 0 | F16: =SUMIFS('Accounting Data'!C2:C100000,'Accounting Data'!E2:E100000,"001",'Accounting Data'!H2:H100000,"1??",'Accounting Data'!I2:I100000,"29??",'Accounting Data'!J2:J100000,"63??")+SUMIFS('Accounting Data'!C2:C100000,'Accounting Data'!E2:E100000,"001",'Accounting Data'!H2:H100000,"1??",'Accounting Data'!I2:I100000,"29??",'Accounting Data'!J2:J100000,"64??")+SUMIFS('Accounting Data'!C2:C100000,'Accounting Data'!E2:E100000,"001",'Accounting Data'!H2:H100000,"1??",'Accounting Data'!I2:I100000,"29??",'Accounting Data'!J2:J100000,"65??") -> 0 | G16: =SUMIFS('Accounting Data'!C2:C100000,'Accounting Data'!E2:E100000,"001",'Accounting Data'!H2:H100000,"1??",'Accounting Data'!I2:I100000,"29??",'Accounting Data'!J2:J100000,"66??") -> 0 | H16: =SUMIFS('Accounting Data'!C2:C100000,'Accounting Data'!E2:E100000,"001",'Accounting Data'!H2:H100000,"1??",'Accounting Data'!I2:I100000,"29??",'Accounting Data'!J2:J100000,"68??") -> 0 | I16: =[1]!F001P100F2900 -> 0 | J16: 0 | K16: =[2]!F001P100F2900 -> 0 | L16: 0 | M16: 8.
A17: 3000 Operation of Noninstructional Services | C17: 9. | D17: =SUMIFS('Accounting Data'!C2:C100000,'Accounting Data'!E2:E100000,"001",'Accounting Data'!H2:H100000,"1??",'Accounting Data'!I2:I100000,"3???",'Accounting Data'!J2:J100000,"61??") -> 26599 | E17: =SUMIFS('Accounting Data'!C2:C100000,'Accounting Data'!E2:E100000,"001",'Accounting Data'!H2:H100000,"1??",'Accounting Data'!I2:I100000,"3???",'Accounting Data'!J2:J100000,"62??") -> 11930 | F17: =SUMIFS('Accounting Data'!C2:C100000,'Accounting Data'!E2:E100000,"001",'Accounting Data'!H2:H100000,"1??",'Accounting Data'!I2:I100000,"3???",'Accounting Data'!J2:J100000,"63??")+SUMIFS('Accounting Data'!C2:C100000,'Accounting Data'!E2:E100000,"001",'Accounting Data'!H2:H100000,"1??",'Accounting Data'!I2:I100000,"3???",'Accounting Data'!J2:J100000,"64??")+SUMIFS('Accounting Data'!C2:C100000,'Accounting Data'!E2:E100000,"001",'Accounting Data'!H2:H100000,"1??",'Accounting Data'!I2:I100000,"3???",'Accounting Data'!J2:J100000,"65??") -> 0 | G17: =SUMIFS('Accounting Data'!C2:C100000,'Accounting Data'!E2:E100000,"001",'Accounting Data'!H2:H100000,"1??",'Accounting Data'!I2:I100000,"3???",'Accounting Data'!J2:J100000,"66??") -> 0 | H17: =SUMIFS('Accounting Data'!C2:C100000,'Accounting Data'!E2:E100000,"001",'Accounting Data'!H2:H100000,"1??",'Accounting Data'!I2:I100000,"3???",'Accounting Data'!J2:J100000,"68??") -> 0 | I17: =[1]!F001P100F3000 -> 42713 | J17: 38529 | K17: =[2]!F001P100F3000 -> 38796 | L17: -0.007 | M17: 9.
A18: 610 School-Sponsored Cocurricular Activities | C18: 10. | D18: =SUMIFS('Accounting Data'!C2:C100000,'Accounting Data'!E2:E100000,"001",'Accounting Data'!H2:H100000,"61?",'Accounting Data'!J2:J100000,"61??") -> 21450 | E18: =SUMIFS('Accounting Data'!C2:C100000,'Accounting Data'!E2:E100000,"001",'Accounting Data'!H2:H100000,"61?",'Accounting Data'!J2:J100000,"62??") -> 3673 | F18: =SUMIFS('Accounting Data'!C2:C100000,'Accounting Data'!E2:E100000,"001",'Accounting Data'!H2:H100000,"61?",'Accounting Data'!J2:J100000,"63??")+SUMIFS('Accounting Data'!C2:C100000,'Accounting Data'!E2:E100000,"001",'Accounting Data'!H2:H100000,"61?",'Accounting Data'!J2:J100000,"64??")+SUMIFS('Accounting Data'!C2:C100000,'Accounting Data'!E2:E100000,"001",'Accounting Data'!H2:H100000,"61?",'Accounting Data'!J2:J100000,"65??") -> 8594 | G18: =SUMIFS('Accounting Data'!C2:C100000,'Accounting Data'!E2:E100000,"001",'Accounting Data'!H2:H100000,"61?",'Accounting Data'!J2:J100000,"66??") -> 1411 | H18: =SUMIFS('Accounting Data'!C2:C100000,'Accounting Data'!E2:E100000,"001",'Accounting Data'!H2:H100000,"61?",'Accounting Data'!J2:J100000,"68??") -> 5784 | I18: =[1]!F001P610 -> 80850 | J18: 40912 | K18: =[2]!F001P610 -> 53386 | L18: -0.234 | M18: 10.
A19: 620 School-Sponsored Athletics | C19: 11. | D19: =SUMIFS('Accounting Data'!C2:C100000,'Accounting Data'!E2:E100000,"001",'Accounting Data'!H2:H100000,"62?",'Accounting Data'!J2:J100000,"61??") -> 333524 | E19: =SUMIFS('Accounting Data'!C2:C100000,'Accounting Data'!E2:E100000,"001",'Accounting Data'!H2:H100000,"62?",'Accounting Data'!J2:J100000,"62??") -> 65635 | F19: =SUMIFS('Accounting Data'!C2:C100000,'Accounting Data'!E2:E100000,"001",'Accounting Data'!H2:H100000,"62?",'Accounting Data'!J2:J100000,"63??")+SUMIFS('Accounting Data'!C2:C100000,'Accounting Data'!E2:E100000,"001",'Accounting Data'!H2:H100000,"62?",'Accounting Data'!J2:J100000,"64??")+SUMIFS('Accounting Data'!C2:C100000,'Accounting Data'!E2:E100000,"001",'Accounting Data'!H2:H100000,"62?",'Accounting Data'!J2:J100000,"65??") -> 7278 | G19: =SUMIFS('Accounting Data'!C2:C100000,'Accounting Data'!E2:E100000,"001",'Accounting Data'!H2:H100000,"62?",'Accounting Data'!J2:J100000,"66??") -> 11242 | H19: =SUMIFS('Accounting Data'!C2:C100000,'Accounting Data'!E2:E100000,"001",'Accounting Data'!H2:H100000,"62?",'Accounting Data'!J2:J100000,"68??") -> 65355 | I19: =[1]!F001P620 -> 460842 | J19: 483034 | K19: =[2]!F001P620 -> 392192 | L19: 0.232 | M19: 11.
A20: 630 Other Instructional Programs | C20: 12. | D20: =SUMIFS('Accounting Data'!C2:C100000,'Accounting Data'!E2:E100000,"001",'Accounting Data'!H2:H100000,"63?",'Accounting Data'!J2:J100000,"61??") -> 0 | E20: =SUMIFS('Accounting Data'!C2:C100000,'Accounting Data'!E2:E100000,"001",'Accounting Data'!H2:H100000,"63?",'Accounting Data'!J2:J100000,"62??") -> 0 | F20: =SUMIFS('Accounting Data'!C2:C100000,'Accounting Data'!E2:E100000,"001",'Accounting Data'!H2:H100000,"63?",'Accounting Data'!J2:J100000,"63??")+SUMIFS('Accounting Data'!C2:C100000,'Accounting Data'!E2:E100000,"001",'Accounting Data'!H2:H100000,"63?",'Accounting Data'!J2:J100000,"64??")+SUMIFS('Accounting Data'!C2:C100000,'Accounting Data'!E2:E100000,"001",'Accounting Data'!H2:H100000,"63?",'Accounting Data'!J2:J100000,"65??") -> 0 | G20: =SUMIFS('Accounting Data'!C2:C100000,'Accounting Data'!E2:E100000,"001",'Accounting Data'!H2:H100000,"63?",'Accounting Data'!J2:J100000,"66??") -> 0 | H20: =SUMIFS('Accounting Data'!C2:C100000,'Accounting Data'!E2:E100000,"001",'Accounting Data'!H2:H100000,"63?",'Accounting Data'!J2:J100000,"68??") -> 0 | I20: =[1]!F001P630 -> 0 | J20: 0 | K20: =[2]!F001P630 -> 0 | L20: 0 | M20: 12.
A21: 700, 800, 900 Other Programs | C21: 13. | D21: =SUMIFS('Accounting Data'!C2:C100000,'Accounting Data'!E2:E100000,"001",'Accounting Data'!H2:H100000,"7??",'Accounting Data'!J2:J100000,"61??")+SUMIFS('Accounting Data'!C2:C100000,'Accounting Data'!E2:E100000,"001",'Accounting Data'!H2:H100000,"8??",'Accounting Data'!J2:J100000,"61??")+SUMIFS('Accounting Data'!C2:C100000,'Accounting Data'!E2:E100000,"001",'Accounting Data'!H2:H100000,"9??",'Accounting Data'!J2:J100000,"61??") -> 0 | E21: =SUMIFS('Accounting Data'!C2:C100000,'Accounting Data'!E2:E100000,"001",'Accounting Data'!H2:H100000,"7??",'Accounting Data'!J2:J100000,"62??")+SUMIFS('Accounting Data'!C2:C100000,'Accounting Data'!E2:E100000,"001",'Accounting Data'!H2:H100000,"8??",'Accounting Data'!J2:J100000,"62??")+SUMIFS('Accounting Data'!C2:C100000,'Accounting Data'!E2:E100000,"001",'Accounting Data'!H2:H100000,"9??",'Accounting Data'!J2:J100000,"62??") -> 0 | F21: =SUMIFS('Accounting Data'!C2:C100000,'Accounting Data'!E2:E100000,"001",'Accounting Data'!H2:H100000,"7??",'Accounting Data'!J2:J100000,"63??")+SUMIFS('Accounting Data'!C2:C100000,'Accounting Data'!E2:E100000,"001",'Accounting Data'!H2:H100000,"7??",'Accounting Data'!J2:J100000,"64??")+SUMIFS('Accounting Data'!C2:C100000,'Accounting Data'!E2:E100000,"001",'Accounting Data'!H2:H100000,"7??",'Accounting Data'!J2:J100000,"65??")+SUMIFS('Accounting Data'!C2:C100000,'Accounting Data'!E2:E100000,"001",'Accounting Data'!H2:H100000,"8??",'Accounting Data'!J2:J100000,"63??")+SUMIFS('Accounting Data'!C2:C100000,'Accounting Data'!E2:E100000,"001",'Accounting Data'!H2:H100000,"8??",'Accounting Data'!J2:J100000,"64??")+SUMIFS('Accounting Data'!C2:C100000,'Accounting Data'!E2:E100000,"001",'Accounting Data'!H2:H100000,"8??",'Accounting Data'!J2:J100000,"65??")+SUMIFS('Accounting Data'!C2:C100000,'Accounting Data'!E2:E100000,"001",'Accounting Data'!H2:H100000,"9??",'Accounting Data'!J2:J100000,"63??")+SUMIFS('Accounting Data'!C2:C100000,'Accounting Data'!E2:E100000,"001",'Accounting Data'!H2:H100000,"9??",'Accounting Data'!J2:J100000,"64??")+SUMIFS('Accounting Data'!C2:C100000,'Accounting Data'!E2:E100000,"001",'Accounting Data'!H2:H100000,"9??",'Accounting Data'!J2:J100000,"65??") -> 0 | G21: =SUMIFS('Accounting Data'!C2:C100000,'Accounting Data'!E2:E100000,"001",'Accounting Data'!H2:H100000,"7??",'Accounting Data'!J2:J100000,"66??")+SUMIFS('Accounting Data'!C2:C100000,'Accounting Data'!E2:E100000,"001",'Accounting Data'!H2:H100000,"8??",'Accounting Data'!J2:J100000,"66??")+SUMIFS('Accounting Data'!C2:C100000,'Accounting Data'!E2:E100000,"001",'Accounting Data'!H2:H100000,"9??",'Accounting Data'!J2:J100000,"66??") -> 0 | H21: =SUMIFS('Accounting Data'!C2:C100000,'Accounting Data'!E2:E100000,"001",'Accounting Data'!H2:H100000,"7??",'Accounting Data'!J2:J100000,"68??")+SUMIFS('Accounting Data'!C2:C100000,'Accounting Data'!E2:E100000,"001",'Accounting Data'!H2:H100000,"8??",'Accounting Data'!J2:J100000,"68??")+SUMIFS('Accounting Data'!C2:C100000,'Accounting Data'!E2:E100000,"001",'Accounting Data'!H2:H100000,"9??",'Accounting Data'!J2:J100000,"68??") -> 0 | I21: =[1]!F001P700800900 -> 0 | J21: 0 | K21: =[2]!F001P700800900 -> 0 | L21: 0 | M21: 13.
A22: Regular Education Subsection Subtotal (lines 1-13) | C22: 14. | D22: =D7+D9+SUM(D11:D17)+SUM(D18:D21) -> 8018294 | E22: =E7+E9+SUM(E11:E17)+SUM(E18:E21) -> 2195319 | F22: =F7+F9+SUM(F11:F17)+SUM(F18:F21) -> 766224 | G22: =G7+G9+SUM(G11:G17)+SUM(G18:G21) -> 1283578 | H22: =H7+H9+SUM(H11:H17)+SUM(H18:H21) -> 106163 | I22: =I7+I9+SUM(I11:I21) -> 15081160 | J22: =J7+J9+SUM(J11:J21) -> 12369578 | K22: =K7+K9+SUM(K11:K21) -> 12306497 | L22: 0.005 | M22: 14.
A23: 200 and 300 Special Education | D23: =SUMIFS('Accounting Data'!C2:C100000,'Accounting Data'!E2:E100000,"001",'Accounting Data'!H2:H100000,"2??",'Accounting Data'!I2:I100000,"1???",'Accounting Data'!J2:J100000,"61??")+SUMIFS('Accounting Data'!C2:C100000,'Accounting Data'!E2:E100000,"001",'Accounting Data'!H2:H100000,"3??",'Accounting Data'!I2:I100000,"1???",'Accounting Data'!J2:J100000,"61??") -> 1082298 | E23: =SUMIFS('Accounting Data'!C2:C100000,'Accounting Data'!E2:E100000,"001",'Accounting Data'!H2:H100000,"2??",'Accounting Data'!I2:I100000,"1???",'Accounting Data'!J2:J100000,"62??")+SUMIFS('Accounting Data'!C2:C100000,'Accounting Data'!E2:E100000,"001",'Accounting Data'!H2:H100000,"3??",'Accounting Data'!I2:I100000,"1???",'Accounting Data'!J2:J100000,"62??") -> 317240 | F23: =SUMIFS('Accounting Data'!C2:C100000,'Accounting Data'!E2:E100000,"001",'Accounting Data'!H2:H100000,"2??",'Accounting Data'!I2:I100000,"1???",'Accounting Data'!J2:J100000,"63??")+SUMIFS('Accounting Data'!C2:C100000,'Accounting Data'!E2:E100000,"001",'Accounting Data'!H2:H100000,"2??",'Accounting Data'!I2:I100000,"1???",'Accounting Data'!J2:J100000,"64??")+SUMIFS('Accounting Data'!C2:C100000,'Accounting Data'!E2:E100000,"001",'Accounting Data'!H2:H100000,"2??",'Accounting Data'!I2:I100000,"1???",'Accounting Data'!J2:J100000,"65??")+SUMIFS('Accounting Data'!C2:C100000,'Accounting Data'!E2:E100000,"001",'Accounting Data'!H2:H100000,"3??",'Accounting Data'!I2:I100000,"1???",'Accounting Data'!J2:J100000,"63??")+SUMIFS('Accounting Data'!C2:C100000,'Accounting Data'!E2:E100000,"001",'Accounting Data'!H2:H100000,"3??",'Accounting Data'!I2:I100000,"1???",'Accounting Data'!J2:J100000,"64??")+SUMIFS('Accounting Data'!C2:C100000,'Accounting Data'!E2:E100000,"001",'Accounting Data'!H2:H100000,"3??",'Accounting Data'!I2:I100000,"1???",'Accounting Data'!J2:J100000,"65??") -> 22236 | G23: =SUMIFS('Accounting Data'!C2:C100000,'Accounting Data'!E2:E100000,"001",'Accounting Data'!H2:H100000,"2??",'Accounting Data'!I2:I100000,"1???",'Accounting Data'!J2:J100000,"66??")+SUMIFS('Accounting Data'!C2:C100000,'Accounting Data'!E2:E100000,"001",'Accounting Data'!H2:H100000,"3??",'Accounting Data'!I2:I100000,"1???",'Accounting Data'!J2:J100000,"66??") -> 3428 | H23: =SUMIFS('Accounting Data'!C2:C100000,'Accounting Data'!E2:E100000,"001",'Accounting Data'!H2:H100000,"2??",'Accounting Data'!I2:I100000,"1???",'Accounting Data'!J2:J100000,"68??")+SUMIFS('Accounting Data'!C2:C100000,'Accounting Data'!E2:E100000,"001",'Accounting Data'!H2:H100000,"3??",'Accounting Data'!I2:I100000,"1???",'Accounting Data'!J2:J100000,"68??") -> 800 | I23: =[1]!F001P200F1000 -> 1603144 | J23: =SUM(D23:H23) -> 1426002 | K23: =[2]!F001P200F1000 -> 1260460 | L23: =IF(J23=K23,0,IF(K23>0,(J23-K23)/K23,"--")) -> 0.131
A24: 1000 Instruction | C24: 15. | M24: 15.
A25: 2000 Support Services | D25: =SUMIFS('Accounting Data'!C2:C100000,'Accounting Data'!E2:E100000,"001",'Accounting Data'!H2:H100000,"2??",'Accounting Data'!I2:I100000,"21??",'Accounting Data'!J2:J100000,"61??")+SUMIFS('Accounting Data'!C2:C100000,'Accounting Data'!E2:E100000,"001",'Accounting Data'!H2:H100000,"3??",'Accounting Data'!I2:I100000,"21??",'Accounting Data'!J2:J100000,"61??") -> 610865 | E25: =SUMIFS('Accounting Data'!C2:C100000,'Accounting Data'!E2:E100000,"001",'Accounting Data'!H2:H100000,"2??",'Accounting Data'!I2:I100000,"21??",'Accounting Data'!J2:J100000,"62??")+SUMIFS('Accounting Data'!C2:C100000,'Accounting Data'!E2:E100000,"001",'Accounting Data'!H2:H100000,"3??",'Accounting Data'!I2:I100000,"21??",'Accounting Data'!J2:J100000,"62??") -> 187810 | F25: =SUMIFS('Accounting Data'!C2:C100000,'Accounting Data'!E2:E100000,"001",'Accounting Data'!H2:H100000,"2??",'Accounting Data'!I2:I100000,"21??",'Accounting Data'!J2:J100000,"63??")+SUMIFS('Accounting Data'!C2:C100000,'Accounting Data'!E2:E100000,"001",'Accounting Data'!H2:H100000,"2??",'Accounting Data'!I2:I100000,"21??",'Accounting Data'!J2:J100000,"64??")+SUMIFS('Accounting Data'!C2:C100000,'Accounting Data'!E2:E100000,"001",'Accounting Data'!H2:H100000,"2??",'Accounting Data'!I2:I100000,"21??",'Accounting Data'!J2:J100000,"65??")+SUMIFS('Accounting Data'!C2:C100000,'Accounting Data'!E2:E100000,"001",'Accounting Data'!H2:H100000,"3??",'Accounting Data'!I2:I100000,"21??",'Accounting Data'!J2:J100000,"63??")+SUMIFS('Accounting Data'!C2:C100000,'Accounting Data'!E2:E100000,"001",'Accounting Data'!H2:H100000,"3??",'Accounting Data'!I2:I100000,"21??",'Accounting Data'!J2:J100000,"64??")+SUMIFS('Accounting Data'!C2:C100000,'Accounting Data'!E2:E100000,"001",'Accounting Data'!H2:H100000,"3??",'Accounting Data'!I2:I100000,"21??",'Accounting Data'!J2:J100000,"65??") -> 622381 | G25: =SUMIFS('Accounting Data'!C2:C100000,'Accounting Data'!E2:E100000,"001",'Accounting Data'!H2:H100000,"2??",'Accounting Data'!I2:I100000,"21??",'Accounting Data'!J2:J100000,"66??")+SUMIFS('Accounting Data'!C2:C100000,'Accounting Data'!E2:E100000,"001",'Accounting Data'!H2:H100000,"3??",'Accounting Data'!I2:I100000,"21??",'Accounting Data'!J2:J100000,"66??") -> 3931 | H25: =SUMIFS('Accounting Data'!C2:C100000,'Accounting Data'!E2:E100000,"001",'Accounting Data'!H2:H100000,"2??",'Accounting Data'!I2:I100000,"21??",'Accounting Data'!J2:J100000,"68??")+SUMIFS('Accounting Data'!C2:C100000,'Accounting Data'!E2:E100000,"001",'Accounting Data'!H2:H100000,"3??",'Accounting Data'!I2:I100000,"21??",'Accounting Data'!J2:J100000,"68??") -> 2371 | I25: =[1]!F001P200F2100 -> 2051351 | J25: =SUM(D25:H25) -> 1427358 | K25: =[2]!F001P200F2100 -> 1424671 | L25: =IF(J25=K25,0,IF(K25>0,(J25-K25)/K25,"--")) -> 0.002
A26: 2100 Students | C26: 16. | M26: 16.
A27: 2200 Instructional Staff | C27: 17. | D27: =SUMIFS('Accounting Data'!C2:C100000,'Accounting Data'!E2:E100000,"001",'Accounting Data'!H2:H100000,"2??",'Accounting Data'!I2:I100000,"22??",'Accounting Data'!J2:J100000,"61??")+SUMIFS('Accounting Data'!C2:C100000,'Accounting Data'!E2:E100000,"001",'Accounting Data'!H2:H100000,"3??",'Accounting Data'!I2:I100000,"22??",'Accounting Data'!J2:J100000,"61??") -> 85505 | E27: =SUMIFS('Accounting Data'!C2:C100000,'Accounting Data'!E2:E100000,"001",'Accounting Data'!H2:H100000,"2??",'Accounting Data'!I2:I100000,"22??",'Accounting Data'!J2:J100000,"62??")+SUMIFS('Accounting Data'!C2:C100000,'Accounting Data'!E2:E100000,"001",'Accounting Data'!H2:H100000,"3??",'Accounting Data'!I2:I100000,"22??",'Accounting Data'!J2:J100000,"62??") -> 22470 | F27: =SUMIFS('Accounting Data'!C2:C100000,'Accounting Data'!E2:E100000,"001",'Accounting Data'!H2:H100000,"2??",'Accounting Data'!I2:I100000,"22??",'Accounting Data'!J2:J100000,"63??")+SUMIFS('Accounting Data'!C2:C100000,'Accounting Data'!E2:E100000,"001",'Accounting Data'!H2:H100000,"2??",'Accounting Data'!I2:I100000,"22??",'Accounting Data'!J2:J100000,"64??")+SUMIFS('Accounting Data'!C2:C100000,'Accounting Data'!E2:E100000,"001",'Accounting Data'!H2:H100000,"2??",'Accounting Data'!I2:I100000,"22??",'Accounting Data'!J2:J100000,"65??")+SUMIFS('Accounting Data'!C2:C100000,'Accounting Data'!E2:E100000,"001",'Accounting Data'!H2:H100000,"3??",'Accounting Data'!I2:I100000,"22??",'Accounting Data'!J2:J100000,"63??")+SUMIFS('Accounting Data'!C2:C100000,'Accounting Data'!E2:E100000,"001",'Accounting Data'!H2:H100000,"3??",'Accounting Data'!I2:I100000,"22??",'Accounting Data'!J2:J100000,"64??")+SUMIFS('Accounting Data'!C2:C100000,'Accounting Data'!E2:E100000,"001",'Accounting Data'!H2:H100000,"3??",'Accounting Data'!I2:I100000,"22??",'Accounting Data'!J2:J100000,"65??") -> 700 | G27: =SUMIFS('Accounting Data'!C2:C100000,'Accounting Data'!E2:E100000,"001",'Accounting Data'!H2:H100000,"2??",'Accounting Data'!I2:I100000,"22??",'Accounting Data'!J2:J100000,"66??")+SUMIFS('Accounting Data'!C2:C100000,'Accounting Data'!E2:E100000,"001",'Accounting Data'!H2:H100000,"3??",'Accounting Data'!I2:I100000,"22??",'Accounting Data'!J2:J100000,"66??") -> 0 | H27: =SUMIFS('Accounting Data'!C2:C100000,'Accounting Data'!E2:E100000,"001",'Accounting Data'!H2:H100000,"2??",'Accounting Data'!I2:I100000,"22??",'Accounting Data'!J2:J100000,"68??")+SUMIFS('Accounting Data'!C2:C100000,'Accounting Data'!E2:E100000,"001",'Accounting Data'!H2:H100000,"3??",'Accounting Data'!I2:I100000,"22??",'Accounting Data'!J2:J100000,"68??") -> 150 | I27: =[1]!F001P200F2200 -> 133159 | J27: =SUM(D27:H27) -> 108825 | K27: =[2]!F001P200F2200 -> 124430 | L27: =IF(J27=K27,0,IF(K27>0,(J27-K27)/K27,"--")) -> -0.125 | M27: 17.
A28: 2300 General Administration | C28: 18. | D28: =SUMIFS('Accounting Data'!C2:C100000,'Accounting Data'!E2:E100000,"001",'Accounting Data'!H2:H100000,"2??",'Accounting Data'!I2:I100000,"23??",'Accounting Data'!J2:J100000,"61??")+SUMIFS('Accounting Data'!C2:C100000,'Accounting Data'!E2:E100000,"001",'Accounting Data'!H2:H100000,"3??",'Accounting Data'!I2:I100000,"23??",'Accounting Data'!J2:J100000,"61??") -> 0 | E28: =SUMIFS('Accounting Data'!C2:C100000,'Accounting Data'!E2:E100000,"001",'Accounting Data'!H2:H100000,"2??",'Accounting Data'!I2:I100000,"23??",'Accounting Data'!J2:J100000,"62??")+SUMIFS('Accounting Data'!C2:C100000,'Accounting Data'!E2:E100000,"001",'Accounting Data'!H2:H100000,"3??",'Accounting Data'!I2:I100000,"23??",'Accounting Data'!J2:J100000,"62??") -> 0 | F28: =SUMIFS('Accounting Data'!C2:C100000,'Accounting Data'!E2:E100000,"001",'Accounting Data'!H2:H100000,"2??",'Accounting Data'!I2:I100000,"23??",'Accounting Data'!J2:J100000,"63??")+SUMIFS('Accounting Data'!C2:C100000,'Accounting Data'!E2:E100000,"001",'Accounting Data'!H2:H100000,"2??",'Accounting Data'!I2:I100000,"23??",'Accounting Data'!J2:J100000,"64??")+SUMIFS('Accounting Data'!C2:C100000,'Accounting Data'!E2:E100000,"001",'Accounting Data'!H2:H100000,"2??",'Accounting Data'!I2:I100000,"23??",'Accounting Data'!J2:J100000,"65??")+SUMIFS('Accounting Data'!C2:C100000,'Accounting Data'!E2:E100000,"001",'Accounting Data'!H2:H100000,"3??",'Accounting Data'!I2:I100000,"23??",'Accounting Data'!J2:J100000,"63??")+SUMIFS('Accounting Data'!C2:C100000,'Accounting Data'!E2:E100000,"001",'Accounting Data'!H2:H100000,"3??",'Accounting Data'!I2:I100000,"23??",'Accounting Data'!J2:J100000,"64??")+SUMIFS('Accounting Data'!C2:C100000,'Accounting Data'!E2:E100000,"001",'Accounting Data'!H2:H100000,"3??",'Accounting Data'!I2:I100000,"23??",'Accounting Data'!J2:J100000,"65??") -> 0 | G28: =SUMIFS('Accounting Data'!C2:C100000,'Accounting Data'!E2:E100000,"001",'Accounting Data'!H2:H100000,"2??",'Accounting Data'!I2:I100000,"23??",'Accounting Data'!J2:J100000,"66??")+SUMIFS('Accounting Data'!C2:C100000,'Accounting Data'!E2:E100000,"001",'Accounting Data'!H2:H100000,"3??",'Accounting Data'!I2:I100000,"23??",'Accounting Data'!J2:J100000,"66??") -> 0 | H28: =SUMIFS('Accounting Data'!C2:C100000,'Accounting Data'!E2:E100000,"001",'Accounting Data'!H2:H100000,"2??",'Accounting Data'!I2:I100000,"23??",'Accounting Data'!J2:J100000,"68??")+SUMIFS('Accounting Data'!C2:C100000,'Accounting Data'!E2:E100000,"001",'Accounting Data'!H2:H100000,"3??",'Accounting Data'!I2:I100000,"23??",'Accounting Data'!J2:J100000,"68??") -> 0 | I28: =[1]!F001P200F2300 -> 0 | J28: 0 | K28: =[2]!F001P200F2300 -> 0 | L28: =IF(J28=K28,0,IF(K28>0,(J28-K28)/K28,"--")) -> 0 | M28: 18.
A29: 2400 School Administration | C29: 19. | D29: =SUMIFS('Accounting Data'!C2:C100000,'Accounting Data'!E2:E100000,"001",'Accounting Data'!H2:H100000,"2??",'Accounting Data'!I2:I100000,"24??",'Accounting Data'!J2:J100000,"61??")+SUMIFS('Accounting Data'!C2:C100000,'Accounting Data'!E2:E100000,"001",'Accounting Data'!H2:H100000,"3??",'Accounting Data'!I2:I100000,"24??",'Accounting Data'!J2:J100000,"61??") -> 0 | E29: =SUMIFS('Accounting Data'!C2:C100000,'Accounting Data'!E2:E100000,"001",'Accounting Data'!H2:H100000,"2??",'Accounting Data'!I2:I100000,"24??",'Accounting Data'!J2:J100000,"62??")+SUMIFS('Accounting Data'!C2:C100000,'Accounting Data'!E2:E100000,"001",'Accounting Data'!H2:H100000,"3??",'Accounting Data'!I2:I100000,"24??",'Accounting Data'!J2:J100000,"62??") -> 0 | F29: =SUMIFS('Accounting Data'!C2:C100000,'Accounting Data'!E2:E100000,"001",'Accounting Data'!H2:H100000,"2??",'Accounting Data'!I2:I100000,"24??",'Accounting Data'!J2:J100000,"63??")+SUMIFS('Accounting Data'!C2:C100000,'Accounting Data'!E2:E100000,"001",'Accounting Data'!H2:H100000,"2??",'Accounting Data'!I2:I100000,"24??",'Accounting Data'!J2:J100000,"64??")+SUMIFS('Accounting Data'!C2:C100000,'Accounting Data'!E2:E100000,"001",'Accounting Data'!H2:H100000,"2??",'Accounting Data'!I2:I100000,"24??",'Accounting Data'!J2:J100000,"65??")+SUMIFS('Accounting Data'!C2:C100000,'Accounting Data'!E2:E100000,"001",'Accounting Data'!H2:H100000,"3??",'Accounting Data'!I2:I100000,"24??",'Accounting Data'!J2:J100000,"63??")+SUMIFS('Accounting Data'!C2:C100000,'Accounting Data'!E2:E100000,"001",'Accounting Data'!H2:H100000,"3??",'Accounting Data'!I2:I100000,"24??",'Accounting Data'!J2:J100000,"64??")+SUMIFS('Accounting Data'!C2:C100000,'Accounting Data'!E2:E100000,"001",'Accounting Data'!H2:H100000,"3??",'Accounting Data'!I2:I100000,"24??",'Accounting Data'!J2:J100000,"65??") -> 0 | G29: =SUMIFS('Accounting Data'!C2:C100000,'Accounting Data'!E2:E100000,"001",'Accounting Data'!H2:H100000,"2??",'Accounting Data'!I2:I100000,"24??",'Accounting Data'!J2:J100000,"66??")+SUMIFS('Accounting Data'!C2:C100000,'Accounting Data'!E2:E100000,"001",'Accounting Data'!H2:H100000,"3??",'Accounting Data'!I2:I100000,"24??",'Accounting Data'!J2:J100000,"66??") -> 0 | H29: =SUMIFS('Accounting Data'!C2:C100000,'Accounting Data'!E2:E100000,"001",'Accounting Data'!H2:H100000,"2??",'Accounting Data'!I2:I100000,"24??",'Accounting Data'!J2:J100000,"68??")+SUMIFS('Accounting Data'!C2:C100000,'Accounting Data'!E2:E100000,"001",'Accounting Data'!H2:H100000,"3??",'Accounting Data'!I2:I100000,"24??",'Accounting Data'!J2:J100000,"68??") -> 0 | I29: =[1]!F001P200F2400 -> 700 | J29: 0 | K29: =[2]!F001P200F2400 -> 0 | L29: 0 | M29: 19.
A30: 2500 Central Services | C30: 20. | D30: =SUMIFS('Accounting Data'!C2:C100000,'Accounting Data'!E2:E100000,"001",'Accounting Data'!H2:H100000,"2??",'Accounting Data'!I2:I100000,"25??",'Accounting Data'!J2:J100000,"61??")+SUMIFS('Accounting Data'!C2:C100000,'Accounting Data'!E2:E100000,"001",'Accounting Data'!H2:H100000,"3??",'Accounting Data'!I2:I100000,"25??",'Accounting Data'!J2:J100000,"61??") -> 624 | E30: =SUMIFS('Accounting Data'!C2:C100000,'Accounting Data'!E2:E100000,"001",'Accounting Data'!H2:H100000,"2??",'Accounting Data'!I2:I100000,"25??",'Accounting Data'!J2:J100000,"62??")+SUMIFS('Accounting Data'!C2:C100000,'Accounting Data'!E2:E100000,"001",'Accounting Data'!H2:H100000,"3??",'Accounting Data'!I2:I100000,"25??",'Accounting Data'!J2:J100000,"62??") -> 124 | F30: =SUMIFS('Accounting Data'!C2:C100000,'Accounting Data'!E2:E100000,"001",'Accounting Data'!H2:H100000,"2??",'Accounting Data'!I2:I100000,"25??",'Accounting Data'!J2:J100000,"63??")+SUMIFS('Accounting Data'!C2:C100000,'Accounting Data'!E2:E100000,"001",'Accounting Data'!H2:H100000,"2??",'Accounting Data'!I2:I100000,"25??",'Accounting Data'!J2:J100000,"64??")+SUMIFS('Accounting Data'!C2:C100000,'Accounting Data'!E2:E100000,"001",'Accounting Data'!H2:H100000,"2??",'Accounting Data'!I2:I100000,"25??",'Accounting Data'!J2:J100000,"65??")+SUMIFS('Accounting Data'!C2:C100000,'Accounting Data'!E2:E100000,"001",'Accounting Data'!H2:H100000,"3??",'Accounting Data'!I2:I100000,"25??",'Accounting Data'!J2:J100000,"63??")+SUMIFS('Accounting Data'!C2:C100000,'Accounting Data'!E2:E100000,"001",'Accounting Data'!H2:H100000,"3??",'Accounting Data'!I2:I100000,"25??",'Accounting Data'!J2:J100000,"64??")+SUMIFS('Accounting Data'!C2:C100000,'Accounting Data'!E2:E100000,"001",'Accounting Data'!H2:H100000,"3??",'Accounting Data'!I2:I100000,"25??",'Accounting Data'!J2:J100000,"65??") -> 1480 | G30: =SUMIFS('Accounting Data'!C2:C100000,'Accounting Data'!E2:E100000,"001",'Accounting Data'!H2:H100000,"2??",'Accounting Data'!I2:I100000,"25??",'Accounting Data'!J2:J100000,"66??")+SUMIFS('Accounting Data'!C2:C100000,'Accounting Data'!E2:E100000,"001",'Accounting Data'!H2:H100000,"3??",'Accounting Data'!I2:I100000,"25??",'Accounting Data'!J2:J100000,"66??") -> 0 | H30: =SUMIFS('Accounting Data'!C2:C100000,'Accounting Data'!E2:E100000,"001",'Accounting Data'!H2:H100000,"2??",'Accounting Data'!I2:I100000,"25??",'Accounting Data'!J2:J100000,"68??")+SUMIFS('Accounting Data'!C2:C100000,'Accounting Data'!E2:E100000,"001",'Accounting Data'!H2:H100000,"3??",'Accounting Data'!I2:I100000,"25??",'Accounting Data'!J2:J100000,"68??") -> 0 | I30: =[1]!F001P200F2500 -> 2150 | J30: 2228 | K30: =[2]!F001P200F2500 -> 158 | L30: 13.101 | M30: 20.
A31: 2600 Operation & Maintenance of Plant | C31: 21. | D31: =SUMIFS('Accounting Data'!C2:C100000,'Accounting Data'!E2:E100000,"001",'Accounting Data'!H2:H100000,"2??",'Accounting Data'!I2:I100000,"26??",'Accounting Data'!J2:J100000,"61??")+SUMIFS('Accounting Data'!C2:C100000,'Accounting Data'!E2:E100000,"001",'Accounting Data'!H2:H100000,"3??",'Accounting Data'!I2:I100000,"26??",'Accounting Data'!J2:J100000,"61??") -> 0 | E31: =SUMIFS('Accounting Data'!C2:C100000,'Accounting Data'!E2:E100000,"001",'Accounting Data'!H2:H100000,"2??",'Accounting Data'!I2:I100000,"26??",'Accounting Data'!J2:J100000,"62??")+SUMIFS('Accounting Data'!C2:C100000,'Accounting Data'!E2:E100000,"001",'Accounting Data'!H2:H100000,"3??",'Accounting Data'!I2:I100000,"26??",'Accounting Data'!J2:J100000,"62??") -> 0 | F31: =SUMIFS('Accounting Data'!C2:C100000,'Accounting Data'!E2:E100000,"001",'Accounting Data'!H2:H100000,"2??",'Accounting Data'!I2:I100000,"26??",'Accounting Data'!J2:J100000,"63??")+SUMIFS('Accounting Data'!C2:C100000,'Accounting Data'!E2:E100000,"001",'Accounting Data'!H2:H100000,"2??",'Accounting Data'!I2:I100000,"26??",'Accounting Data'!J2:J100000,"64??")+SUMIFS('Accounting Data'!C2:C100000,'Accounting Data'!E2:E100000,"001",'Accounting Data'!H2:H100000,"2??",'Accounting Data'!I2:I100000,"26??",'Accounting Data'!J2:J100000,"65??")+SUMIFS('Accounting Data'!C2:C100000,'Accounting Data'!E2:E100000,"001",'Accounting Data'!H2:H100000,"3??",'Accounting Data'!I2:I100000,"26??",'Accounting Data'!J2:J100000,"63??")+SUMIFS('Accounting Data'!C2:C100000,'Accounting Data'!E2:E100000,"001",'Accounting Data'!H2:H100000,"3??",'Accounting Data'!I2:I100000,"26??",'Accounting Data'!J2:J100000,"64??")+SUMIFS('Accounting Data'!C2:C100000,'Accounting Data'!E2:E100000,"001",'Accounting Data'!H2:H100000,"3??",'Accounting Data'!I2:I100000,"26??",'Accounting Data'!J2:J100000,"65??") -> 0 | G31: =SUMIFS('Accounting Data'!C2:C100000,'Accounting Data'!E2:E100000,"001",'Accounting Data'!H2:H100000,"2??",'Accounting Data'!I2:I100000,"26??",'Accounting Data'!J2:J100000,"66??")+SUMIFS('Accounting Data'!C2:C100000,'Accounting Data'!E2:E100000,"001",'Accounting Data'!H2:H100000,"3??",'Accounting Data'!I2:I100000,"26??",'Accounting Data'!J2:J100000,"66??") -> 0 | H31: =SUMIFS('Accounting Data'!C2:C100000,'Accounting Data'!E2:E100000,"001",'Accounting Data'!H2:H100000,"2??",'Accounting Data'!I2:I100000,"26??",'Accounting Data'!J2:J100000,"68??")+SUMIFS('Accounting Data'!C2:C100000,'Accounting Data'!E2:E100000,"001",'Accounting Data'!H2:H100000,"3??",'Accounting Data'!I2:I100000,"26??",'Accounting Data'!J2:J100000,"68??") -> 0 | I31: =[1]!F001P200F2600 -> 0 | J31: 0 | K31: =[2]!F001P200F2600 -> 0 | L31: 0 | M31: 21.
A32: 2900 Other | C32: 22. | D32: =SUMIFS('Accounting Data'!C2:C100000,'Accounting Data'!E2:E100000,"001",'Accounting Data'!H2:H100000,"2??",'Accounting Data'!I2:I100000,"29??",'Accounting Data'!J2:J100000,"61??")+SUMIFS('Accounting Data'!C2:C100000,'Accounting Data'!E2:E100000,"001",'Accounting Data'!H2:H100000,"3??",'Accounting Data'!I2:I100000,"29??",'Accounting Data'!J2:J100000,"61??") -> 0 | E32: =SUMIFS('Accounting Data'!C2:C100000,'Accounting Data'!E2:E100000,"001",'Accounting Data'!H2:H100000,"2??",'Accounting Data'!I2:I100000,"29??",'Accounting Data'!J2:J100000,"62??")+SUMIFS('Accounting Data'!C2:C100000,'Accounting Data'!E2:E100000,"001",'Accounting Data'!H2:H100000,"3??",'Accounting Data'!I2:I100000,"29??",'Accounting Data'!J2:J100000,"62??") -> 0 | F32: =SUMIFS('Accounting Data'!C2:C100000,'Accounting Data'!E2:E100000,"001",'Accounting Data'!H2:H100000,"2??",'Accounting Data'!I2:I100000,"29??",'Accounting Data'!J2:J100000,"63??")+SUMIFS('Accounting Data'!C2:C100000,'Accounting Data'!E2:E100000,"001",'Accounting Data'!H2:H100000,"2??",'Accounting Data'!I2:I100000,"29??",'Accounting Data'!J2:J100000,"64??")+SUMIFS('Accounting Data'!C2:C100000,'Accounting Data'!E2:E100000,"001",'Accounting Data'!H2:H100000,"2??",'Accounting Data'!I2:I100000,"29??",'Accounting Data'!J2:J100000,"65??")+SUMIFS('Accounting Data'!C2:C100000,'Accounting Data'!E2:E100000,"001",'Accounting Data'!H2:H100000,"3??",'Accounting Data'!I2:I100000,"29??",'Accounting Data'!J2:J100000,"63??")+SUMIFS('Accounting Data'!C2:C100000,'Accounting Data'!E2:E100000,"001",'Accounting Data'!H2:H100000,"3??",'Accounting Data'!I2:I100000,"29??",'Accounting Data'!J2:J100000,"64??")+SUMIFS('Accounting Data'!C2:C100000,'Accounting Data'!E2:E100000,"001",'Accounting Data'!H2:H100000,"3??",'Accounting Data'!I2:I100000,"29??",'Accounting Data'!J2:J100000,"65??") -> 0 | G32: =SUMIFS('Accounting Data'!C2:C100000,'Accounting Data'!E2:E100000,"001",'Accounting Data'!H2:H100000,"2??",'Accounting Data'!I2:I100000,"29??",'Accounting Data'!J2:J100000,"66??")+SUMIFS('Accounting Data'!C2:C100000,'Accounting Data'!E2:E100000,"001",'Accounting Data'!H2:H100000,"3??",'Accounting Data'!I2:I100000,"29??",'Accounting Data'!J2:J100000,"66??") -> 0 | H32: =SUMIFS('Accounting Data'!C2:C100000,'Accounting Data'!E2:E100000,"001",'Accounting Data'!H2:H100000,"2??",'Accounting Data'!I2:I100000,"29??",'Accounting Data'!J2:J100000,"68??")+SUMIFS('Accounting Data'!C2:C100000,'Accounting Data'!E2:E100000,"001",'Accounting Data'!H2:H100000,"3??",'Accounting Data'!I2:I100000,"29??",'Accounting Data'!J2:J100000,"68??") -> 0 | I32: =[1]!F001P200F2900 -> 0 | J32: 0 | K32: =[2]!F001P200F2900 -> 0 | L32: 0 | M32: 22.
A33: 3000 Operation of Noninstructional Services | C33: 23. | D33: =SUMIFS('Accounting Data'!C2:C100000,'Accounting Data'!E2:E100000,"001",'Accounting Data'!H2:H100000,"2??",'Accounting Data'!I2:I100000,"3???",'Accounting Data'!J2:J100000,"61??")+SUMIFS('Accounting Data'!C2:C100000,'Accounting Data'!E2:E100000,"001",'Accounting Data'!H2:H100000,"3??",'Accounting Data'!I2:I100000,"3???",'Accounting Data'!J2:J100000,"61??") -> 0 | E33: =SUMIFS('Accounting Data'!C2:C100000,'Accounting Data'!E2:E100000,"001",'Accounting Data'!H2:H100000,"2??",'Accounting Data'!I2:I100000,"3???",'Accounting Data'!J2:J100000,"62??")+SUMIFS('Accounting Data'!C2:C100000,'Accounting Data'!E2:E100000,"001",'Accounting Data'!H2:H100000,"3??",'Accounting Data'!I2:I100000,"3???",'Accounting Data'!J2:J100000,"62??") -> 0 | F33: =SUMIFS('Accounting Data'!C2:C100000,'Accounting Data'!E2:E100000,"001",'Accounting Data'!H2:H100000,"2??",'Accounting Data'!I2:I100000,"3???",'Accounting Data'!J2:J100000,"63??")+SUMIFS('Accounting Data'!C2:C100000,'Accounting Data'!E2:E100000,"001",'Accounting Data'!H2:H100000,"2??",'Accounting Data'!I2:I100000,"3???",'Accounting Data'!J2:J100000,"64??")+SUMIFS('Accounting Data'!C2:C100000,'Accounting Data'!E2:E100000,"001",'Accounting Data'!H2:H100000,"2??",'Accounting Data'!I2:I100000,"3???",'Accounting Data'!J2:J100000,"65??")+SUMIFS('Accounting Data'!C2:C100000,'Accounting Data'!E2:E100000,"001",'Accounting Data'!H2:H100000,"3??",'Accounting Data'!I2:I100000,"3???",'Accounting Data'!J2:J100000,"63??")+SUMIFS('Accounting Data'!C2:C100000,'Accounting Data'!E2:E100000,"001",'Accounting Data'!H2:H100000,"3??",'Accounting Data'!I2:I100000,"3???",'Accounting Data'!J2:J100000,"64??")+SUMIFS('Accounting Data'!C2:C100000,'Accounting Data'!E2:E100000,"001",'Accounting Data'!H2:H100000,"3??",'Accounting Data'!I2:I100000,"3???",'Accounting Data'!J2:J100000,"65??") -> 0 | G33: =SUMIFS('Accounting Data'!C2:C100000,'Accounting Data'!E2:E100000,"001",'Accounting Data'!H2:H100000,"2??",'Accounting Data'!I2:I100000,"3???",'Accounting Data'!J2:J100000,"66??")+SUMIFS('Accounting Data'!C2:C100000,'Accounting Data'!E2:E100000,"001",'Accounting Data'!H2:H100000,"3??",'Accounting Data'!I2:I100000,"3???",'Accounting Data'!J2:J100000,"66??") -> 0 | H33: =SUMIFS('Accounting Data'!C2:C100000,'Accounting Data'!E2:E100000,"001",'Accounting Data'!H2:H100000,"2??",'Accounting Data'!I2:I100000,"3???",'Accounting Data'!J2:J100000,"68??")+SUMIFS('Accounting Data'!C2:C100000,'Accounting Data'!E2:E100000,"001",'Accounting Data'!H2:H100000,"3??",'Accounting Data'!I2:I100000,"3???",'Accounting Data'!J2:J100000,"68??") -> 0 | I33: =[1]!F001P200F3000 -> 0 | J33: 0 | K33: =[2]!F001P200F3000 -> 0 | L33: 0 | M33: 23.
A34: Subtotal (lines 15-23) | C34: 24. | D34: =D23+D25+SUM(D27:D33) -> 1779292 | E34: =E23+E25+SUM(E27:E33) -> 527644 | F34: =F23+F25+SUM(F27:F33) -> 646797 | G34: 7359 | H34: 3321 | I34: =I23+I25+SUM(I27:I33) -> 3790504 | J34: =ROUND(J23+J25+SUM(J27:J33),0) -> 2964413 | K34: 2809719 | L34: 0.055 | M34: 24.
D35: =SUMIFS('Accounting Data'!C2:C100000,'Accounting Data'!E2:E100000,"001",'Accounting Data'!H2:H100000,"4??",'Accounting Data'!J2:J100000,"61??") -> 902450 | E35: =SUMIFS('Accounting Data'!C2:C100000,'Accounting Data'!E2:E100000,"001",'Accounting Data'!H2:H100000,"4??",'Accounting Data'!J2:J100000,"62??") -> 298291 | F35: =SUMIFS('Accounting Data'!C2:C100000,'Accounting Data'!E2:E100000,"001",'Accounting Data'!H2:H100000,"4??",'Accounting Data'!J2:J100000,"63??")+SUMIFS('Accounting Data'!C2:C100000,'Accounting Data'!E2:E100000,"001",'Accounting Data'!H2:H100000,"4??",'Accounting Data'!J2:J100000,"64??")+SUMIFS('Accounting Data'!C2:C100000,'Accounting Data'!E2:E100000,"001",'Accounting Data'!H2:H100000,"4??",'Accounting Data'!J2:J100000,"65??") -> 33271 | G35: =SUMIFS('Accounting Data'!C2:C100000,'Accounting Data'!E2:E100000,"001",'Accounting Data'!H2:H100000,"4??",'Accounting Data'!J2:J100000,"66??") -> 315452 | H35: =SUMIFS('Accounting Data'!C2:C100000,'Accounting Data'!E2:E100000,"001",'Accounting Data'!H2:H100000,"4??",'Accounting Data'!J2:J100000,"68??") -> 300 | I35: =[1]!F001P400 -> 1888390 | J35: =SUM(D35:H35) -> 1549764 | K35: =[2]!F001P400 -> 1272698 | L35: =IF(J35=K35,0,IF(K35>0,(J35-K35)/K35,"--")) -> 0.218 | M35: 26.
A36: 400 Pupil Transportation | C36: 25. | M36: 25.
A37: 510 Desegregation | D37: =[3]Districtwide!$D$66 -> 0 | E37: =[3]Districtwide!$E$66 -> 0 | F37: =[3]Districtwide!$F$66 -> 0 | G37: =[3]Districtwide!$G$66 -> 0 | H37: =[3]Districtwide!$H$66 -> 0 | I37: =[3]Districtwide!$I$66 -> 0 | J37: =[3]Districtwide!$J$66 -> 0 | K37: =[2]!F001P510 -> 0 | L37: =IF(J37=K37,0,IF(K37>0,(J37-K37)/K37,"--")) -> 0
A38: (from Districtwide Desegregation Expenditures, page 2, line 44) | C38: 26. | M38: 26.
A39: 530 Dropout Prevention Programs | D39: =SUMIFS('Accounting Data'!C2:C100000,'Accounting Data'!E2:E100000,"001",'Accounting Data'!H2:H100000,"53?",'Accounting Data'!I2:I100000,"1???",'Accounting Data'!J2:J100000,"61??") -> 48772 | E39: =SUMIFS('Accounting Data'!C2:C100000,'Accounting Data'!E2:E100000,"001",'Accounting Data'!H2:H100000,"53?",'Accounting Data'!I2:I100000,"1???",'Accounting Data'!J2:J100000,"62??") -> 6469 | F39: =SUMIFS('Accounting Data'!C2:C100000,'Accounting Data'!E2:E100000,"001",'Accounting Data'!H2:H100000,"53?",'Accounting Data'!I2:I100000,"1???",'Accounting Data'!J2:J100000,"63??")+SUMIFS('Accounting Data'!C2:C100000,'Accounting Data'!E2:E100000,"001",'Accounting Data'!H2:H100000,"53?",'Accounting Data'!I2:I100000,"1???",'Accounting Data'!J2:J100000,"64??")+SUMIFS('Accounting Data'!C2:C100000,'Accounting Data'!E2:E100000,"001",'Accounting Data'!H2:H100000,"53?",'Accounting Data'!I2:I100000,"1???",'Accounting Data'!J2:J100000,"65??") -> 0 | G39: =SUMIFS('Accounting Data'!C2:C100000,'Accounting Data'!E2:E100000,"001",'Accounting Data'!H2:H100000,"53?",'Accounting Data'!I2:I100000,"1???",'Accounting Data'!J2:J100000,"66??") -> 0 | H39: =SUMIFS('Accounting Data'!C2:C100000,'Accounting Data'!E2:E100000,"001",'Accounting Data'!H2:H100000,"53?",'Accounting Data'!I2:I100000,"1???",'Accounting Data'!J2:J100000,"68??") -> 0 | J39: =SUM(D39:H39) -> 55241 | K39: =[2]!F001P530F1000 -> 0 | L39: =IF(J39=K39,0,IF(K39>0,(J39-K39)/K39,"--")) -> --
A40: 1000 Instruction | C40: 27. | M40: 27.
A41: 2000-3000 Support Serv. & Oper. of Noninstructional Serv. | C41: 28. | D41: =SUMIFS('Accounting Data'!C2:C100000,'Accounting Data'!E2:E100000,"001",'Accounting Data'!H2:H100000,"53?",'Accounting Data'!I2:I100000,"2???",'Accounting Data'!J2:J100000,"61??")+SUMIFS('Accounting Data'!C2:C100000,'Accounting Data'!E2:E100000,"001",'Accounting Data'!H2:H100000,"53?",'Accounting Data'!I2:I100000,"3???",'Accounting Data'!J2:J100000,"61??") -> 0 | E41: =SUMIFS('Accounting Data'!C2:C100000,'Accounting Data'!E2:E100000,"001",'Accounting Data'!H2:H100000,"53?",'Accounting Data'!I2:I100000,"2???",'Accounting Data'!J2:J100000,"62??")+SUMIFS('Accounting Data'!C2:C100000,'Accounting Data'!E2:E100000,"001",'Accounting Data'!H2:H100000,"53?",'Accounting Data'!I2:I100000,"3???",'Accounting Data'!J2:J100000,"62??") -> 0 | F41: =SUMIFS('Accounting Data'!C2:C100000,'Accounting Data'!E2:E100000,"001",'Accounting Data'!H2:H100000,"53?",'Accounting Data'!I2:I100000,"2???",'Accounting Data'!J2:J100000,"63??")+SUMIFS('Accounting Data'!C2:C100000,'Accounting Data'!E2:E100000,"001",'Accounting Data'!H2:H100000,"53?",'Accounting Data'!I2:I100000,"2???",'Accounting Data'!J2:J100000,"64??")+SUMIFS('Accounting Data'!C2:C100000,'Accounting Data'!E2:E100000,"001",'Accounting Data'!H2:H100000,"53?",'Accounting Data'!I2:I100000,"2???",'Accounting Data'!J2:J100000,"65??")+SUMIFS('Accounting Data'!C2:C100000,'Accounting Data'!E2:E100000,"001",'Accounting Data'!H2:H100000,"53?",'Accounting Data'!I2:I100000,"3???",'Accounting Data'!J2:J100000,"63??")+SUMIFS('Accounting Data'!C2:C100000,'Accounting Data'!E2:E100000,"001",'Accounting Data'!H2:H100000,"53?",'Accounting Data'!I2:I100000,"3???",'Accounting Data'!J2:J100000,"64??")+SUMIFS('Accounting Data'!C2:C100000,'Accounting Data'!E2:E100000,"001",'Accounting Data'!H2:H100000,"53?",'Accounting Data'!I2:I100000,"3???",'Accounting Data'!J2:J100000,"65??") -> 0 | G41: =SUMIFS('Accounting Data'!C2:C100000,'Accounting Data'!E2:E100000,"001",'Accounting Data'!H2:H100000,"53?",'Accounting Data'!I2:I100000,"2???",'Accounting Data'!J2:J100000,"66??")+SUMIFS('Accounting Data'!C2:C100000,'Accounting Data'!E2:E100000,"001",'Accounting Data'!H2:H100000,"53?",'Accounting Data'!I2:I100000,"3???",'Accounting Data'!J2:J100000,"66??") -> 0 | H41: =SUMIFS('Accounting Data'!C2:C100000,'Accounting Data'!E2:E100000,"001",'Accounting Data'!H2:H100000,"53?",'Accounting Data'!I2:I100000,"2???",'Accounting Data'!J2:J100000,"68??")+SUMIFS('Accounting Data'!C2:C100000,'Accounting Data'!E2:E100000,"001",'Accounting Data'!H2:H100000,"53?",'Accounting Data'!I2:I100000,"3???",'Accounting Data'!J2:J100000,"68??") -> 0 | J41: =SUM(D41:H41) -> 0 | K41: =[2]!F001P530F20003000 -> 0 | L41: =IF(J41=K41,0,IF(K41>0,(J41-K41)/K41,"--")) -> 0 | M41: 28.
A42: Subtotal (lines 27 and 28) | C42: 29. | D42: =SUM(D39:D41) -> 48772 | E42: =SUM(E39:E41) -> 6469 | F42: =SUM(F39:F41) -> 0 | G42: =SUM(G39:G41) -> 0 | H42: =SUM(H39:H41) -> 0 | I42: =[1]!F001P530 -> 0 | J42: =J39+J41 -> 55241 | K42: =SUM(K39:K41) -> 0 | L42: =IF(J42=K42,0,IF(K42>0,(J42-K42)/K42,"--")) -> -- | M42: 29.
A43: 540 Joint Career and Technical Education and Vocational | D43: 0 | E43: 0 | F43: 0 | G43: 0 | H43: 0 | I43: 0 | J43: =SUM(D43:H43) -> 0 | K43: =[2]!F001P540 -> 0 | L43: =IF(J43=K43,0,IF(K43>0,(J43-K43)/K43,"--")) -> 0
A44: Education Center | C44: 30. | M44: 30.
A45: 550 K-3 Reading Program | C45: 31. | D45: =SUMIFS('Accounting Data'!C2:C100000,'Accounting Data'!E2:E100000,"001",'Accounting Data'!H2:H100000,"55?",'Accounting Data'!J2:J100000,"61??") -> 81197 | E45: =SUMIFS('Accounting Data'!C2:C100000,'Accounting Data'!E2:E100000,"001",'Accounting Data'!H2:H100000,"55?",'Accounting Data'!J2:J100000,"62??") -> 16754 | F45: =SUMIFS('Accounting Data'!C2:C100000,'Accounting Data'!E2:E100000,"001",'Accounting Data'!H2:H100000,"55?",'Accounting Data'!J2:J100000,"63??")+SUMIFS('Accounting Data'!C2:C100000,'Accounting Data'!E2:E100000,"001",'Accounting Data'!H2:H100000,"55?",'Accounting Data'!J2:J100000,"64??")+SUMIFS('Accounting Data'!C2:C100000,'Accounting Data'!E2:E100000,"001",'Accounting Data'!H2:H100000,"55?",'Accounting Data'!J2:J100000,"65??") -> 0 | G45: =SUMIFS('Accounting Data'!C2:C100000,'Accounting Data'!E2:E100000,"001",'Accounting Data'!H2:H100000,"55?",'Accounting Data'!J2:J100000,"66??") -> 0 | H45: =SUMIFS('Accounting Data'!C2:C100000,'Accounting Data'!E2:E100000,"001",'Accounting Data'!H2:H100000,"55?",'Accounting Data'!J2:J100000,"68??") -> 0 | I45: =[1]!F001P550 -> 108326 | J45: =SUM(D45:H45) -> 97951 | K45: =[2]!F001P550TotActExp -> 69049 | L45: =IF(J45=K45,0,IF(K45>0,(J45-K45)/K45,"--")) -> 0.419 | M45: 31.
A46: Total Expenditures (lines 14, 24-26, 29-31) | C46: 32. | D46: =D22+D34+D35+D37+D42+D43+D45 -> 10830005 | E46: 3044477 | F46: 1446292 | G46: 1606389 | H46: 109784 | I46: =I22+I34+I35+I37+I42+I43+I45 -> 20868380 | J46: =J22+J34+J35+J37+J42+J43+J45 -> 17036947 | K46: 16457963 | L46: =IF(J46=K46,0,IF(K46>0,(J46-K46)/K46,"--")) -> 0.035 | M46: 32.

Sheet Page 3
A1: DISTRICT NAME | B1: =CoverDistrictName -> Page Unified School District | H1: COUNTY | I1: =County -> Coconino | M1: CTDS NUMBER | N1: =Cover!Q1 -> 030208000
E2: CLASSROOM SITE FUND—REVENUES, EXPENDITURES, AND FUND BALANCES
D3: Beginning | K3: Debt Service | L3: Total Expenditures | O3: % Increase/ Decrease in Actual | P3: Ending
D4: Fund | E4: Actual | F4: Salaries | G4: Employee Benefits | H4: Purchased Services | I4: Supplies | J4: Property | K4: and Miscellaneous | L4: Budget | M4: Actual | N4: Prior Year Actual | P4: Fund
D5: Balance | E5: Revenues | F5: 6100 | G5: 6200 | H5: 6300, 6400,6500 | I5: 6600 | J5: 6700 | K5: 6800 | P5: Balance
A6: Classroom Site Fund 010
A7: Revenues
A8: CSF Revenue | C8: 1. | E8: =-(SUMIFS('Accounting Data'!C2:C100000,'Accounting Data'!E2:E100000,"010",'Accounting Data'!J2:J100000,"3???")) -> 2030962 | Q8: 1.
A9: Interest Income and Other Revenues | C9: 2. | E9: =-(SUMIFS('Accounting Data'!C2:C100000,'Accounting Data'!E2:E100000,"010",'Accounting Data'!J2:J100000,"15??")+SUMIFS('Accounting Data'!C2:C100000,'Accounting Data'!E2:E100000,"010",'Accounting Data'!J2:J100000,"198?")+(SUMIFS('Accounting Data'!C2:C100000,'Accounting Data'!E2:E100000,"010",'Accounting Data'!J2:J100000,"199?"))) -> 47595 | Q9: 2.
A10: Total Revenues (lines 1 and 2) | C10: 3. | E10: =SUM(E8:E9) -> 2078557 | Q10: 3.
A11: Expenditures
A12: 1000 Instruction | C12: 4. | F12: =SUMIFS('Accounting Data'!C2:C100000,'Accounting Data'!E2:E100000,"010",'Accounting Data'!I2:I100000,"1???",'Accounting Data'!J2:J100000,"61??") -> 1096771 | G12: =SUMIFS('Accounting Data'!C2:C100000,'Accounting Data'!E2:E100000,"010",'Accounting Data'!I2:I100000,"1???",'Accounting Data'!J2:J100000,"62??") -> 165515 | H12: =SUM(SUMIFS('Accounting Data'!C2:C100000,'Accounting Data'!E2:E100000,"010",'Accounting Data'!I2:I100000,"1???",'Accounting Data'!J2:J100000,{"63??","64??","65??"})) -> 0 | I12: =SUMIFS('Accounting Data'!C2:C100000,'Accounting Data'!E2:E100000,"010",'Accounting Data'!I2:I100000,"1???",'Accounting Data'!J2:J100000,"66??") -> 0 | J12: =SUMIFS('Accounting Data'!C2:C100000,'Accounting Data'!E2:E100000,"010",'Accounting Data'!I2:I100000,"1???",'Accounting Data'!J2:J100000,"67??") -> 0 | K12: =SUMIFS('Accounting Data'!C2:C100000,'Accounting Data'!E2:E100000,"010",'Accounting Data'!I2:I100000,"1???",'Accounting Data'!J2:J100000,"68??") -> 0 | L12: =[1]!F010F1000 -> 4126597 | M12: =SUM(F12:K12) -> 1262286 | N12: =[2]!F010F1000 -> 1075774 | O12: =IF(M12=N12,0,IF(N12>0,(M12-N12)/N12,"--")) -> 0.173 | Q12: 4.
A13: 2100 Support Services - Students | C13: 5. | F13: =SUMIFS('Accounting Data'!C2:C100000,'Accounting Data'!E2:E100000,"010",'Accounting Data'!I2:I100000,"21??",'Accounting Data'!J2:J100000,"61??") -> 67455 | G13: =SUMIFS('Accounting Data'!C2:C100000,'Accounting Data'!E2:E100000,"010",'Accounting Data'!I2:I100000,"21??",'Accounting Data'!J2:J100000,"62??") -> 14077 | H13: =SUM(SUMIFS('Accounting Data'!C2:C100000,'Accounting Data'!E2:E100000,"010",'Accounting Data'!I2:I100000,"21??",'Accounting Data'!J2:J100000,{"63??","64??","65??"})) -> 0 | I13: =SUMIFS('Accounting Data'!C2:C100000,'Accounting Data'!E2:E100000,"010",'Accounting Data'!I2:I100000,"21??",'Accounting Data'!J2:J100000,"66??") -> 0 | J13: =SUMIFS('Accounting Data'!C2:C100000,'Accounting Data'!E2:E100000,"010",'Accounting Data'!I2:I100000,"21??",'Accounting Data'!J2:J100000,"67??") -> 0 | K13: =SUMIFS('Accounting Data'!C2:C100000,'Accounting Data'!E2:E100000,"010",'Accounting Data'!I2:I100000,"21??",'Accounting Data'!J2:J100000,"68??") -> 0 | L13: =[1]!F010F2100 -> 310524 | M13: 81532 | N13: =[2]!F010F2100 -> 81821 | O13: =IF(M13=N13,0,IF(N13>0,(M13-N13)/N13,"--")) -> -0.004 | Q13: 5.
A14: 2200 Support Services - Instructional Staff | C14: 6. | F14: =SUMIFS('Accounting Data'!C2:C100000,'Accounting Data'!E2:E100000,"010",'Accounting Data'!I2:I100000,"22??",'Accounting Data'!J2:J100000,"61??") -> 37881 | G14: =SUMIFS('Accounting Data'!C2:C100000,'Accounting Data'!E2:E100000,"010",'Accounting Data'!I2:I100000,"22??",'Accounting Data'!J2:J100000,"62??") -> 8067 | H14: =SUM(SUMIFS('Accounting Data'!C2:C100000,'Accounting Data'!E2:E100000,"010",'Accounting Data'!I2:I100000,"22??",'Accounting Data'!J2:J100000,{"63??","64??","65??"})) -> 0 | I14: =SUMIFS('Accounting Data'!C2:C100000,'Accounting Data'!E2:E100000,"010",'Accounting Data'!I2:I100000,"22??",'Accounting Data'!J2:J100000,"66??") -> 0 | K14: =SUMIFS('Accounting Data'!C2:C100000,'Accounting Data'!E2:E100000,"010",'Accounting Data'!I2:I100000,"22??",'Accounting Data'!J2:J100000,"68??") -> 0 | L14: =[1]!F010F2200 -> 126710 | M14: 45948 | N14: =[2]!F010F2200 -> 160896 | O14: -0.714 | Q14: 6.
A15: 2300 Support Services - General Administration | C15: 7. | H15: =SUMIFS('Accounting Data'!C2:C100000,'Accounting Data'!E2:E100000,"010",'Accounting Data'!I2:I100000,"23??",'Accounting Data'!J2:J100000,"652?") -> 0 | L15: =[1]!F010F2310 -> 0 | M15: 0 | N15: =[2]!F010F2300 -> 0 | O15: 0 | Q15: 7.
A16: 2500 Central Services | C16: 8. | K16: =SUMIFS('Accounting Data'!C2:C100000,'Accounting Data'!E2:E100000,"010",'Accounting Data'!I2:I100000,"25??",'Accounting Data'!J2:J100000,"68??") -> 0 | L16: =[1]!F010F2510 -> 0 | M16: 0 | N16: =[2]!F010F2500 -> 0 | O16: 0 | Q16: 8.
A17: 3300 Community Services Operations | C17: 9. | F17: =SUMIFS('Accounting Data'!C2:C100000,'Accounting Data'!E2:E100000,"010",'Accounting Data'!I2:I100000,"33??",'Accounting Data'!J2:J100000,"61??") -> 9122 | G17: =SUMIFS('Accounting Data'!C2:C100000,'Accounting Data'!E2:E100000,"010",'Accounting Data'!I2:I100000,"33??",'Accounting Data'!J2:J100000,"62??") -> 1963 | H17: =SUM(SUMIFS('Accounting Data'!C2:C100000,'Accounting Data'!E2:E100000,"010",'Accounting Data'!I2:I100000,"33??",'Accounting Data'!J2:J100000,{"63??","64??","65??"})) -> 0 | L17: =[1]!F010F3300 -> 0 | M17: 11085 | N17: =[2]!F010F3300 -> 494 | O17: 21.439 | Q17: 9.
A18: 4000 Facilities Acquisition and Construction | C18: 10. | J18: =SUMIFS('Accounting Data'!C2:C100000,'Accounting Data'!E2:E100000,"010",'Accounting Data'!I2:I100000,"4???",'Accounting Data'!J2:J100000,"67??") -> 0 | L18: =[1]!F010F4000 -> 0 | M18: 0 | N18: =[2]!F010F4000 -> 0 | O18: 0 | Q18: 10.
A19: 5000 Debt Service | C19: 11. | K19: =SUMIFS('Accounting Data'!C2:C100000,'Accounting Data'!E2:E100000,"010",'Accounting Data'!I2:I100000,"5???",'Accounting Data'!J2:J100000,"68??") -> 0 | L19: =[1]!F010F5000 -> 0 | M19: 0 | N19: =[2]!F010F5000 -> 0 | O19: 0 | Q19: 11.
A20: Total Expenditures (lines 4-11) | C20: 12. | F20: =SUM(F12:F19) -> 1211229 | G20: 189622 | H20: 0 | I20: 0 | J20: 0 | K20: 0 | L20: =[1]!F010TotalExp -> 4563831 | M20: 1400851 | N20: =[2]!F010TotActExp -> 1318985 | O20: 0.062 | Q20: 12.
A21: Total Classroom Site Fund | C21: 13. | D21: ='Accounting Data'!R3 -> 2487422 | E21: =E10 -> 2078557 | F21: =F20 -> 1211229 | G21: =G20 -> 189622 | H21: 0 | I21: 0 | J21: 0 | K21: 0 | L21: 4563831 | M21: 1400851 | N21: =N20 -> 1318985 | O21: =IF(M21=N21,0,IF(N21>0,(M21-N21)/N21,"--")) -> 0.062 | P21: =D21+E21-M21 -> 3165128 | Q21: 13.

Sheet Page 4
A1: DISTRICT NAME | B1: =CoverDistrictName -> Page Unified School District | F1: COUNTY | G1: =County -> Coconino | K1: CTDS NUMBER | L1: =Cover!Q1 -> 030208000
A2: UNRESTRICTED CAPITAL OUTLAY (610) FUND—EXPENDITURES
E4: Library Books, | F4: Short-term Noninstructional Software Subscription | K4: Totals | N4: %
E5: Textbooks, & | H5: Redemption of | I5: Interest | J5: All Other | N5: Increase/
A6: Expenditures | D6: Rentals | E6: Instructional Aids | G6: Property | H6: Principal | I6: 6841, 6842, 6843, 6850 | J6: Object Codes | K6: Budget | L6: Actual | M6: Prior Year Actual | N6: Decrease
D7: 6440 | E7: 6641-6643 | F7: 6655 | G7: 6700 | H7: 6831, 6832, 6833 | J7: (excluding 6900) | N7: in Actual | AB7: =IF(OR(AB8="yes",AA42="yes",AA50="yes"),"yes","") -> 
A8: Unrestricted Capital Outlay Override (1) | C8: 1. | D8: 0 | E8: 0 | F8: 0 | G8: 0 | H8: 0 | I8: 0 | J8: 0 | K8: =[1]!F610Override -> 0 | L8: =SUM(D8:J8) -> 0 | M8: =[2]!F610override -> 0 | N8: =IF(L8=M8,0,IF(M8>0,(L8-M8)/M8,"--")) -> 0 | O8: 1. | AB8: =IF(OR(D8="",E8="",G8="",H8="",I8="",J8="",K22=""),"yes","") -> 
A9: Unrestricted Capital Outlay Fund 610 (2) | D9: =SUMIFS('Accounting Data'!C2:C100000,'Accounting Data'!E2:E100000,"610",'Accounting Data'!I2:I100000,"1???",'Accounting Data'!J2:J100000,"644?") -> 0 | E9: =SUMIFS('Accounting Data'!C2:C100000,'Accounting Data'!E2:E100000,"610",'Accounting Data'!I2:I100000,"1???",'Accounting Data'!J2:J100000,"6641")+SUMIFS('Accounting Data'!C2:C100000,'Accounting Data'!E2:E100000,"610",'Accounting Data'!I2:I100000,"1???",'Accounting Data'!J2:J100000,"6642")+SUMIFS('Accounting Data'!C2:C100000,'Accounting Data'!E2:E100000,"610",'Accounting Data'!I2:I100000,"1???",'Accounting Data'!J2:J100000,"6643") -> 500799 | G9: =SUMIFS('Accounting Data'!C2:C100000,'Accounting Data'!E2:E100000,"610",'Accounting Data'!I2:I100000,"1???",'Accounting Data'!J2:J100000,"67??") -> 224648 | J9: =SUMIFS('Accounting Data'!C2:C100000,'Accounting Data'!E2:E100000,"610",'Accounting Data'!I2:I100000,"1???",'Accounting Data'!J2:J100000,"6???")-SUMIFS('Accounting Data'!C2:C100000,'Accounting Data'!E2:E100000,"610",'Accounting Data'!I2:I100000,"1???",'Accounting Data'!J2:J100000,"69??")-D9-E9-G9 -> 2316 | K9: =[1]!F610F1000 -> 871000 | L9: =SUM(D9:G9)+J9 -> 727763 | M9: =[2]!F610F1000 -> 93407 | N9: =IF(L9=M9,0,IF(M9>0,(L9-M9)/M9,"--")) -> 6.791
A10: 1000 Instruction | C10: 2. | O10: 2.
A11: 2000 Support Services | D11: =SUMIFS('Accounting Data'!C2:C100000,'Accounting Data'!E2:E100000,"610",'Accounting Data'!I2:I100000,"21??",'Accounting Data'!J2:J100000,"644?")+SUMIFS('Accounting Data'!C2:C100000,'Accounting Data'!E2:E100000,"610",'Accounting Data'!I2:I100000,"22??",'Accounting Data'!J2:J100000,"644?") -> 0 | E11: =SUMIFS('Accounting Data'!C2:C100000,'Accounting Data'!E2:E100000,"610",'Accounting Data'!I2:I100000,"21??",'Accounting Data'!J2:J100000,"6641")+SUMIFS('Accounting Data'!C2:C100000,'Accounting Data'!E2:E100000,"610",'Accounting Data'!I2:I100000,"21??",'Accounting Data'!J2:J100000,"6642")+SUMIFS('Accounting Data'!C2:C100000,'Accounting Data'!E2:E100000,"610",'Accounting Data'!I2:I100000,"21??",'Accounting Data'!J2:J100000,"6643")+SUMIFS('Accounting Data'!C2:C100000,'Accounting Data'!E2:E100000,"610",'Accounting Data'!I2:I100000,"22??",'Accounting Data'!J2:J100000,"6641")+SUMIFS('Accounting Data'!C2:C100000,'Accounting Data'!E2:E100000,"610",'Accounting Data'!I2:I100000,"22??",'Accounting Data'!J2:J100000,"6642")+SUMIFS('Accounting Data'!C2:C100000,'Accounting Data'!E2:E100000,"610",'Accounting Data'!I2:I100000,"22??",'Accounting Data'!J2:J100000,"6643") -> 6351 | F11: =SUM(SUMIFS('Accounting Data'!C2:C100000,'Accounting Data'!E2:E100000,"610",'Accounting Data'!I2:I100000,{"21??","22??"},'Accounting Data'!J2:J100000,"6655")) -> 160 | G11: =SUMIFS('Accounting Data'!C2:C100000,'Accounting Data'!E2:E100000,"610",'Accounting Data'!I2:I100000,"21??",'Accounting Data'!J2:J100000,"67??")+SUMIFS('Accounting Data'!C2:C100000,'Accounting Data'!E2:E100000,"610",'Accounting Data'!I2:I100000,"22??",'Accounting Data'!J2:J100000,"67??") -> 5509 | J11: =(SUMIFS('Accounting Data'!C2:C100000,'Accounting Data'!E2:E100000,"610",'Accounting Data'!I2:I100000,"21??",'Accounting Data'!J2:J100000,"6???")+SUMIFS('Accounting Data'!C2:C100000,'Accounting Data'!E2:E100000,"610",'Accounting Data'!I2:I100000,"22??",'Accounting Data'!J2:J100000,"6???"))-(SUMIFS('Accounting Data'!C2:C100000,'Accounting Data'!E2:E100000,"610",'Accounting Data'!I2:I100000,"21??",'Accounting Data'!J2:J100000,"69??")+SUMIFS('Accounting Data'!C2:C100000,'Accounting Data'!E2:E100000,"610",'Accounting Data'!I2:I100000,"22??",'Accounting Data'!J2:J100000,"69??"))-D11-E11-G11-F11 -> 271 | K11: =[1]!F610F21002200 -> 27500 | L11: =SUM(D11:G11)+J11 -> 12291 | M11: =[2]!F610F21002200 -> 13936 | N11: =IF(L11=M11,0,IF(M11>0,(L11-M11)/M11,"--")) -> -0.118
A12: 2100, 2200 Students and Instructional Staff | C12: 3. | O12: 3.
A13: 2300, 2400, 2500, 2900 Administration | C13: 4. | D13: =SUMIFS('Accounting Data'!C2:C100000,'Accounting Data'!E2:E100000,"610",'Accounting Data'!I2:I100000,"23??",'Accounting Data'!J2:J100000,"644?")+SUMIFS('Accounting Data'!C2:C100000,'Accounting Data'!E2:E100000,"610",'Accounting Data'!I2:I100000,"24??",'Accounting Data'!J2:J100000,"644?")+SUMIFS('Accounting Data'!C2:C100000,'Accounting Data'!E2:E100000,"610",'Accounting Data'!I2:I100000,"25??",'Accounting Data'!J2:J100000,"644?")+SUMIFS('Accounting Data'!C2:C100000,'Accounting Data'!E2:E100000,"610",'Accounting Data'!I2:I100000,"29??",'Accounting Data'!J2:J100000,"644?") -> 0 | F13: =SUM(SUMIFS('Accounting Data'!C2:C100000,'Accounting Data'!E2:E100000,"610",'Accounting Data'!I2:I100000,{"23??","24??","25??","29??"},'Accounting Data'!J2:J100000,"6655")) -> 0 | G13: =SUMIFS('Accounting Data'!C2:C100000,'Accounting Data'!E2:E100000,"610",'Accounting Data'!I2:I100000,"23??",'Accounting Data'!J2:J100000,"67??")+SUMIFS('Accounting Data'!C2:C100000,'Accounting Data'!E2:E100000,"610",'Accounting Data'!I2:I100000,"24??",'Accounting Data'!J2:J100000,"67??")+SUMIFS('Accounting Data'!C2:C100000,'Accounting Data'!E2:E100000,"610",'Accounting Data'!I2:I100000,"25??",'Accounting Data'!J2:J100000,"67??")+SUMIFS('Accounting Data'!C2:C100000,'Accounting Data'!E2:E100000,"610",'Accounting Data'!I2:I100000,"29??",'Accounting Data'!J2:J100000,"67??") -> 283 | I13: =SUMIFS('Accounting Data'!C2:C100000,'Accounting Data'!E2:E100000,"610",'Accounting Data'!I2:I100000,"25??",'Accounting Data'!J2:J100000,"6850") -> 0 | J13: =(SUMIFS('Accounting Data'!C2:C100000,'Accounting Data'!E2:E100000,"610",'Accounting Data'!I2:I100000,"23??",'Accounting Data'!J2:J100000,"6???")+SUMIFS('Accounting Data'!C2:C100000,'Accounting Data'!E2:E100000,"610",'Accounting Data'!I2:I100000,"24??",'Accounting Data'!J2:J100000,"6???")+SUMIFS('Accounting Data'!C2:C100000,'Accounting Data'!E2:E100000,"610",'Accounting Data'!I2:I100000,"25??",'Accounting Data'!J2:J100000,"6???")+SUMIFS('Accounting Data'!C2:C100000,'Accounting Data'!E2:E100000,"610",'Accounting Data'!I2:I100000,"29??",'Accounting Data'!J2:J100000,"6???"))-(SUMIFS('Accounting Data'!C2:C100000,'Accounting Data'!E2:E100000,"610",'Accounting Data'!I2:I100000,"23??",'Accounting Data'!J2:J100000,"69??")+SUMIFS('Accounting Data'!C2:C100000,'Accounting Data'!E2:E100000,"610",'Accounting Data'!I2:I100000,"24??",'Accounting Data'!J2:J100000,"69??")+SUMIFS('Accounting Data'!C2:C100000,'Accounting Data'!E2:E100000,"610",'Accounting Data'!I2:I100000,"25??",'Accounting Data'!J2:J100000,"69??")+SUMIFS('Accounting Data'!C2:C100000,'Accounting Data'!E2:E100000,"610",'Accounting Data'!I2:I100000,"29??",'Accounting Data'!J2:J100000,"69??"))-D13-G13-I13-F13 -> 31 | K13: =[1]!F610F2300240025002900 -> 19500 | L13: =D13+F13+G13+SUM(I13:J13) -> 314 | M13: =[2]!F610F2300240025002900 -> 30805 | N13: =IF(L13=M13,0,IF(M13>0,(L13-M13)/M13,"--")) -> -0.99 | O13: 4.
A14: 2600 Operation & Maintenance of Plant | C14: 5. | D14: =SUMIFS('Accounting Data'!C2:C100000,'Accounting Data'!E2:E100000,"610",'Accounting Data'!I2:I100000,"26??",'Accounting Data'!J2:J100000,"644?") -> 0 | F14: =SUM(SUMIFS('Accounting Data'!C2:C100000,'Accounting Data'!E2:E100000,"610",'Accounting Data'!I2:I100000,"26??",'Accounting Data'!J2:J100000,"6655")) -> 0 | G14: =SUMIFS('Accounting Data'!C2:C100000,'Accounting Data'!E2:E100000,"610",'Accounting Data'!I2:I100000,"26??",'Accounting Data'!J2:J100000,"67??") -> 439278 | J14: =SUMIFS('Accounting Data'!C2:C100000,'Accounting Data'!E2:E100000,"610",'Accounting Data'!I2:I100000,"26??",'Accounting Data'!J2:J100000,"6???")-SUMIFS('Accounting Data'!C2:C100000,'Accounting Data'!E2:E100000,"610",'Accounting Data'!I2:I100000,"26??",'Accounting Data'!J2:J100000,"69??")-D14-G14-F14 -> 0 | K14: =[1]!F610F2600 -> 600000 | L14: =D14+G14+J14+F14 -> 439278 | M14: =[2]!F610F2600 -> 436260 | N14: =IF(L14=M14,0,IF(M14>0,(L14-M14)/M14,"--")) -> 0.007 | O14: 5.
A15: 2700 Student Transportation | C15: 6. | D15: =SUMIFS('Accounting Data'!C2:C100000,'Accounting Data'!E2:E100000,"610",'Accounting Data'!I2:I100000,"27??",'Accounting Data'!J2:J100000,"644?") -> 0 | F15: =SUM(SUMIFS('Accounting Data'!C2:C100000,'Accounting Data'!E2:E100000,"610",'Accounting Data'!I2:I100000,"27??",'Accounting Data'!J2:J100000,"6655")) -> 0 | G15: =SUMIFS('Accounting Data'!C2:C100000,'Accounting Data'!E2:E100000,"610",'Accounting Data'!I2:I100000,"27??",'Accounting Data'!J2:J100000,"67??") -> 463 | J15: =SUMIFS('Accounting Data'!C2:C100000,'Accounting Data'!E2:E100000,"610",'Accounting Data'!I2:I100000,"27??",'Accounting Data'!J2:J100000,"6???")-SUMIFS('Accounting Data'!C2:C100000,'Accounting Data'!E2:E100000,"610",'Accounting Data'!I2:I100000,"27??",'Accounting Data'!J2:J100000,"69??")-D15-G15-F15 -> 0 | K15: =[1]!F610F2700 -> 198051 | L15: =D15+G15+J15+F15 -> 463 | M15: =[2]!F610F2700 -> 0 | N15: -- | O15: 6.
A16: 3000 Operation of Noninstructional Services | C16: 7. | D16: =SUMIFS('Accounting Data'!C2:C100000,'Accounting Data'!E2:E100000,"610",'Accounting Data'!I2:I100000,"3???",'Accounting Data'!J2:J100000,"644?") -> 0 | F16: =SUM(SUMIFS('Accounting Data'!C2:C100000,'Accounting Data'!E2:E100000,"610",'Accounting Data'!I2:I100000,"3???",'Accounting Data'!J2:J100000,"6655")) -> 0 | G16: =SUMIFS('Accounting Data'!C2:C100000,'Accounting Data'!E2:E100000,"610",'Accounting Data'!I2:I100000,"3???",'Accounting Data'!J2:J100000,"67??") -> 0 | J16: =SUMIFS('Accounting Data'!C2:C100000,'Accounting Data'!E2:E100000,"610",'Accounting Data'!I2:I100000,"3???",'Accounting Data'!J2:J100000,"6???")-SUMIFS('Accounting Data'!C2:C100000,'Accounting Data'!E2:E100000,"610",'Accounting Data'!I2:I100000,"3???",'Accounting Data'!J2:J100000,"69??")-D16-G16-F16 -> 0 | K16: =[1]!F610F3000 -> 30000 | L16: =D16+G16+J16+F16 -> 0 | M16: =[2]!F610F3000 -> 19180 | N16: -1 | O16: 7.
A17: 4000 Facilities Acquisition and Construction | C17: 8. | D17: =SUMIFS('Accounting Data'!C2:C100000,'Accounting Data'!E2:E100000,"610",'Accounting Data'!I2:I100000,"4???",'Accounting Data'!J2:J100000,"644?") -> 0 | F17: =SUM(SUMIFS('Accounting Data'!C2:C100000,'Accounting Data'!E2:E100000,"610",'Accounting Data'!I2:I100000,"4???",'Accounting Data'!J2:J100000,"6655")) -> 0 | G17: =SUMIFS('Accounting Data'!C2:C100000,'Accounting Data'!E2:E100000,"610",'Accounting Data'!I2:I100000,"4???",'Accounting Data'!J2:J100000,"67??") -> 0 | J17: =SUMIFS('Accounting Data'!C2:C100000,'Accounting Data'!E2:E100000,"610",'Accounting Data'!I2:I100000,"4???",'Accounting Data'!J2:J100000,"6???")-SUMIFS('Accounting Data'!C2:C100000,'Accounting Data'!E2:E100000,"610",'Accounting Data'!I2:I100000,"4???",'Accounting Data'!J2:J100000,"69??")-D17-G17-F17 -> 97294 | K17: =[1]!F610F4000 -> 300000 | L17: =D17+G17+J17+F17 -> 97294 | M17: =[2]!F610F4000 -> 0 | N17: -- | O17: 8.
A18: 5000 Debt Service | C18: 9. | H18: =SUMIFS('Accounting Data'!C2:C100000,'Accounting Data'!E2:E100000,"610",'Accounting Data'!I2:I100000,"5???",'Accounting Data'!J2:J100000,"6831")+SUMIFS('Accounting Data'!C2:C100000,'Accounting Data'!E2:E100000,"610",'Accounting Data'!I2:I100000,"5???",'Accounting Data'!J2:J100000,"6832")+SUMIFS('Accounting Data'!C2:C100000,'Accounting Data'!E2:E100000,"610",'Accounting Data'!I2:I100000,"5???",'Accounting Data'!J2:J100000,"6833") -> 0 | I18: =SUMIFS('Accounting Data'!C2:C100000,'Accounting Data'!E2:E100000,"610",'Accounting Data'!I2:I100000,"5???",'Accounting Data'!J2:J100000,"6841")+SUMIFS('Accounting Data'!C2:C100000,'Accounting Data'!E2:E100000,"610",'Accounting Data'!I2:I100000,"5???",'Accounting Data'!J2:J100000,"6842")+SUMIFS('Accounting Data'!C2:C100000,'Accounting Data'!E2:E100000,"610",'Accounting Data'!I2:I100000,"5???",'Accounting Data'!J2:J100000,"6843") -> 0 | K18: =[1]!F610F5000 -> 0 | L18: =SUM(H18:I18) -> 0 | M18: =[2]!F610F5000 -> 0 | N18: 0 | O18: 9.
A19: Total Unrestricted Capital Outlay Fund (lines 2-9) | C19: 10. | D19: =D9+D11+SUM(D13:D17) -> 0 | E19: =E9+E11 -> 507150 | F19: =SUM(F11:F17) -> 160 | G19: =G9+G11+SUM(G13:G17) -> 670181 | H19: =H18 -> 0 | I19: =I13+I18 -> 0 | J19: =J9+J11+SUM(J13:J17) -> 99912 | K19: =K9+K11+SUM(K13:K18) -> 2046051 | L19: =L9+L11+SUM(L13:L18) -> 1277403 | M19: =M9+M11+SUM(M13:M18) -> 593588 | N19: 1.152 | O19: 10.
A21: (1) Amounts in the Unrestricted Capital Outlay Override, line 1 above, must also be included in the Unrestricted Capital Outlay Fund (610) individual line items.
A22: (2) Expenditures, if any, in the Unrestricted Capital Outlay Fund on lines 2-9 for the K-3 Reading Program as described in A.R.S. §15-211: | H22: Budget | I22: =[1]!UCOFundK3ReadExp -> 0 | J22: Actual | K22: 0
A23: OTHER FUNDS—REQUIRED CAPITAL EXPENDITURE DETAIL [A.R.S. §15-904(B)]
D25: UNRESTRICTED CAPITAL OUTLAY | F25: BOND BUILDING | H25: NEW SCHOOL FACILITIES | J25: ADJACENT WAYS
A26: Selected Expenditures by Object Code | D26: Fund 610 | F26: Fund 630 | H26: Fund 695 | J26: Fund 620
D27: BUDGET | E27: ACTUAL | F27: BUDGET | G27: ACTUAL | H27: BUDGET | I27: ACTUAL | J27: BUDGET | K27: ACTUAL
A28: Total Fund Expenditures | C28: 1. | D28: =[1]!F610TotalBudgFY -> 2046051 | E28: =SUMIFS('Accounting Data'!C2:C100000,'Accounting Data'!E2:E100000,"610",'Accounting Data'!J2:J100000,"6???")-SUMIFS('Accounting Data'!C2:C100000,'Accounting Data'!E2:E100000,"610",'Accounting Data'!J2:J100000,"69??") -> 1277403 | F28: =[1]!F630TotalBudgFY -> 0 | G28: =SUMIFS('Accounting Data'!C2:C100000,'Accounting Data'!E2:E100000,"630",'Accounting Data'!J2:J100000,"6???")-SUMIFS('Accounting Data'!C2:C100000,'Accounting Data'!E2:E100000,"630",'Accounting Data'!J2:J100000,"69??") -> 0 | H28: =[1]!F695TotalBudgFY -> 0 | I28: =SUMIFS('Accounting Data'!C2:C100000,'Accounting Data'!E2:E100000,"695",'Accounting Data'!J2:J100000,"6???")-SUMIFS('Accounting Data'!C2:C100000,'Accounting Data'!E2:E100000,"695",'Accounting Data'!J2:J100000,"69??") -> 0 | J28: =[1]!F620TotalBudgFY -> 0 | K28: =SUMIFS('Accounting Data'!C2:C100000,'Accounting Data'!E2:E100000,"620",'Accounting Data'!J2:J100000,"6???")-SUMIFS('Accounting Data'!C2:C100000,'Accounting Data'!E2:E100000,"620",'Accounting Data'!J2:J100000,"69??") -> 65896 | L28: 1.
A29: 6150 Classified Salaries | C29: 2. | D29: =[1]!F610BudgFYO6150 -> 0 | E29: =SUMIFS('Accounting Data'!C$2:C$100000,'Accounting Data'!E$2:E$100000,"610",'Accounting Data'!J$2:J$100000,"615?")+SUMIFS('Accounting Data'!C$2:C$100000,'Accounting Data'!E$2:E$100000,"610",'Accounting Data'!J$2:J$100000,"616?")+SUMIFS('Accounting Data'!C$2:C$100000,'Accounting Data'!E$2:E$100000,"610",'Accounting Data'!J$2:J$100000,"617?")+SUMIFS('Accounting Data'!C$2:C$100000,'Accounting Data'!E$2:E$100000,"610",'Accounting Data'!J$2:J$100000,"618?")+SUMIFS('Accounting Data'!C$2:C$100000,'Accounting Data'!E$2:E$100000,"610",'Accounting Data'!J$2:J$100000,"619?") -> 0 | F29: =[1]!F630BudgFYO6150 -> 0 | G29: =SUMIFS('Accounting Data'!C$2:C$100000,'Accounting Data'!E$2:E$100000,"630",'Accounting Data'!J$2:J$100000,"615?")+SUMIFS('Accounting Data'!C$2:C$100000,'Accounting Data'!E$2:E$100000,"630",'Accounting Data'!J$2:J$100000,"616?")+SUMIFS('Accounting Data'!C$2:C$100000,'Accounting Data'!E$2:E$100000,"630",'Accounting Data'!J$2:J$100000,"617?")+SUMIFS('Accounting Data'!C$2:C$100000,'Accounting Data'!E$2:E$100000,"630",'Accounting Data'!J$2:J$100000,"618?")+SUMIFS('Accounting Data'!C$2:C$100000,'Accounting Data'!E$2:E$100000,"630",'Accounting Data'!J$2:J$100000,"619?") -> 0 | H29: =[1]!F695BudgFYO6150 -> 0 | I29: =SUMIFS('Accounting Data'!C$2:C$100000,'Accounting Data'!E$2:E$100000,"695",'Accounting Data'!J$2:J$100000,"615?")+SUMIFS('Accounting Data'!C$2:C$100000,'Accounting Data'!E$2:E$100000,"695",'Accounting Data'!J$2:J$100000,"616?")+SUMIFS('Accounting Data'!C$2:C$100000,'Accounting Data'!E$2:E$100000,"695",'Accounting Data'!J$2:J$100000,"617?")+SUMIFS('Accounting Data'!C$2:C$100000,'Accounting Data'!E$2:E$100000,"695",'Accounting Data'!J$2:J$100000,"618?")+SUMIFS('Accounting Data'!C$2:C$100000,'Accounting Data'!E$2:E$100000,"695",'Accounting Data'!J$2:J$100000,"619?") -> 0 | J29: =[1]!F620BudgFYO6150 -> 0 | K29: =SUMIFS('Accounting Data'!C$2:C$100000,'Accounting Data'!E$2:E$100000,"620",'Accounting Data'!J$2:J$100000,"615?")+SUMIFS('Accounting Data'!C$2:C$100000,'Accounting Data'!E$2:E$100000,"620",'Accounting Data'!J$2:J$100000,"616?")+SUMIFS('Accounting Data'!C$2:C$100000,'Accounting Data'!E$2:E$100000,"620",'Accounting Data'!J$2:J$100000,"617?")+SUMIFS('Accounting Data'!C$2:C$100000,'Accounting Data'!E$2:E$100000,"620",'Accounting Data'!J$2:J$100000,"618?")+SUMIFS('Accounting Data'!C$2:C$100000,'Accounting Data'!E$2:E$100000,"620",'Accounting Data'!J$2:J$100000,"619?") -> 0 | L29: 2.
A30: 6200 Employee Benefits | C30: 3. | D30: =[1]!F610BudgFYO6200 -> 0 | E30: =SUMIFS('Accounting Data'!C$2:C$100000,'Accounting Data'!E$2:E$100000,"610",'Accounting Data'!J$2:J$100000,"62??") -> 0 | F30: =[1]!F630BudgFYO6200 -> 0 | G30: =SUMIFS('Accounting Data'!C$2:C$100000,'Accounting Data'!E$2:E$100000,"630",'Accounting Data'!J$2:J$100000,"62??") -> 0 | H30: =[1]!F695BudgFYO6200 -> 0 | I30: =SUMIFS('Accounting Data'!C$2:C$100000,'Accounting Data'!E$2:E$100000,"695",'Accounting Data'!J$2:J$100000,"62??") -> 0 | J30: =[1]!F620BudgFYO6200 -> 0 | K30: =SUMIFS('Accounting Data'!C$2:C$100000,'Accounting Data'!E$2:E$100000,"620",'Accounting Data'!J$2:J$100000,"62??") -> 0 | L30: 3.
A31: 6450 Construction Services | C31: 4. | D31: =[1]!F610BudgFYO6450 -> 300000 | E31: =SUMIFS('Accounting Data'!C$2:C$100000,'Accounting Data'!E$2:E$100000,"610",'Accounting Data'!J$2:J$100000,"645?") -> 97294 | F31: =[1]!F630BudgFYO6450 -> 0 | G31: =SUMIFS('Accounting Data'!C$2:C$100000,'Accounting Data'!E$2:E$100000,"630",'Accounting Data'!J$2:J$100000,"645?") -> 0 | H31: =[1]!F695BudgFYO6450 -> 0 | I31: =SUMIFS('Accounting Data'!C$2:C$100000,'Accounting Data'!E$2:E$100000,"695",'Accounting Data'!J$2:J$100000,"645?") -> 0 | J31: =[1]!F620BudgFYO6450 -> 100000 | K31: =SUMIFS('Accounting Data'!C$2:C$100000,'Accounting Data'!E$2:E$100000,"620",'Accounting Data'!J$2:J$100000,"645?") -> 65896 | L31: 4.
A32: 6655 Short-term Noninstructional Software Subscription | C32: 5. | E32: =SUMIFS('Accounting Data'!C$2:C$100000,'Accounting Data'!E$2:E$100000,"610",'Accounting Data'!J$2:J$100000,"6655") -> 1550 | G32: =SUMIFS('Accounting Data'!C$2:C$100000,'Accounting Data'!E$2:E$100000,"630",'Accounting Data'!J$2:J$100000,"6655") -> 0 | I32: =SUMIFS('Accounting Data'!C$2:C$100000,'Accounting Data'!E$2:E$100000,"695",'Accounting Data'!J$2:J$100000,"6655") -> 0 | K32: =SUMIFS('Accounting Data'!C$2:C$100000,'Accounting Data'!E$2:E$100000,"620",'Accounting Data'!J$2:J$100000,"6655") -> 0 | L32: 5.
A33: 6710 Land and Improvements | C33: 6. | D33: =[1]!F610BudgFYO6710 -> 0 | E33: =SUMIFS('Accounting Data'!C$2:C$100000,'Accounting Data'!E$2:E$100000,"610",'Accounting Data'!J$2:J$100000,"671?") -> 0 | F33: =[1]!F630BudgFYO6710 -> 0 | G33: =SUMIFS('Accounting Data'!C$2:C$100000,'Accounting Data'!E$2:E$100000,"630",'Accounting Data'!J$2:J$100000,"671?") -> 0 | H33: =[1]!F695BudgFYO6710 -> 0 | I33: =SUMIFS('Accounting Data'!C$2:C$100000,'Accounting Data'!E$2:E$100000,"695",'Accounting Data'!J$2:J$100000,"671?") -> 0 | J33: =[1]!F620BudgFYO6710 -> 0 | K33: =SUMIFS('Accounting Data'!C$2:C$100000,'Accounting Data'!E$2:E$100000,"620",'Accounting Data'!J$2:J$100000,"671?") -> 0 | L33: 6.
A34: 6720 Buildings and Improvements | C34: 7. | D34: =[1]!F610BudgFYO6720 -> 0 | E34: =SUMIFS('Accounting Data'!C$2:C$100000,'Accounting Data'!E$2:E$100000,"610",'Accounting Data'!J$2:J$100000,"672?") -> 0 | F34: =[1]!F630BudgFYO6720 -> 0 | G34: =SUMIFS('Accounting Data'!C$2:C$100000,'Accounting Data'!E$2:E$100000,"630",'Accounting Data'!J$2:J$100000,"672?") -> 0 | H34: =[1]!F695BudgFYO6720 -> 0 | I34: =SUMIFS('Accounting Data'!C$2:C$100000,'Accounting Data'!E$2:E$100000,"695",'Accounting Data'!J$2:J$100000,"672?") -> 0 | J34: =[1]!F620BudgFYO6720 -> 0 | K34: =SUMIFS('Accounting Data'!C$2:C$100000,'Accounting Data'!E$2:E$100000,"620",'Accounting Data'!J$2:J$100000,"672?") -> 0 | L34: 7.
A35: 673X Furniture and Equipment | C35: 8. | D35: =[1]!F610BudgFYO6731 -> 600000 | E35: =SUMIFS('Accounting Data'!C2:C100000,'Accounting Data'!E2:E100000,"610",'Accounting Data'!J2:J100000,"6731")+SUMIFS('Accounting Data'!C2:C100000,'Accounting Data'!E2:E100000,"610",'Accounting Data'!J2:J100000,"6732")+SUMIFS('Accounting Data'!C2:C100000,'Accounting Data'!E2:E100000,"610",'Accounting Data'!J2:J100000,"6733") -> 290815 | F35: =[1]!F630BudgFYO6731 -> 0 | G35: =SUMIFS('Accounting Data'!C2:C100000,'Accounting Data'!E2:E100000,"630",'Accounting Data'!J2:J100000,"6731")+SUMIFS('Accounting Data'!C2:C100000,'Accounting Data'!E2:E100000,"630",'Accounting Data'!J2:J100000,"6732")+SUMIFS('Accounting Data'!C2:C100000,'Accounting Data'!E2:E100000,"630",'Accounting Data'!J2:J100000,"6733") -> 0 | H35: =[1]!F695BudgFYO6731 -> 0 | I35: =SUMIFS('Accounting Data'!C2:C100000,'Accounting Data'!E2:E100000,"695",'Accounting Data'!J2:J100000,"6731")+SUMIFS('Accounting Data'!C2:C100000,'Accounting Data'!E2:E100000,"695",'Accounting Data'!J2:J100000,"6732")+SUMIFS('Accounting Data'!C2:C100000,'Accounting Data'!E2:E100000,"695",'Accounting Data'!J2:J100000,"6733") -> 0 | J35: =[1]!F620BudgFYO6731 -> 0 | K35: =SUMIFS('Accounting Data'!C2:C100000,'Accounting Data'!E2:E100000,"620",'Accounting Data'!J2:J100000,"6731")+SUMIFS('Accounting Data'!C2:C100000,'Accounting Data'!E2:E100000,"620",'Accounting Data'!J2:J100000,"6732")+SUMIFS('Accounting Data'!C2:C100000,'Accounting Data'!E2:E100000,"620",'Accounting Data'!J2:J100000,"6733") -> 0 | L35: 8.
A36: 673X Vehicles | C36: 9. | D36: =[1]!F610BudgFYO6734 -> 365000 | E36: =SUMIFS('Accounting Data'!C2:C100000,'Accounting Data'!E2:E100000,"610",'Accounting Data'!J2:J100000,"6734")+SUMIFS('Accounting Data'!C2:C100000,'Accounting Data'!E2:E100000,"610",'Accounting Data'!J2:J100000,"6735")+SUMIFS('Accounting Data'!C2:C100000,'Accounting Data'!E2:E100000,"610",'Accounting Data'!J2:J100000,"6736") -> 313549 | F36: =[1]!F630BudgFYO6734 -> 0 | G36: =SUMIFS('Accounting Data'!C2:C100000,'Accounting Data'!E2:E100000,"630",'Accounting Data'!J2:J100000,"6734")+SUMIFS('Accounting Data'!C2:C100000,'Accounting Data'!E2:E100000,"630",'Accounting Data'!J2:J100000,"6735")+SUMIFS('Accounting Data'!C2:C100000,'Accounting Data'!E2:E100000,"630",'Accounting Data'!J2:J100000,"6736") -> 0 | H36: =[1]!F695BudgFYO6734 -> 0 | I36: =SUMIFS('Accounting Data'!C2:C100000,'Accounting Data'!E2:E100000,"695",'Accounting Data'!J2:J100000,"6734")+SUMIFS('Accounting Data'!C2:C100000,'Accounting Data'!E2:E100000,"695",'Accounting Data'!J2:J100000,"6735")+SUMIFS('Accounting Data'!C2:C100000,'Accounting Data'!E2:E100000,"695",'Accounting Data'!J2:J100000,"6736") -> 0 | J36: =[1]!F620BudgFYO6734 -> 0 | K36: =SUMIFS('Accounting Data'!C2:C100000,'Accounting Data'!E2:E100000,"620",'Accounting Data'!J2:J100000,"6734")+SUMIFS('Accounting Data'!C2:C100000,'Accounting Data'!E2:E100000,"620",'Accounting Data'!J2:J100000,"6735")+SUMIFS('Accounting Data'!C2:C100000,'Accounting Data'!E2:E100000,"620",'Accounting Data'!J2:J100000,"6736") -> 0 | L36: 9.
A37: 673X Technology-Related Hardware and Software | C37: 10. | D37: =[1]!F610BudgFYO6737 -> 134051 | E37: =SUMIFS('Accounting Data'!C2:C100000,'Accounting Data'!E2:E100000,"610",'Accounting Data'!J2:J100000,"6737")+SUMIFS('Accounting Data'!C2:C100000,'Accounting Data'!E2:E100000,"610",'Accounting Data'!J2:J100000,"6738")+SUMIFS('Accounting Data'!C2:C100000,'Accounting Data'!E2:E100000,"610",'Accounting Data'!J2:J100000,"6739") -> 65818 | F37: =[1]!F630BudgFYO6737 -> 0 | G37: =SUMIFS('Accounting Data'!C2:C100000,'Accounting Data'!E2:E100000,"630",'Accounting Data'!J2:J100000,"6737")+SUMIFS('Accounting Data'!C2:C100000,'Accounting Data'!E2:E100000,"630",'Accounting Data'!J2:J100000,"6738")+SUMIFS('Accounting Data'!C2:C100000,'Accounting Data'!E2:E100000,"630",'Accounting Data'!J2:J100000,"6739") -> 0 | H37: =[1]!F695BudgFYO6737 -> 0 | I37: =SUMIFS('Accounting Data'!C2:C100000,'Accounting Data'!E2:E100000,"695",'Accounting Data'!J2:J100000,"6737")+SUMIFS('Accounting Data'!C2:C100000,'Accounting Data'!E2:E100000,"695",'Accounting Data'!J2:J100000,"6738")+SUMIFS('Accounting Data'!C2:C100000,'Accounting Data'!E2:E100000,"695",'Accounting Data'!J2:J100000,"6739") -> 0 | J37: =[1]!F620BudgFYO6737 -> 0 | K37: =SUMIFS('Accounting Data'!C2:C100000,'Accounting Data'!E2:E100000,"620",'Accounting Data'!J2:J100000,"6737")+SUMIFS('Accounting Data'!C2:C100000,'Accounting Data'!E2:E100000,"620",'Accounting Data'!J2:J100000,"6738")+SUMIFS('Accounting Data'!C2:C100000,'Accounting Data'!E2:E100000,"620",'Accounting Data'!J2:J100000,"6739") -> 0 | L37: 10.
A38: 6831, 6832, 6833 Redemption of Principal | C38: 11. | D38: =[1]!F610BudgFYO6831 -> 0 | E38: =SUMIFS('Accounting Data'!C2:C100000,'Accounting Data'!E2:E100000,"610",'Accounting Data'!J2:J100000,"6831")+SUMIFS('Accounting Data'!C2:C100000,'Accounting Data'!E2:E100000,"610",'Accounting Data'!J2:J100000,"6832")+SUMIFS('Accounting Data'!C2:C100000,'Accounting Data'!E2:E100000,"610",'Accounting Data'!J2:J100000,"6833") -> 0 | F38: =[1]!F630BudgFYO6831 -> 0 | G38: =SUMIFS('Accounting Data'!C2:C100000,'Accounting Data'!E2:E100000,"630",'Accounting Data'!J2:J100000,"6831")+SUMIFS('Accounting Data'!C2:C100000,'Accounting Data'!E2:E100000,"630",'Accounting Data'!J2:J100000,"6832")+SUMIFS('Accounting Data'!C2:C100000,'Accounting Data'!E2:E100000,"630",'Accounting Data'!J2:J100000,"6833") -> 0 | H38: =[1]!F695BudgFYO6831 -> 0 | I38: =SUMIFS('Accounting Data'!C2:C100000,'Accounting Data'!E2:E100000,"695",'Accounting Data'!J2:J100000,"6831")+SUMIFS('Accounting Data'!C2:C100000,'Accounting Data'!E2:E100000,"695",'Accounting Data'!J2:J100000,"6832")+SUMIFS('Accounting Data'!C2:C100000,'Accounting Data'!E2:E100000,"695",'Accounting Data'!J2:J100000,"6833") -> 0 | J38: =[1]!F620BudgFYO6831 -> 0 | K38: =SUMIFS('Accounting Data'!C2:C100000,'Accounting Data'!E2:E100000,"620",'Accounting Data'!J2:J100000,"6831")+SUMIFS('Accounting Data'!C2:C100000,'Accounting Data'!E2:E100000,"620",'Accounting Data'!J2:J100000,"6832")+SUMIFS('Accounting Data'!C2:C100000,'Accounting Data'!E2:E100000,"620",'Accounting Data'!J2:J100000,"6833") -> 0 | L38: 11.
A39: 6841, 6842, 6843, 6850, 6860 Interest | C39: 12. | D39: =[1]!F610BudgFYO6841 -> 0 | E39: =SUMIFS('Accounting Data'!C2:C100000,'Accounting Data'!E2:E100000,"610",'Accounting Data'!J2:J100000,"6841")+SUMIFS('Accounting Data'!C2:C100000,'Accounting Data'!E2:E100000,"610",'Accounting Data'!J2:J100000,"6842")+SUMIFS('Accounting Data'!C2:C100000,'Accounting Data'!E2:E100000,"610",'Accounting Data'!J2:J100000,"6850")+SUMIFS('Accounting Data'!C2:C100000,'Accounting Data'!E2:E100000,"610",'Accounting Data'!J2:J100000,"6843") -> 0 | F39: =[1]!F630BudgFYO6841 -> 0 | G39: =SUMIFS('Accounting Data'!C2:C100000,'Accounting Data'!E2:E100000,"630",'Accounting Data'!J2:J100000,"6841")+SUMIFS('Accounting Data'!C2:C100000,'Accounting Data'!E2:E100000,"630",'Accounting Data'!J2:J100000,"6842")+SUMIFS('Accounting Data'!C2:C100000,'Accounting Data'!E2:E100000,"630",'Accounting Data'!J2:J100000,"6850")+SUMIFS('Accounting Data'!C2:C100000,'Accounting Data'!E2:E100000,"630",'Accounting Data'!J2:J100000,"6860")+SUMIFS('Accounting Data'!C2:C100000,'Accounting Data'!E2:E100000,"630",'Accounting Data'!J2:J100000,"6843") -> 0 | H39: =[1]!F695BudgFYO6841 -> 0 | I39: =SUMIFS('Accounting Data'!C2:C100000,'Accounting Data'!E2:E100000,"695",'Accounting Data'!J2:J100000,"6841")+SUMIFS('Accounting Data'!C2:C100000,'Accounting Data'!E2:E100000,"695",'Accounting Data'!J2:J100000,"6842")+SUMIFS('Accounting Data'!C2:C100000,'Accounting Data'!E2:E100000,"695",'Accounting Data'!J2:J100000,"6850")+SUMIFS('Accounting Data'!C2:C100000,'Accounting Data'!E2:E100000,"695",'Accounting Data'!J2:J100000,"6843") -> 0 | J39: =[1]!F620BudgFYO6841 -> 0 | K39: =SUMIFS('Accounting Data'!C2:C100000,'Accounting Data'!E2:E100000,"620",'Accounting Data'!J2:J100000,"6841")+SUMIFS('Accounting Data'!C2:C100000,'Accounting Data'!E2:E100000,"620",'Accounting Data'!J2:J100000,"6842")+SUMIFS('Accounting Data'!C2:C100000,'Accounting Data'!E2:E100000,"620",'Accounting Data'!J2:J100000,"6850")+SUMIFS('Accounting Data'!C2:C100000,'Accounting Data'!E2:E100000,"620",'Accounting Data'!J2:J100000,"6843") -> 0 | L39: 12.
A40: Total (lines 2-12) | C40: 13. | D40: =SUM(D29:D39) -> 1399051 | E40: 769026 | F40: 0 | G40: 0 | H40: 0 | I40: 0 | J40: 100000 | K40: 65896 | L40: 13.
A41: Total amounts reported on lines 2 through 12 above for:
A42: Renovation | C42: 14. | D42: =[1]!F610BudgFYRenovation -> 300000 | E42: 97294 | F42: =[1]!F630BudgFYRenovation -> 0 | G42: 0 | J42: =[1]!F620BudgFYRenovation -> 0 | K42: 65896 | L42: 14. | AA42: =IF(OR(E42="",E43="",E44="",G42="",G43="",G44="",I43="",I44="",K42="",K43="",K44=""),"yes","") -> 
A43: New Construction | C43: 15. | D43: =[1]!F610BudgFYNewConstruction -> 0 | E43: 0 | F43: =[1]!F630BudgFYNewConstruction -> 0 | G43: 0 | H43: =[1]!F695BudgFYNewConstruction -> 0 | I43: 0 | J43: =[1]!F620BudgFYNewConstruction -> 0 | K43: 0 | L43: 15.
A44: Other | C44: 16. | D44: =[1]!F610BudgFYOther -> 1099051 | E44: 671732 | F44: =[1]!F630BudgFYOther -> 0 | G44: 0 | H44: =[1]!F695BudgFYOther -> 0 | I44: 0 | J44: =[1]!F620BudgFYOther -> 100000 | K44: 0 | L44: 16.
A45: Total (lines 14-16) | C45: 17. | D45: =IF(ROUND(SUM(D42:D44),0)=ROUND(SUM(D29:D39),0),SUM(D42:D44),"Must equal line 13") -> 1399051 | E45: =IF(ROUND(SUM(E42:E44),0)=ROUND(SUM(E29:E39),0),SUM(E42:E44),"Must equal line 13") -> 769026 | F45: =IF(ROUND(SUM(F42:F44),0)=ROUND(SUM(F29:F39),0),SUM(F42:F44),"Must equal line 13") -> 0 | G45: =IF(ROUND(SUM(G42:G44),0)=ROUND(SUM(G29:G39),0),SUM(G42:G44),"Must equal line 13") -> 0 | H45: =IF(ROUND(SUM(H42:H44),0)=ROUND(SUM(H29:H39),0),SUM(H42:H44),"Must equal line 13") -> 0 | I45: =IF(ROUND(SUM(I42:I44),2)=ROUND(SUM(I29:I39),0),SUM(I43:I44),"Must equal line 13") -> 0 | J45: =IF(ROUND(SUM(J42:J44),0)=ROUND(SUM(J29:J39),0),SUM(J42:J44),"Must equal line 13") -> 100000 | K45: =IF(ROUND(SUM(K42:K44),0)=ROUND(SUM(K29:K39),0),SUM(K42:K44),"Must equal line 13") -> 65896 | L45: 17.
A47: Funds 610, 630, 695, and 620 | F47: CAPITAL ASSETS AS OF
A48: 1. New construction cost per square foot | C48: $ | D48: 0 | F48: JUNE 30, 2023
A49: 2. Land acquisition costs | C49: $ | D49: 0
F50: Land and Improvements | H50: 5000 | I50: 1. | AA50: =IF(OR(H50="",H51="",H52="",H54="",D48="",D49=""),"yes","") -> 
F51: Buildings and Improvements | H51: 397463 | I51: 2.
F52: Furniture, Equipment, Vehicles, | H52: 1575649
F53: and Technology | I53: 3.
F54: Construction in Progress | H54: 1492872 | I54: 4.
F56: Total | H56: =IF(H52="$","$",SUM(H50:H54)) -> 3470984 | I56: 5.

Sheet Page 5
A1: DISTRICT NAME | B1: =CoverDistrictName -> Page Unified School District | F1: COUNTY | G1: =County -> Coconino | I1: CTDS NUMBER | J1: =Cover!Q1 -> 030208000 | L1: Yes
A2: FEDERAL AND STATE PROJECTS | L2: No
G5: NET OTHER FINANCING SOURCES AND USES | K5: GENERAL FUND | O5: OTHER FINANCING | P5: OTHER FINANCING
E6: BEGINNING | J6: ENDING FUND | O6: SOURCES INCLUDING | P6: USES INCLUDING | AA6: =IF(OR(E23="",E24="",E25="",E26="",E27="",E28="",H23="",H24="",H26="",H27="",H28="",K22="",K23="",K24="",K27="",K46=""),"yes","") -> 
E7: FUND BALANCE | F7: REVENUES | G7: INCLUDING TRANSFERS (1) | H7: EXPENDITURES | J7: BALANCE | O7: TRANSFERS-IN | P7: TRANSFERS-OUT
A8: FEDERAL PROJECTS | E8: ACTUAL | F8: ACTUAL | G8: ACTUAL | H8: BUDGET | I8: ACTUAL | J8: ACTUAL | O8: 5000 (1) | P8: 6900 (1)
A9: 100-130 ESEA Title I - Helping Disadvantaged Children | D9: 1. | E9: ='Accounting Data'!R8 -> 5460 | F9: =-(SUMIFS('Accounting Data'!C2:C100000,'Accounting Data'!E2:E100000,"10?",'Accounting Data'!J2:J100000,"1???")+SUMIFS('Accounting Data'!C2:C100000,'Accounting Data'!E2:E100000,"11?",'Accounting Data'!J2:J100000,"1???")+SUMIFS('Accounting Data'!C2:C100000,'Accounting Data'!E2:E100000,"12?",'Accounting Data'!J2:J100000,"1???")+SUMIFS('Accounting Data'!C2:C100000,'Accounting Data'!E2:E100000,"13?",'Accounting Data'!J2:J100000,"1???")+SUMIFS('Accounting Data'!C2:C100000,'Accounting Data'!E2:E100000,"10?",'Accounting Data'!J2:J100000,"2???")+SUMIFS('Accounting Data'!C2:C100000,'Accounting Data'!E2:E100000,"11?",'Accounting Data'!J2:J100000,"2???")+SUMIFS('Accounting Data'!C2:C100000,'Accounting Data'!E2:E100000,"12?",'Accounting Data'!J2:J100000,"2???")+SUMIFS('Accounting Data'!C2:C100000,'Accounting Data'!E2:E100000,"13?",'Accounting Data'!J2:J100000,"2???")+SUMIFS('Accounting Data'!C2:C100000,'Accounting Data'!E2:E100000,"10?",'Accounting Data'!J2:J100000,"3???")+SUMIFS('Accounting Data'!C2:C100000,'Accounting Data'!E2:E100000,"11?",'Accounting Data'!J2:J100000,"3???")+SUMIFS('Accounting Data'!C2:C100000,'Accounting Data'!E2:E100000,"12?",'Accounting Data'!J2:J100000,"3???")+SUMIFS('Accounting Data'!C2:C100000,'Accounting Data'!E2:E100000,"13?",'Accounting Data'!J2:J100000,"3???")+SUMIFS('Accounting Data'!C2:C100000,'Accounting Data'!E2:E100000,"10?",'Accounting Data'!J2:J100000,"4???")+SUMIFS('Accounting Data'!C2:C100000,'Accounting Data'!E2:E100000,"11?",'Accounting Data'!J2:J100000,"4???")+SUMIFS('Accounting Data'!C2:C100000,'Accounting Data'!E2:E100000,"12?",'Accounting Data'!J2:J100000,"4???")+SUMIFS('Accounting Data'!C2:C100000,'Accounting Data'!E2:E100000,"13?",'Accounting Data'!J2:J100000,"4???")) -> 674599 | G9: =O9-P9 -> -108732 | H9: =[1]!F100130BudgFY -> 846819 | I9: =(SUMIFS('Accounting Data'!C2:C100000,'Accounting Data'!E2:E100000,"10?",'Accounting Data'!J2:J100000,"6???")+SUMIFS('Accounting Data'!C2:C100000,'Accounting Data'!E2:E100000,"11?",'Accounting Data'!J2:J100000,"6???")+SUMIFS('Accounting Data'!C2:C100000,'Accounting Data'!E2:E100000,"12?",'Accounting Data'!J2:J100000,"6???")+SUMIFS('Accounting Data'!C2:C100000,'Accounting Data'!E2:E100000,"13?",'Accounting Data'!J2:J100000,"6???"))-P9 -> 652260 | J9: =E9+F9+G9-I9 -> -80933 | L9: 1. | N9: 1. | O9: =-(SUMIFS('Accounting Data'!C2:C100000,'Accounting Data'!E2:E100000,"10?",'Accounting Data'!J2:J100000,"5???")+SUMIFS('Accounting Data'!C2:C100000,'Accounting Data'!E2:E100000,"11?",'Accounting Data'!J2:J100000,"5???")+SUMIFS('Accounting Data'!C2:C100000,'Accounting Data'!E2:E100000,"12?",'Accounting Data'!J2:J100000,"5???")+SUMIFS('Accounting Data'!C2:C100000,'Accounting Data'!E2:E100000,"13?",'Accounting Data'!J2:J100000,"5???")) -> 0 | P9: =SUMIFS('Accounting Data'!C2:C100000,'Accounting Data'!E2:E100000,"10?",'Accounting Data'!J2:J100000,"69??")+SUMIFS('Accounting Data'!C2:C100000,'Accounting Data'!E2:E100000,"11?",'Accounting Data'!J2:J100000,"69??")+SUMIFS('Accounting Data'!C2:C100000,'Accounting Data'!E2:E100000,"12?",'Accounting Data'!J2:J100000,"69??")+SUMIFS('Accounting Data'!C2:C100000,'Accounting Data'!E2:E100000,"13?",'Accounting Data'!J2:J100000,"69??") -> 108732 | Q9: 1.
A10: 140-150 ESEA Title II - Prof. Development and Technology | D10: 2. | E10: ='Accounting Data'!R48 -> 586 | F10: =-(SUMIFS('Accounting Data'!C2:C100000,'Accounting Data'!E2:E100000,"14?",'Accounting Data'!J2:J100000,"1???")+SUMIFS('Accounting Data'!C2:C100000,'Accounting Data'!E2:E100000,"15?",'Accounting Data'!J2:J100000,"1???")+SUMIFS('Accounting Data'!C2:C100000,'Accounting Data'!E2:E100000,"14?",'Accounting Data'!J2:J100000,"2???")+SUMIFS('Accounting Data'!C2:C100000,'Accounting Data'!E2:E100000,"15?",'Accounting Data'!J2:J100000,"2???")+SUMIFS('Accounting Data'!C2:C100000,'Accounting Data'!E2:E100000,"14?",'Accounting Data'!J2:J100000,"3???")+SUMIFS('Accounting Data'!C2:C100000,'Accounting Data'!E2:E100000,"15?",'Accounting Data'!J2:J100000,"3???")+SUMIFS('Accounting Data'!C2:C100000,'Accounting Data'!E2:E100000,"14?",'Accounting Data'!J2:J100000,"4???")+SUMIFS('Accounting Data'!C2:C100000,'Accounting Data'!E2:E100000,"15?",'Accounting Data'!J2:J100000,"4???")) -> 85003 | G10: -13451 | H10: =[1]!F140150BudgFY -> 193587 | I10: =(SUMIFS('Accounting Data'!C2:C100000,'Accounting Data'!E2:E100000,"14?",'Accounting Data'!J2:J100000,"6???")+SUMIFS('Accounting Data'!C2:C100000,'Accounting Data'!E2:E100000,"15?",'Accounting Data'!J2:J100000,"6???"))-P10 -> 83650 | J10: -11512 | L10: 2. | N10: 2. | O10: =-(SUMIFS('Accounting Data'!C2:C100000,'Accounting Data'!E2:E100000,"14?",'Accounting Data'!J2:J100000,"5???")+SUMIFS('Accounting Data'!C2:C100000,'Accounting Data'!E2:E100000,"15?",'Accounting Data'!J2:J100000,"5???")) -> 0 | P10: =SUMIFS('Accounting Data'!C2:C100000,'Accounting Data'!E2:E100000,"14?",'Accounting Data'!J2:J100000,"69??")+SUMIFS('Accounting Data'!C2:C100000,'Accounting Data'!E2:E100000,"15?",'Accounting Data'!J2:J100000,"69??") -> 13451 | Q10: 2.
A11: 160 ESEA Title IV - 21st Century Schools | D11: 3. | E11: ='Accounting Data'!R68 -> 0 | F11: =-(SUMIFS('Accounting Data'!C2:C100000,'Accounting Data'!E2:E100000,"16?",'Accounting Data'!J2:J100000,"1???")+SUMIFS('Accounting Data'!C2:C100000,'Accounting Data'!E2:E100000,"16?",'Accounting Data'!J2:J100000,"2???")+SUMIFS('Accounting Data'!C2:C100000,'Accounting Data'!E2:E100000,"16?",'Accounting Data'!J2:J100000,"3???")+SUMIFS('Accounting Data'!C2:C100000,'Accounting Data'!E2:E100000,"16?",'Accounting Data'!J2:J100000,"4???")) -> 9492 | G11: -4120 | H11: =[1]!F160BudgFY -> 50593 | I11: =SUMIFS('Accounting Data'!C2:C100000,'Accounting Data'!E2:E100000,"16?",'Accounting Data'!J2:J100000,"6???")-P11 -> 26715 | J11: -21343 | L11: 3. | N11: 3. | O11: =-(SUMIFS('Accounting Data'!C2:C100000,'Accounting Data'!E2:E100000,"16?",'Accounting Data'!J2:J100000,"5???")) -> 0 | P11: =SUMIFS('Accounting Data'!C2:C100000,'Accounting Data'!E2:E100000,"16?",'Accounting Data'!J2:J100000,"69??") -> 4120 | Q11: 3.
A12: 170-180 ESEA Title V - Promote Informed Parent Choice | D12: 4. | E12: ='Accounting Data'!R78 -> -54699 | F12: =-(SUMIFS('Accounting Data'!C2:C100000,'Accounting Data'!E2:E100000,"17?",'Accounting Data'!J2:J100000,"1???")+SUMIFS('Accounting Data'!C2:C100000,'Accounting Data'!E2:E100000,"18?",'Accounting Data'!J2:J100000,"1???")+SUMIFS('Accounting Data'!C2:C100000,'Accounting Data'!E2:E100000,"17?",'Accounting Data'!J2:J100000,"2???")+SUMIFS('Accounting Data'!C2:C100000,'Accounting Data'!E2:E100000,"18?",'Accounting Data'!J2:J100000,"2???")+SUMIFS('Accounting Data'!C2:C100000,'Accounting Data'!E2:E100000,"17?",'Accounting Data'!J2:J100000,"3???")+SUMIFS('Accounting Data'!C2:C100000,'Accounting Data'!E2:E100000,"18?",'Accounting Data'!J2:J100000,"3???")+SUMIFS('Accounting Data'!C2:C100000,'Accounting Data'!E2:E100000,"17?",'Accounting Data'!J2:J100000,"4???")+SUMIFS('Accounting Data'!C2:C100000,'Accounting Data'!E2:E100000,"18?",'Accounting Data'!J2:J100000,"4???")) -> 53681 | G12: -10785 | H12: =[1]!F170180BudgFY -> 138304 | I12: =(SUMIFS('Accounting Data'!C2:C100000,'Accounting Data'!E2:E100000,"17?",'Accounting Data'!J2:J100000,"6???")+SUMIFS('Accounting Data'!C2:C100000,'Accounting Data'!E2:E100000,"18?",'Accounting Data'!J2:J100000,"6???"))-P12 -> 88832 | J12: -100635 | L12: 4. | N12: 4. | O12: =-(SUMIFS('Accounting Data'!C2:C100000,'Accounting Data'!E2:E100000,"17?",'Accounting Data'!J2:J100000,"5???")+SUMIFS('Accounting Data'!C2:C100000,'Accounting Data'!E2:E100000,"18?",'Accounting Data'!J2:J100000,"5???")) -> 0 | P12: =SUMIFS('Accounting Data'!C2:C100000,'Accounting Data'!E2:E100000,"17?",'Accounting Data'!J2:J100000,"69??")+SUMIFS('Accounting Data'!C2:C100000,'Accounting Data'!E2:E100000,"18?",'Accounting Data'!J2:J100000,"69??") -> 10785 | Q12: 4.
A13: 190 ESEA Title III - Limited English & Immigrant Students | D13: 5. | E13: ='Accounting Data'!R98 -> 3035 | F13: =-(SUMIFS('Accounting Data'!C2:C100000,'Accounting Data'!E2:E100000,"19?",'Accounting Data'!J2:J100000,"1???")+SUMIFS('Accounting Data'!C2:C100000,'Accounting Data'!E2:E100000,"19?",'Accounting Data'!J2:J100000,"2???")+SUMIFS('Accounting Data'!C2:C100000,'Accounting Data'!E2:E100000,"19?",'Accounting Data'!J2:J100000,"3???")+SUMIFS('Accounting Data'!C2:C100000,'Accounting Data'!E2:E100000,"19?",'Accounting Data'!J2:J100000,"4???")) -> 38359 | G13: -5011 | H13: =[1]!F190BudgFY -> 71464 | I13: =SUMIFS('Accounting Data'!C2:C100000,'Accounting Data'!E2:E100000,"19?",'Accounting Data'!J2:J100000,"6???")-P13 -> 42152 | J13: -5769 | L13: 5. | N13: 5. | O13: =-(SUMIFS('Accounting Data'!C2:C100000,'Accounting Data'!E2:E100000,"19?",'Accounting Data'!J2:J100000,"5???")) -> 0 | P13: =SUMIFS('Accounting Data'!C2:C100000,'Accounting Data'!E2:E100000,"19?",'Accounting Data'!J2:J100000,"69??") -> 5011 | Q13: 5.
A14: 200 ESEA Title VII - Indian Education | D14: 6. | E14: ='Accounting Data'!R108 -> 110 | F14: =-(SUMIFS('Accounting Data'!C2:C100000,'Accounting Data'!E2:E100000,"20?",'Accounting Data'!J2:J100000,"1???")+SUMIFS('Accounting Data'!C2:C100000,'Accounting Data'!E2:E100000,"20?",'Accounting Data'!J2:J100000,"2???")+SUMIFS('Accounting Data'!C2:C100000,'Accounting Data'!E2:E100000,"20?",'Accounting Data'!J2:J100000,"3???")+SUMIFS('Accounting Data'!C2:C100000,'Accounting Data'!E2:E100000,"20?",'Accounting Data'!J2:J100000,"4???")) -> 257406 | G14: 0 | H14: =[1]!F200BudgFY -> 399482 | I14: =SUMIFS('Accounting Data'!C2:C100000,'Accounting Data'!E2:E100000,"20?",'Accounting Data'!J2:J100000,"6???")-P14 -> 284931 | J14: -27415 | L14: 6. | N14: 6. | O14: =-(SUMIFS('Accounting Data'!C2:C100000,'Accounting Data'!E2:E100000,"20?",'Accounting Data'!J2:J100000,"5???")) -> 0 | P14: =SUMIFS('Accounting Data'!C2:C100000,'Accounting Data'!E2:E100000,"20?",'Accounting Data'!J2:J100000,"69??") -> 0 | Q14: 6.
A15: 210 ESEA Title VI - Flexibility and Accountability | D15: 7. | E15: ='Accounting Data'!R118 -> 0 | F15: =-(SUMIFS('Accounting Data'!C2:C100000,'Accounting Data'!E2:E100000,"21?",'Accounting Data'!J2:J100000,"1???")+SUMIFS('Accounting Data'!C2:C100000,'Accounting Data'!E2:E100000,"21?",'Accounting Data'!J2:J100000,"2???")+SUMIFS('Accounting Data'!C2:C100000,'Accounting Data'!E2:E100000,"21?",'Accounting Data'!J2:J100000,"3???")+SUMIFS('Accounting Data'!C2:C100000,'Accounting Data'!E2:E100000,"21?",'Accounting Data'!J2:J100000,"4???")) -> 0 | G15: 0 | H15: =[1]!F210BudgFY -> 0 | I15: =SUMIFS('Accounting Data'!C2:C100000,'Accounting Data'!E2:E100000,"21?",'Accounting Data'!J2:J100000,"6???")-P15 -> 0 | J15: 0 | L15: 7. | N15: 7. | O15: =-(SUMIFS('Accounting Data'!C2:C100000,'Accounting Data'!E2:E100000,"21?",'Accounting Data'!J2:J100000,"5???")) -> 0 | P15: =SUMIFS('Accounting Data'!C2:C100000,'Accounting Data'!E2:E100000,"21?",'Accounting Data'!J2:J100000,"69??") -> 0 | Q15: 7.
A16: 220 IDEA Part B | D16: 8. | E16: ='Accounting Data'!R128 -> -31926 | F16: =-(SUMIFS('Accounting Data'!C2:C100000,'Accounting Data'!E2:E100000,"22?",'Accounting Data'!J2:J100000,"1???")+SUMIFS('Accounting Data'!C2:C100000,'Accounting Data'!E2:E100000,"22?",'Accounting Data'!J2:J100000,"2???")+SUMIFS('Accounting Data'!C2:C100000,'Accounting Data'!E2:E100000,"22?",'Accounting Data'!J2:J100000,"3???")+SUMIFS('Accounting Data'!C2:C100000,'Accounting Data'!E2:E100000,"22?",'Accounting Data'!J2:J100000,"4???")) -> 607465 | G16: -59855 | H16: =[1]!F220BudgFY -> 65000 | I16: =SUMIFS('Accounting Data'!C2:C100000,'Accounting Data'!E2:E100000,"22?",'Accounting Data'!J2:J100000,"6???")-P16 -> 574522 | J16: -58838 | L16: 8. | N16: 8. | O16: =-(SUMIFS('Accounting Data'!C2:C100000,'Accounting Data'!E2:E100000,"22?",'Accounting Data'!J2:J100000,"5???")) -> 0 | P16: =SUMIFS('Accounting Data'!C2:C100000,'Accounting Data'!E2:E100000,"22?",'Accounting Data'!J2:J100000,"69??") -> 59855 | Q16: 8.
A17: 230 Johnson-O'Malley | D17: 9. | E17: ='Accounting Data'!R138 -> -13402 | F17: =-(SUMIFS('Accounting Data'!C2:C100000,'Accounting Data'!E2:E100000,"23?",'Accounting Data'!J2:J100000,"1???")+SUMIFS('Accounting Data'!C2:C100000,'Accounting Data'!E2:E100000,"23?",'Accounting Data'!J2:J100000,"2???")+SUMIFS('Accounting Data'!C2:C100000,'Accounting Data'!E2:E100000,"23?",'Accounting Data'!J2:J100000,"3???")+SUMIFS('Accounting Data'!C2:C100000,'Accounting Data'!E2:E100000,"23?",'Accounting Data'!J2:J100000,"4???")) -> 180832 | G17: 0 | H17: =[1]!F230BudgFY -> 322745 | I17: =SUMIFS('Accounting Data'!C2:C100000,'Accounting Data'!E2:E100000,"23?",'Accounting Data'!J2:J100000,"6???")-P17 -> 217260 | J17: -49830 | L17: 9. | N17: 9. | O17: =-(SUMIFS('Accounting Data'!C2:C100000,'Accounting Data'!E2:E100000,"23?",'Accounting Data'!J2:J100000,"5???")) -> 0 | P17: =SUMIFS('Accounting Data'!C2:C100000,'Accounting Data'!E2:E100000,"23?",'Accounting Data'!J2:J100000,"69??") -> 0 | Q17: 9.
A18: 240 Workforce Investment Act | D18: 10. | E18: ='Accounting Data'!R148 -> 0 | F18: =-(SUMIFS('Accounting Data'!C2:C100000,'Accounting Data'!E2:E100000,"24?",'Accounting Data'!J2:J100000,"1???")+SUMIFS('Accounting Data'!C2:C100000,'Accounting Data'!E2:E100000,"24?",'Accounting Data'!J2:J100000,"2???")+SUMIFS('Accounting Data'!C2:C100000,'Accounting Data'!E2:E100000,"24?",'Accounting Data'!J2:J100000,"3???")+SUMIFS('Accounting Data'!C2:C100000,'Accounting Data'!E2:E100000,"24?",'Accounting Data'!J2:J100000,"4???")) -> 0 | G18: 0 | H18: =[1]!F240BudgFY -> 0 | I18: =SUMIFS('Accounting Data'!C2:C100000,'Accounting Data'!E2:E100000,"24?",'Accounting Data'!J2:J100000,"6???")-P18 -> 0 | J18: 0 | L18: 10. | N18: 10. | O18: =-(SUMIFS('Accounting Data'!C2:C100000,'Accounting Data'!E2:E100000,"24?",'Accounting Data'!J2:J100000,"5???")) -> 0 | P18: =SUMIFS('Accounting Data'!C2:C100000,'Accounting Data'!E2:E100000,"24?",'Accounting Data'!J2:J100000,"69??") -> 0 | Q18: 10.
A19: 250 AEA-Adult Education | D19: 11. | E19: ='Accounting Data'!R158 -> 0 | F19: =-(SUMIFS('Accounting Data'!C2:C100000,'Accounting Data'!E2:E100000,"25?",'Accounting Data'!J2:J100000,"1???")+SUMIFS('Accounting Data'!C2:C100000,'Accounting Data'!E2:E100000,"25?",'Accounting Data'!J2:J100000,"2???")+SUMIFS('Accounting Data'!C2:C100000,'Accounting Data'!E2:E100000,"25?",'Accounting Data'!J2:J100000,"3???")+SUMIFS('Accounting Data'!C2:C100000,'Accounting Data'!E2:E100000,"25?",'Accounting Data'!J2:J100000,"4???")) -> 0 | G19: 0 | H19: =[1]!F250BudgFY -> 0 | I19: =SUMIFS('Accounting Data'!C2:C100000,'Accounting Data'!E2:E100000,"25?",'Accounting Data'!J2:J100000,"6???")-P19 -> 0 | J19: 0 | L19: 11. | N19: 11. | O19: =-(SUMIFS('Accounting Data'!C2:C100000,'Accounting Data'!E2:E100000,"25?",'Accounting Data'!J2:J100000,"5???")) -> 0 | P19: =SUMIFS('Accounting Data'!C2:C100000,'Accounting Data'!E2:E100000,"25?",'Accounting Data'!J2:J100000,"69??") -> 0 | Q19: 11.
A20: 260-270 Vocational Education - Basic Grants | D20: 12. | E20: ='Accounting Data'!R168 -> -322 | F20: =-(SUMIFS('Accounting Data'!C2:C100000,'Accounting Data'!E2:E100000,"26?",'Accounting Data'!J2:J100000,"1???")+SUMIFS('Accounting Data'!C2:C100000,'Accounting Data'!E2:E100000,"27?",'Accounting Data'!J2:J100000,"1???")+SUMIFS('Accounting Data'!C2:C100000,'Accounting Data'!E2:E100000,"26?",'Accounting Data'!J2:J100000,"2???")+SUMIFS('Accounting Data'!C2:C100000,'Accounting Data'!E2:E100000,"27?",'Accounting Data'!J2:J100000,"2???")+SUMIFS('Accounting Data'!C2:C100000,'Accounting Data'!E2:E100000,"26?",'Accounting Data'!J2:J100000,"3???")+SUMIFS('Accounting Data'!C2:C100000,'Accounting Data'!E2:E100000,"27?",'Accounting Data'!J2:J100000,"3???")+SUMIFS('Accounting Data'!C2:C100000,'Accounting Data'!E2:E100000,"26?",'Accounting Data'!J2:J100000,"4???")+SUMIFS('Accounting Data'!C2:C100000,'Accounting Data'!E2:E100000,"27?",'Accounting Data'!J2:J100000,"4???")) -> 65101 | G20: -2540 | H20: =[1]!F260270BudgFY -> 60000 | I20: =(SUMIFS('Accounting Data'!C2:C65356,'Accounting Data'!E2:E65356,"26?",'Accounting Data'!J2:J65356,"6???")+SUMIFS('Accounting Data'!C2:C65356,'Accounting Data'!E2:E65356,"27?",'Accounting Data'!J2:J65356,"6???"))-P20 -> 62618 | J20: =E20+F20+G20-I20 -> -379 | L20: 12. | N20: 12. | O20: =-(SUMIFS('Accounting Data'!C2:C100000,'Accounting Data'!E2:E100000,"26?",'Accounting Data'!J2:J100000,"5???")+SUMIFS('Accounting Data'!C2:C100000,'Accounting Data'!E2:E100000,"27?",'Accounting Data'!J2:J100000,"5???")) -> 0 | P20: =SUMIFS('Accounting Data'!C2:C100000,'Accounting Data'!E2:E100000,"26?",'Accounting Data'!J2:J100000,"69??")+SUMIFS('Accounting Data'!C2:C100000,'Accounting Data'!E2:E100000,"27?",'Accounting Data'!J2:J100000,"69??") -> 2540 | Q20: 12.
A21: 280 ESEA Title X - Homeless Education | D21: 13. | E21: ='Accounting Data'!R188 -> -1 | F21: =-(SUMIFS('Accounting Data'!C2:C100000,'Accounting Data'!E2:E100000,"28?",'Accounting Data'!J2:J100000,"1???")+SUMIFS('Accounting Data'!C2:C100000,'Accounting Data'!E2:E100000,"28?",'Accounting Data'!J2:J100000,"2???")+SUMIFS('Accounting Data'!C2:C100000,'Accounting Data'!E2:E100000,"28?",'Accounting Data'!J2:J100000,"3???")+SUMIFS('Accounting Data'!C2:C100000,'Accounting Data'!E2:E100000,"28?",'Accounting Data'!J2:J100000,"4???")) -> 0 | G21: 0 | H21: =[1]!F280BudgFY -> 0 | I21: =SUMIFS('Accounting Data'!C2:C100000,'Accounting Data'!E2:E100000,"28?",'Accounting Data'!J2:J100000,"6???")-P21 -> 0 | J21: -1 | L21: 13. | N21: 13. | O21: =-(SUMIFS('Accounting Data'!C2:C100000,'Accounting Data'!E2:E100000,"28?",'Accounting Data'!J2:J100000,"5???")) -> 0 | P21: =SUMIFS('Accounting Data'!C2:C100000,'Accounting Data'!E2:E100000,"28?",'Accounting Data'!J2:J100000,"69??") -> 0 | Q21: 13.
A22: 290 Medicaid Reimbursement | D22: 14. | E22: ='Accounting Data'!R198 -> 944529 | F22: =-(SUMIFS('Accounting Data'!C2:C100000,'Accounting Data'!E2:E100000,"29?",'Accounting Data'!J2:J100000,"1???")+SUMIFS('Accounting Data'!C2:C100000,'Accounting Data'!E2:E100000,"29?",'Accounting Data'!J2:J100000,"2???")+SUMIFS('Accounting Data'!C2:C100000,'Accounting Data'!E2:E100000,"29?",'Accounting Data'!J2:J100000,"3???")+SUMIFS('Accounting Data'!C2:C100000,'Accounting Data'!E2:E100000,"29?",'Accounting Data'!J2:J100000,"4???")) -> 253731 | G22: 0 | H22: =[1]!F290BudgFY -> 300000 | I22: =SUMIFS('Accounting Data'!C2:C100000,'Accounting Data'!E2:E100000,"29?",'Accounting Data'!J2:J100000,"6???")-P22 -> 57432 | J22: 1140828 | K22: Yes | L22: 14. | N22: 14. | O22: =-(SUMIFS('Accounting Data'!C2:C100000,'Accounting Data'!E2:E100000,"29?",'Accounting Data'!J2:J100000,"5???")) -> 0 | P22: =SUMIFS('Accounting Data'!C2:C100000,'Accounting Data'!E2:E100000,"29?",'Accounting Data'!J2:J100000,"69??") -> 0 | Q22: 14.
A23: 349 National Forest Fees | D23: 15. | E23: 185278 | F23: =-SUM((SUMIFS('Accounting Data'!C2:C100000,'Accounting Data'!E2:E100000,"349",'Accounting Data'!J2:J100000,{"1???","2???","3???","4???"}))) -> 63763 | G23: =O23-P23 -> 0 | H23: 5000 | I23: =SUMIFS('Accounting Data'!C2:C100000,'Accounting Data'!E2:E100000,"349",'Accounting Data'!J2:J100000,"6???")-P23 -> 1428 | J23: 247613 | K23: Yes | L23: 15. | N23: 15. | O23: =-(SUMIFS('Accounting Data'!C2:C100000,'Accounting Data'!E2:E100000,"349",'Accounting Data'!J2:J100000,"5???")) -> 0 | P23: =SUMIFS('Accounting Data'!C2:C100000,'Accounting Data'!E2:E100000,"349",'Accounting Data'!J2:J100000,"69??") -> 0 | Q23: 15.
A24: 353 Taylor Grazing Fees | D24: 16. | E24: 0 | F24: =-SUM((SUMIFS('Accounting Data'!C2:C100000,'Accounting Data'!E2:E100000,"353",'Accounting Data'!J2:J100000,{"1???","2???","3???","4???"}))) -> 0 | G24: 0 | H24: 0 | I24: =SUMIFS('Accounting Data'!C2:C100000,'Accounting Data'!E2:E100000,"353",'Accounting Data'!J2:J100000,"6???")-P24 -> 0 | J24: 0 | K24: Yes | L24: 16. | N24: 16. | O24: =-(SUMIFS('Accounting Data'!C2:C100000,'Accounting Data'!E2:E100000,"353",'Accounting Data'!J2:J100000,"5???")) -> 0 | P24: =SUMIFS('Accounting Data'!C2:C100000,'Accounting Data'!E2:E100000,"353",'Accounting Data'!J2:J100000,"69??") -> 0 | Q24: 16.
A25: 374 E-Rate | D25: 17. | E25: 74663 | F25: =-(SUMIFS('Accounting Data'!C2:C100000,'Accounting Data'!E2:E100000,"374",'Accounting Data'!J2:J100000,"1???")+SUMIFS('Accounting Data'!C2:C100000,'Accounting Data'!E2:E100000,"374",'Accounting Data'!J2:J100000,"2???")+SUMIFS('Accounting Data'!C2:C100000,'Accounting Data'!E2:E100000,"374",'Accounting Data'!J2:J100000,"3???")+SUMIFS('Accounting Data'!C2:C100000,'Accounting Data'!E2:E100000,"374",'Accounting Data'!J2:J100000,"4???")) -> 278632 | G25: 0 | H25: 350000 | I25: =SUMIFS('Accounting Data'!C2:C100000,'Accounting Data'!E2:E100000,"374",'Accounting Data'!J2:J100000,"6???")-P25 -> 305912 | J25: 47383 | L25: 17. | N25: 17. | O25: =-(SUMIFS('Accounting Data'!C2:C100000,'Accounting Data'!E2:E100000,"374",'Accounting Data'!J2:J100000,"5???")) -> 0 | P25: =SUMIFS('Accounting Data'!C2:C100000,'Accounting Data'!E2:E100000,"374",'Accounting Data'!J2:J100000,"69??") -> 0 | Q25: 17.
A26: 378 Impact Aid | D26: 18. | E26: 7722809 | F26: =-(SUMIFS('Accounting Data'!C2:C100000,'Accounting Data'!E2:E100000,"378",'Accounting Data'!J2:J100000,"1???")+SUMIFS('Accounting Data'!C2:C100000,'Accounting Data'!E2:E100000,"378",'Accounting Data'!J2:J100000,"2???")+SUMIFS('Accounting Data'!C2:C100000,'Accounting Data'!E2:E100000,"378",'Accounting Data'!J2:J100000,"3???")+SUMIFS('Accounting Data'!C2:C100000,'Accounting Data'!E2:E100000,"378",'Accounting Data'!J2:J100000,"4???")) -> 7591800 | G26: 0 | H26: 6500000 | I26: =(SUMIFS('Accounting Data'!C2:C100000,'Accounting Data'!E2:E100000,"378",'Accounting Data'!J2:J100000,"6???"))-P26 -> 5095663 | J26: 10218946 | K26: Yes | L26: 18. | N26: 18. | O26: =-(SUMIFS('Accounting Data'!C2:C100000,'Accounting Data'!E2:E100000,"378",'Accounting Data'!J2:J100000,"5???")) -> 0 | P26: =SUMIFS('Accounting Data'!C2:C100000,'Accounting Data'!E2:E100000,"378",'Accounting Data'!J2:J100000,"69??") -> 0 | Q26: 18.
A27: 300-399 Other Federal Projects | D27: 19. | E27: 1288653 | F27: =-(SUMIFS('Accounting Data'!C2:C100000,'Accounting Data'!E2:E100000,"3??",'Accounting Data'!J2:J100000,"1???")+SUMIFS('Accounting Data'!C2:C100000,'Accounting Data'!E2:E100000,"3??",'Accounting Data'!J2:J100000,"2???")+SUMIFS('Accounting Data'!C2:C100000,'Accounting Data'!E2:E100000,"3??",'Accounting Data'!J2:J100000,"3???")+SUMIFS('Accounting Data'!C2:C100000,'Accounting Data'!E2:E100000,"3??",'Accounting Data'!J2:J100000,"4???")+SUM(SUMIFS('Accounting Data'!C2:C100000,'Accounting Data'!E2:E100000,"COVID",'Accounting Data'!J2:J100000,{"1???","2???","3???","4???"})))-SUM(F23:F26) -> 3529400 | G27: -30591 | H27: 2500000 | I27: =(SUMIFS('Accounting Data'!C2:C100000,'Accounting Data'!E2:E100000,"3??",'Accounting Data'!J2:J100000,"6???")+SUMIFS('Accounting Data'!C2:C100000,'Accounting Data'!E2:E100000,"COVID",'Accounting Data'!J2:J100000,"6???"))-SUM(I23:I26,P23:P27) -> 2627645 | J27: =E27+F27+G27-I27 -> 2159817 | K27: No | L27: 19. | N27: 19. | O27: =-(SUMIFS('Accounting Data'!C2:C100000,'Accounting Data'!E2:E100000,"3??",'Accounting Data'!J2:J100000,"5???"))-(SUMIFS('Accounting Data'!C2:C100000,'Accounting Data'!E2:E100000,"COVID",'Accounting Data'!J2:J100000,"5???"))-SUM(O23:O26) -> 0 | P27: =SUMIFS('Accounting Data'!C2:C100000,'Accounting Data'!E2:E100000,"3??",'Accounting Data'!J2:J100000,"69??")+SUMIFS('Accounting Data'!C2:C100000,'Accounting Data'!E2:E100000,"COVID",'Accounting Data'!J2:J100000,"69??")-SUM(P23:P26) -> 30591 | Q27: 19.
A28: 699 Federal Impact Aid (Construction) | D28: 20. | E28: 0 | F28: =-(SUMIFS('Accounting Data'!C2:C100000,'Accounting Data'!E2:E100000,"699",'Accounting Data'!J2:J100000,"1???")+SUMIFS('Accounting Data'!C2:C100000,'Accounting Data'!E2:E100000,"699",'Accounting Data'!J2:J100000,"2???")+SUMIFS('Accounting Data'!C2:C100000,'Accounting Data'!E2:E100000,"699",'Accounting Data'!J2:J100000,"3???")+SUMIFS('Accounting Data'!C2:C100000,'Accounting Data'!E2:E100000,"699",'Accounting Data'!J2:J100000,"4???")) -> 0 | G28: 0 | H28: 0 | I28: =SUMIFS('Accounting Data'!C2:C100000,'Accounting Data'!E2:E100000,"699",'Accounting Data'!J2:J100000,"6???")-P28 -> 0 | J28: =E28+F28+G28-I28 -> 0 | L28: 20. | N28: 20. | O28: =-(SUMIFS('Accounting Data'!C2:C100000,'Accounting Data'!E2:E100000,"699",'Accounting Data'!J2:J100000,"5???")) -> 0 | P28: =SUMIFS('Accounting Data'!C2:C100000,'Accounting Data'!E2:E100000,"699",'Accounting Data'!J2:J100000,"69??") -> 0 | Q28: 20.
A29: Total Federal Project Funds (lines 1-20) | D29: 21. | E29: =SUM(E9:E28) -> 10124773 | F29: 13689264 | G29: -235085 | H29: 11802994 | I29: 10121020 | J29: 13457932 | L29: 21.
A31: Total COVID-19 Federal Relief Funds included in lines above | D31: 22. | E31: ='Accounting Data'!R542 -> -1313169 | F31: =-((SUM(SUMIFS('Accounting Data'!C2:C100000,'Accounting Data'!E2:E100000,"COVID",'Accounting Data'!J2:J100000,{"1???","2???","3???","4???"})))+SUM(SUMIFS('Accounting Data'!C2:C100000,'Accounting Data'!E2:E100000,"227",'Accounting Data'!J2:J100000,{"1???","2???","3???","4???"}))+SUM(SUMIFS('Accounting Data'!C2:C100000,'Accounting Data'!E2:E100000,"228",'Accounting Data'!J2:J100000,{"1???","2???","3???","4???"}))) -> 3224672 | G31: =O31-P31 -> -5420 | I31: =SUMIFS('Accounting Data'!C2:C100000,'Accounting Data'!E2:E100000,"COVID",'Accounting Data'!J2:J100000,"6???")+SUMIFS('Accounting Data'!C2:C100000,'Accounting Data'!E2:E100000,"227",'Accounting Data'!J2:J100000,"6???")+SUMIFS('Accounting Data'!C2:C100000,'Accounting Data'!E2:E100000,"228",'Accounting Data'!J2:J100000,"6???")-P31 -> 2312997 | J31: =E31+F31+G31-I31 -> -406914 | L31: 22. | N31: 22. | O31: =-(SUM(SUMIFS('Accounting Data'!C2:C100000,'Accounting Data'!E2:E100000,{"COVID","227","228"},'Accounting Data'!J2:J100000,"5???"))) -> 0 | P31: =(SUM(SUMIFS('Accounting Data'!C2:C100000,'Accounting Data'!E2:E100000,{"COVID","227","228"},'Accounting Data'!J2:J100000,"69??"))) -> 5420 | Q31: 22.
A35: STATE PROJECTS | O35: OTHER FINANCING SOURCES (2) | P35: OTHER FINANCING USES (2)
A36: 400 Vocational Education | D36: 23. | E36: ='Accounting Data'!R308 -> 0 | F36: =-(SUMIFS('Accounting Data'!C2:C100000,'Accounting Data'!E2:E100000,"400",'Accounting Data'!J2:J100000,"1???")+SUMIFS('Accounting Data'!C2:C100000,'Accounting Data'!E2:E100000,"400",'Accounting Data'!J2:J100000,"2???")+SUMIFS('Accounting Data'!C2:C100000,'Accounting Data'!E2:E100000,"400",'Accounting Data'!J2:J100000,"3???")+SUMIFS('Accounting Data'!C2:C100000,'Accounting Data'!E2:E100000,"400",'Accounting Data'!J2:J100000,"4???")) -> 44992 | G36: =O36-P36 -> 0 | H36: =[1]!F400BudgFY -> 50000 | I36: =SUMIFS('Accounting Data'!C2:C100000,'Accounting Data'!E2:E100000,"400",'Accounting Data'!J2:J100000,"6???")-P36 -> 45011 | J36: =E36+F36-I36 -> -19 | L36: 23. | N36: 23. | O36: =-(SUMIFS('Accounting Data'!C2:C100000,'Accounting Data'!E2:E100000,"400",'Accounting Data'!J2:J100000,"5???")) -> 0 | P36: =SUMIFS('Accounting Data'!C$2:C$100000,'Accounting Data'!E$2:E$100000,"400",'Accounting Data'!J$2:J$100000,"69??") -> 0 | Q36: 23.
A37: 410 Early Childhood Block Grant | D37: 24. | E37: ='Accounting Data'!R309 -> 0 | F37: =-(SUMIFS('Accounting Data'!C2:C100000,'Accounting Data'!E2:E100000,"410",'Accounting Data'!J2:J100000,"1???")+SUMIFS('Accounting Data'!C2:C100000,'Accounting Data'!E2:E100000,"410",'Accounting Data'!J2:J100000,"2???")+SUMIFS('Accounting Data'!C2:C100000,'Accounting Data'!E2:E100000,"410",'Accounting Data'!J2:J100000,"3???")+SUMIFS('Accounting Data'!C2:C100000,'Accounting Data'!E2:E100000,"410",'Accounting Data'!J2:J100000,"4???")) -> 0 | G37: 0 | H37: =[1]!F410BudgFY -> 0 | I37: =SUMIFS('Accounting Data'!C2:C100000,'Accounting Data'!E2:E100000,"410",'Accounting Data'!J2:J100000,"6???")-P37 -> 0 | J37: =E37+F37-I37 -> 0 | L37: 24 | N37: 24 | O37: =-(SUMIFS('Accounting Data'!C2:C100000,'Accounting Data'!E2:E100000,"410",'Accounting Data'!J2:J100000,"5???")) -> 0 | P37: =SUMIFS('Accounting Data'!C$2:C$100000,'Accounting Data'!E$2:E$100000,"410",'Accounting Data'!J$2:J$100000,"69??") -> 0 | Q37: 24
A38: 420 Ext. School Yr. - Pupils with Disabilities | D38: 25. | E38: ='Accounting Data'!R310 -> 0 | F38: =-(SUMIFS('Accounting Data'!C2:C100000,'Accounting Data'!E2:E100000,"420",'Accounting Data'!J2:J100000,"1???")+SUMIFS('Accounting Data'!C2:C100000,'Accounting Data'!E2:E100000,"420",'Accounting Data'!J2:J100000,"2???")+SUMIFS('Accounting Data'!C2:C100000,'Accounting Data'!E2:E100000,"420",'Accounting Data'!J2:J100000,"3???")+SUMIFS('Accounting Data'!C2:C100000,'Accounting Data'!E2:E100000,"420",'Accounting Data'!J2:J100000,"4???")) -> 0 | G38: 0 | H38: =[1]!F420BudgFY -> 0 | I38: =SUMIFS('Accounting Data'!C2:C100000,'Accounting Data'!E2:E100000,"420",'Accounting Data'!J2:J100000,"6???")-P38 -> 0 | J38: 0 | L38: 25. | N38: 25. | O38: =-(SUMIFS('Accounting Data'!C2:C100000,'Accounting Data'!E2:E100000,"420",'Accounting Data'!J2:J100000,"5???")) -> 0 | P38: =SUMIFS('Accounting Data'!C$2:C$100000,'Accounting Data'!E$2:E$100000,"420",'Accounting Data'!J$2:J$100000,"69??") -> 0 | Q38: 25.
A39: 425 Adult Basic Education | D39: 26. | E39: ='Accounting Data'!R311 -> 0 | F39: =-(SUMIFS('Accounting Data'!C2:C100000,'Accounting Data'!E2:E100000,"425",'Accounting Data'!J2:J100000,"1???")+SUMIFS('Accounting Data'!C2:C100000,'Accounting Data'!E2:E100000,"425",'Accounting Data'!J2:J100000,"2???")+SUMIFS('Accounting Data'!C2:C100000,'Accounting Data'!E2:E100000,"425",'Accounting Data'!J2:J100000,"3???")+SUMIFS('Accounting Data'!C2:C100000,'Accounting Data'!E2:E100000,"425",'Accounting Data'!J2:J100000,"4???")) -> 0 | G39: 0 | H39: =[1]!F425BudgFY -> 0 | I39: =SUMIFS('Accounting Data'!C2:C100000,'Accounting Data'!E2:E100000,"425",'Accounting Data'!J2:J100000,"6???")-P39 -> 0 | J39: 0 | L39: 26. | N39: 26. | O39: =-(SUMIFS('Accounting Data'!C2:C100000,'Accounting Data'!E2:E100000,"425",'Accounting Data'!J2:J100000,"5???")) -> 0 | P39: =SUMIFS('Accounting Data'!C$2:C$100000,'Accounting Data'!E$2:E$100000,"425",'Accounting Data'!J$2:J$100000,"69??") -> 0 | Q39: 26.
A40: 430 Chemical Abuse Prevention Programs | D40: 27. | E40: ='Accounting Data'!R312 -> 0 | F40: =-(SUMIFS('Accounting Data'!C2:C100000,'Accounting Data'!E2:E100000,"430",'Accounting Data'!J2:J100000,"1???")+SUMIFS('Accounting Data'!C2:C100000,'Accounting Data'!E2:E100000,"430",'Accounting Data'!J2:J100000,"2???")+SUMIFS('Accounting Data'!C2:C100000,'Accounting Data'!E2:E100000,"430",'Accounting Data'!J2:J100000,"3???")+SUMIFS('Accounting Data'!C2:C100000,'Accounting Data'!E2:E100000,"430",'Accounting Data'!J2:J100000,"4???")) -> 0 | G40: 0 | H40: =[1]!F430BudgFY -> 0 | I40: =SUMIFS('Accounting Data'!C2:C100000,'Accounting Data'!E2:E100000,"430",'Accounting Data'!J2:J100000,"6???")-P40 -> 0 | J40: 0 | L40: 27. | N40: 27. | O40: =-(SUMIFS('Accounting Data'!C2:C100000,'Accounting Data'!E2:E100000,"430",'Accounting Data'!J2:J100000,"5???")) -> 0 | P40: =SUMIFS('Accounting Data'!C$2:C$100000,'Accounting Data'!E$2:E$100000,"430",'Accounting Data'!J$2:J$100000,"69??") -> 0 | Q40: 27.
A41: 435 Academic Contests | D41: 28. | E41: ='Accounting Data'!R313 -> 0 | F41: =-(SUMIFS('Accounting Data'!C2:C100000,'Accounting Data'!E2:E100000,"435",'Accounting Data'!J2:J100000,"1???")+SUMIFS('Accounting Data'!C2:C100000,'Accounting Data'!E2:E100000,"435",'Accounting Data'!J2:J100000,"2???")+SUMIFS('Accounting Data'!C2:C100000,'Accounting Data'!E2:E100000,"435",'Accounting Data'!J2:J100000,"3???")+SUMIFS('Accounting Data'!C2:C100000,'Accounting Data'!E2:E100000,"435",'Accounting Data'!J2:J100000,"4???")) -> 0 | G41: 0 | H41: =[1]!F435BudgFY -> 0 | I41: =SUMIFS('Accounting Data'!C2:C100000,'Accounting Data'!E2:E100000,"435",'Accounting Data'!J2:J100000,"6???")-P41 -> 0 | J41: 0 | L41: 28. | N41: 28. | O41: =-(SUMIFS('Accounting Data'!C2:C100000,'Accounting Data'!E2:E100000,"435",'Accounting Data'!J2:J100000,"5???")) -> 0 | P41: =SUMIFS('Accounting Data'!C$2:C$100000,'Accounting Data'!E$2:E$100000,"435",'Accounting Data'!J$2:J$100000,"69??") -> 0 | Q41: 28.
A42: 450 Gifted Education | D42: 29. | E42: ='Accounting Data'!R314 -> 0 | F42: =-(SUMIFS('Accounting Data'!C2:C100000,'Accounting Data'!E2:E100000,"450",'Accounting Data'!J2:J100000,"1???")+SUMIFS('Accounting Data'!C2:C100000,'Accounting Data'!E2:E100000,"450",'Accounting Data'!J2:J100000,"2???")+SUMIFS('Accounting Data'!C2:C100000,'Accounting Data'!E2:E100000,"450",'Accounting Data'!J2:J100000,"3???")+SUMIFS('Accounting Data'!C2:C100000,'Accounting Data'!E2:E100000,"450",'Accounting Data'!J2:J100000,"4???")) -> 0 | G42: 0 | H42: =[1]!F450BudgFY -> 0 | I42: =SUMIFS('Accounting Data'!C2:C100000,'Accounting Data'!E2:E100000,"450",'Accounting Data'!J2:J100000,"6???")-P42 -> 0 | J42: 0 | L42: 29. | N42: 29. | O42: =-(SUMIFS('Accounting Data'!C2:C100000,'Accounting Data'!E2:E100000,"450",'Accounting Data'!J2:J100000,"5???")) -> 0 | P42: =SUMIFS('Accounting Data'!C$2:C$100000,'Accounting Data'!E$2:E$100000,"450",'Accounting Data'!J$2:J$100000,"69??") -> 0 | Q42: 29.
A43: 456 College Credit Exam Incentives | D43: 30. | E43: ='Accounting Data'!R315 -> 10725 | F43: =-(SUMIFS('Accounting Data'!C2:C100000,'Accounting Data'!E2:E100000,"456",'Accounting Data'!J2:J100000,"1???")+SUMIFS('Accounting Data'!C2:C100000,'Accounting Data'!E2:E100000,"456",'Accounting Data'!J2:J100000,"2???")+SUMIFS('Accounting Data'!C2:C100000,'Accounting Data'!E2:E100000,"456",'Accounting Data'!J2:J100000,"3???")+SUMIFS('Accounting Data'!C2:C100000,'Accounting Data'!E2:E100000,"456",'Accounting Data'!J2:J100000,"4???")) -> 1035 | G43: 0 | H43: ='[1]Page 6'!$J$33 -> 0 | I43: =SUMIFS('Accounting Data'!C2:C100000,'Accounting Data'!E2:E100000,"456",'Accounting Data'!J2:J100000,"6???")-P43 -> 0 | J43: 11760 | L43: 30. | N43: 30. | O43: =-(SUMIFS('Accounting Data'!C2:C100000,'Accounting Data'!E2:E100000,"456",'Accounting Data'!J2:J100000,"5???")) -> 0 | P43: =SUMIFS('Accounting Data'!C$2:C$100000,'Accounting Data'!E$2:E$100000,"456",'Accounting Data'!J$2:J$100000,"69??") -> 0 | Q43: 30.
A44: 457 Results-based Funding | D44: 31. | E44: ='Accounting Data'!R316 -> 0 | F44: =-(SUMIFS('Accounting Data'!C2:C100000,'Accounting Data'!E2:E100000,"457",'Accounting Data'!J2:J100000,"1???")+SUMIFS('Accounting Data'!C2:C100000,'Accounting Data'!E2:E100000,"457",'Accounting Data'!J2:J100000,"2???")+SUMIFS('Accounting Data'!C2:C100000,'Accounting Data'!E2:E100000,"457",'Accounting Data'!J2:J100000,"3???")+SUMIFS('Accounting Data'!C2:C100000,'Accounting Data'!E2:E100000,"457",'Accounting Data'!J2:J100000,"4???")) -> 0 | G44: 0 | H44: ='[1]Page 6'!$J$34 -> 0 | I44: =SUMIFS('Accounting Data'!C2:C100000,'Accounting Data'!E2:E100000,"457",'Accounting Data'!J2:J100000,"6???")-P44 -> 0 | J44: =E44+F44-I44 -> 0 | L44: 31. | N44: 31. | O44: =-(SUMIFS('Accounting Data'!C2:C100000,'Accounting Data'!E2:E100000,"457",'Accounting Data'!J2:J100000,"5???")) -> 0 | P44: =SUMIFS('Accounting Data'!C$2:C$100000,'Accounting Data'!E$2:E$100000,"457",'Accounting Data'!J$2:J$100000,"69??") -> 0 | Q44: 31.
A45: 460 Environmental Special Plate | D45: 32. | E45: ='Accounting Data'!R317 -> 0 | F45: =-(SUMIFS('Accounting Data'!C2:C100000,'Accounting Data'!E2:E100000,"460",'Accounting Data'!J2:J100000,"1???")+SUMIFS('Accounting Data'!C2:C100000,'Accounting Data'!E2:E100000,"460",'Accounting Data'!J2:J100000,"2???")+SUMIFS('Accounting Data'!C2:C100000,'Accounting Data'!E2:E100000,"460",'Accounting Data'!J2:J100000,"3???")+SUMIFS('Accounting Data'!C2:C100000,'Accounting Data'!E2:E100000,"460",'Accounting Data'!J2:J100000,"4???")) -> 0 | G45: 0 | H45: =[1]!F460BudgFY -> 0 | I45: =SUMIFS('Accounting Data'!C2:C100000,'Accounting Data'!E2:E100000,"460",'Accounting Data'!J2:J100000,"6???")-P45 -> 0 | J45: =E45+F45-I45 -> 0 | L45: 32. | N45: 32. | O45: =-(SUMIFS('Accounting Data'!C2:C100000,'Accounting Data'!E2:E100000,"460",'Accounting Data'!J2:J100000,"5???")) -> 0 | P45: =SUMIFS('Accounting Data'!C$2:C$100000,'Accounting Data'!E$2:E$100000,"460",'Accounting Data'!J$2:J$100000,"69??") -> 0 | Q45: 32.
A46: 465-499 Other State Projects | D46: 33. | E46: ='Accounting Data'!R318 -> 324256 | F46: =-(SUMIFS('Accounting Data'!C2:C100000,'Accounting Data'!E2:E100000,"4??",'Accounting Data'!J2:J100000,"1???")+SUMIFS('Accounting Data'!C2:C100000,'Accounting Data'!E2:E100000,"4??",'Accounting Data'!J2:J100000,"2???")+SUMIFS('Accounting Data'!C2:C100000,'Accounting Data'!E2:E100000,"4??",'Accounting Data'!J2:J100000,"3???")+SUMIFS('Accounting Data'!C2:C100000,'Accounting Data'!E2:E100000,"4??",'Accounting Data'!J2:J100000,"4???"))-SUM(F36:F45) -> 415482 | G46: 0 | H46: =[1]!F465499BudgFY -> 61000 | I46: =SUMIFS('Accounting Data'!C2:C100000,'Accounting Data'!E2:E100000,"4??",'Accounting Data'!J2:J100000,"6???")-SUM(I36:I45)-SUM(P36:P45)-P46 -> 174940 | J46: =E46+F46-I46 -> 564798 | K46: No | L46: 33. | N46: 33. | O46: =-(SUMIFS('Accounting Data'!C2:C100000,'Accounting Data'!E2:E100000,"4??",'Accounting Data'!J2:J100000,"5???"))-SUM(O36:O45) -> 0 | P46: =SUMIFS('Accounting Data'!C$2:C$100000,'Accounting Data'!E$2:E$100000,"4??",'Accounting Data'!J$2:J$100000,"69??")-SUM(P36:P45) -> 0 | Q46: 33.
A47: Total State Project Funds (lines 23-33) | D47: 34. | E47: =SUM(E36:E46) -> 334981 | F47: 461509 | G47: 0 | H47: 111000 | I47: 219951 | J47: 576539 | L47: 34.
A49: Total Federal and State Projects (lines 21 and 34) | D49: 35. | E49: =SUM(E29+E47) -> 10459754 | F49: 14150773 | G49: -235085 | H49: 11913994 | I49: 10340971 | J49: 14034471 | L49: 35.
A51: (1) In accordance with the USFR Chart of Accounts, the Impact Aid Fund may transfer monies (object code 6930) to the M&O and Teacherage Funds; the Impact Aid Fund may also receive transfers-in (object code 5200) from the Impact Aid Revenue Bond Building and Impact Aid Revenue Bond Debt Service Funds; all other Federal Projects Funds may not receive any transfers-in and may only make transfers-out to the Indirect Costs Fund based on an approved indirect cost rate (object code 6910) and for any interest on federal program monies the district is not required to revert and chooses to transfer to the Indirect Cost Fund (object code 6930).
A55: (2) In accordance with the USFR Chart of Accounts, transfers of monies between funds should be made only when specifically authorized by statute or allowed by a federal grant. Currently, there are no allowable transfers to or from any state projects.

Sheet Page 6
A1: DISTRICT NAME | B1: =CoverDistrictName -> Page Unified School District | F1: COUNTY | G1: =County -> Coconino | K1: CTDS NUMBER | L1: =Cover!Q1 -> 030208000
F3: NET OTHER FINANCING SOURCES AND USES | R3: OTHER FINANCING | S3: OTHER FINANCING
D4: BEGINNING | I4: ENDING FUND | K4: =IF(N13<>N14,"Total detailed Instructional Improvement Fund expenditures reported on line 5 do not agree with your accounting records. Please verify entered amounts.","") ->  | R4: SOURCES INCLUDING | S4: USES INCLUDING
D5: FUND BALANCE | E5: REVENUES | F5: INCLUDING TRANSFERS | G5: EXPENDITURES | I5: BALANCE | R5: TRANSFERS-IN | S5: TRANSFERS-OUT
A6: OTHER FUNDS | D6: ACTUAL | E6: ACTUAL | F6: ACTUAL | G6: BUDGET | H6: ACTUAL | I6: ACTUAL | R6: 5000 | S6: 6900
A7: 020 Instructional Improvement | C7: 1. | D7: ='Accounting Data'!R4 -> 67312 | E7: =-(SUMIFS('Accounting Data'!C$2:C$100000,'Accounting Data'!E$2:E$100000,"020",'Accounting Data'!J$2:J$100000,"1???")+SUMIFS('Accounting Data'!C$2:C$100000,'Accounting Data'!E$2:E$100000,"020",'Accounting Data'!J$2:J$100000,"2???")+SUMIFS('Accounting Data'!C$2:C$100000,'Accounting Data'!E$2:E$100000,"020",'Accounting Data'!J$2:J$100000,"3???")+SUMIFS('Accounting Data'!C$2:C$100000,'Accounting Data'!E$2:E$100000,"020",'Accounting Data'!J$2:J$100000,"4???")) -> 216747 | G7: =M13 -> 150000 | H7: =ROUND(SUMIFS('Accounting Data'!C2:C100000,'Accounting Data'!E2:E100000,"020",'Accounting Data'!J2:J100000,"6???")-SUMIFS('Accounting Data'!C2:C100000,'Accounting Data'!E2:E100000,"020",'Accounting Data'!J2:J100000,"69??"),0) -> 76084 | I7: =D7+E7+F7-H7 -> 207975 | J7: 1. | K7: Instructional Improvement Fund 020 | M7: BUDGET | N7: ACTUAL | Q7: 1. | T7: 1. | Y7: =IF(OR(Y9="yes",Y40="yes",Y41="yes"),"yes","") -> 
A8: 050 County, City, and Town Grants | C8: 2. | D8: ='Accounting Data'!R5 -> 0 | E8: =-(SUMIFS('Accounting Data'!C$2:C$100000,'Accounting Data'!E$2:E$100000,"050",'Accounting Data'!J$2:J$100000,"1???")+SUMIFS('Accounting Data'!C$2:C$100000,'Accounting Data'!E$2:E$100000,"050",'Accounting Data'!J$2:J$100000,"2???")+SUMIFS('Accounting Data'!C$2:C$100000,'Accounting Data'!E$2:E$100000,"050",'Accounting Data'!J$2:J$100000,"3???")+SUMIFS('Accounting Data'!C$2:C$100000,'Accounting Data'!E$2:E$100000,"050",'Accounting Data'!J$2:J$100000,"4???")) -> 0 | F8: =R8-S8 -> 0 | G8: =[1]!F050BudgFY -> 100000 | H8: =(SUMIFS('Accounting Data'!C$2:C$100000,'Accounting Data'!E$2:E$100000,"050",'Accounting Data'!J$2:J$100000,"6???"))-(SUMIFS('Accounting Data'!C$2:C$100000,'Accounting Data'!E$2:E$100000,"050",'Accounting Data'!J$2:J$100000,"69??")) -> 272 | I8: =D8+E8+F8-H8 -> -272 | J8: 2. | K8: Expenditures | Q8: 2. | R8: =-(SUMIFS('Accounting Data'!C$2:C$100000,'Accounting Data'!E$2:E$100000,"050",'Accounting Data'!J$2:J$100000,"5???")) -> 0 | S8: =(SUMIFS('Accounting Data'!C$2:C$100000,'Accounting Data'!E$2:E$100000,"050",'Accounting Data'!J$2:J$100000,"69??")) -> 0 | T8: 2.
A9: 071 English Language Learner (1) | C9: 3. | D9: ='Accounting Data'!R6 -> 0 | E9: =-(SUMIFS('Accounting Data'!C$2:C$100000,'Accounting Data'!E$2:E$100000,"071",'Accounting Data'!J$2:J$100000,"1???")+SUMIFS('Accounting Data'!C$2:C$100000,'Accounting Data'!E$2:E$100000,"071",'Accounting Data'!J$2:J$100000,"2???")+SUMIFS('Accounting Data'!C$2:C$100000,'Accounting Data'!E$2:E$100000,"071",'Accounting Data'!J$2:J$100000,"3???")+SUMIFS('Accounting Data'!C$2:C$100000,'Accounting Data'!E$2:E$100000,"071",'Accounting Data'!J$2:J$100000,"4???")) -> 33401 | F9: =R9-S9 -> 0 | G9: =[1]!F071BudgFY -> 37835 | H9: =F071TOTALEXP -> 33402 | I9: =D9+E9+F9-H9 -> -1 | J9: 3. | K9: Teacher Compensation Increases | M9: =[1]!F020TeachCompIncrBudgFY -> 0 | N9: 0 | O9: 1. | Q9: 3. | R9: =-(SUMIFS('Accounting Data'!C$2:C$100000,'Accounting Data'!E$2:E$100000,"071",'Accounting Data'!J$2:J$100000,"5???")) -> 0 | S9: =(SUMIFS('Accounting Data'!C$2:C$100000,'Accounting Data'!E$2:E$100000,"071",'Accounting Data'!J$2:J$100000,"69??")) -> 0 | T9: 3. | Y9: =IF(OR(N9="",N10="",N11="",N12=""),"yes","") -> 
A10: 072 Compensatory Instruction (1) | C10: 4. | D10: ='Accounting Data'!R7 -> 0 | E10: =-(SUMIFS('Accounting Data'!C$2:C$100000,'Accounting Data'!E$2:E$100000,"072",'Accounting Data'!J$2:J$100000,"1???")+SUMIFS('Accounting Data'!C$2:C$100000,'Accounting Data'!E$2:E$100000,"072",'Accounting Data'!J$2:J$100000,"2???")+SUMIFS('Accounting Data'!C$2:C$100000,'Accounting Data'!E$2:E$100000,"072",'Accounting Data'!J$2:J$100000,"3???")+SUMIFS('Accounting Data'!C$2:C$100000,'Accounting Data'!E$2:E$100000,"072",'Accounting Data'!J$2:J$100000,"4???")) -> 0 | F10: =R10-S10 -> 0 | G10: =[1]!F072BudgFY -> 0 | H10: =F072TOTALEXP -> 0 | I10: =D10+E10+F10-H10 -> 0 | J10: 4. | K10: Class Size Reduction | M10: =[1]!F020ClassSizeRedBudgFY -> 0 | N10: 0 | O10: 2. | Q10: 4. | R10: =-(SUMIFS('Accounting Data'!C$2:C$100000,'Accounting Data'!E$2:E$100000,"072",'Accounting Data'!J$2:J$100000,"5???")) -> 0 | S10: =(SUMIFS('Accounting Data'!C$2:C$100000,'Accounting Data'!E$2:E$100000,"072",'Accounting Data'!J$2:J$100000,"69??")) -> 0 | T10: 4.
A11: 500 School Plant | C11: 5. | D11: ='Accounting Data'!R353 -> 117465 | E11: =-(SUMIFS('Accounting Data'!C$2:C$100000,'Accounting Data'!E$2:E$100000,"500",'Accounting Data'!J$2:J$100000,"1???")+SUMIFS('Accounting Data'!C$2:C$100000,'Accounting Data'!E$2:E$100000,"500",'Accounting Data'!J$2:J$100000,"2???")+SUMIFS('Accounting Data'!C$2:C$100000,'Accounting Data'!E$2:E$100000,"500",'Accounting Data'!J$2:J$100000,"3???")+SUMIFS('Accounting Data'!C$2:C$100000,'Accounting Data'!E$2:E$100000,"500",'Accounting Data'!J$2:J$100000,"4???")) -> 5351 | F11: =R11-S11 -> 30370 | G11: =[1]!F500BudgFY -> 25000 | H11: =(SUMIFS('Accounting Data'!C$2:C$100000,'Accounting Data'!E$2:E$100000,"500",'Accounting Data'!J$2:J$100000,"6???"))-(SUMIFS('Accounting Data'!C$2:C$100000,'Accounting Data'!E$2:E$100000,"500",'Accounting Data'!J$2:J$100000,"69??")) -> 3939 | I11: =D11+E11+F11-H11 -> 149247 | J11: 5. | K11: Dropout Prevention Programs | M11: =[1]!F020DropPrevProgBudgFY -> 75000 | N11: 0 | O11: 3. | Q11: 5. | R11: =-(SUMIFS('Accounting Data'!C$2:C$100000,'Accounting Data'!E$2:E$100000,"500",'Accounting Data'!J$2:J$100000,"5???")) -> 30370 | S11: =(SUMIFS('Accounting Data'!C$2:C$100000,'Accounting Data'!E$2:E$100000,"500",'Accounting Data'!J$2:J$100000,"69??")) -> 0 | T11: 5.
A12: 515 Civic Center | C12: 6. | D12: ='Accounting Data'!R355 -> 12675 | E12: =-(SUMIFS('Accounting Data'!C$2:C$100000,'Accounting Data'!E$2:E$100000,"515",'Accounting Data'!J$2:J$100000,"1???")+SUMIFS('Accounting Data'!C$2:C$100000,'Accounting Data'!E$2:E$100000,"515",'Accounting Data'!J$2:J$100000,"2???")+SUMIFS('Accounting Data'!C$2:C$100000,'Accounting Data'!E$2:E$100000,"515",'Accounting Data'!J$2:J$100000,"3???")+SUMIFS('Accounting Data'!C$2:C$100000,'Accounting Data'!E$2:E$100000,"515",'Accounting Data'!J$2:J$100000,"4???")) -> 1166 | F12: =R12-S12 -> 0 | G12: =[1]!F515BudgFY -> 15000 | H12: =(SUMIFS('Accounting Data'!C$2:C$100000,'Accounting Data'!E$2:E$100000,"515",'Accounting Data'!J$2:J$100000,"6???"))-(SUMIFS('Accounting Data'!C$2:C$100000,'Accounting Data'!E$2:E$100000,"515",'Accounting Data'!J$2:J$100000,"69??")) -> 3093 | I12: 10748 | J12: 6. | K12: Instructional Improvement Programs | M12: =[1]!F020InstrImprProgBudgFY -> 75000 | N12: 76084 | O12: 4. | Q12: 6. | R12: =-(SUMIFS('Accounting Data'!C$2:C$100000,'Accounting Data'!E$2:E$100000,"515",'Accounting Data'!J$2:J$100000,"5???")) -> 0 | S12: =(SUMIFS('Accounting Data'!C$2:C$100000,'Accounting Data'!E$2:E$100000,"515",'Accounting Data'!J$2:J$100000,"69??")) -> 0 | T12: 6.
A13: 520 Community School | C13: 7. | D13: ='Accounting Data'!R356 -> 284512 | E13: =-(SUMIFS('Accounting Data'!C$2:C$100000,'Accounting Data'!E$2:E$100000,"520",'Accounting Data'!J$2:J$100000,"1???")+SUMIFS('Accounting Data'!C$2:C$100000,'Accounting Data'!E$2:E$100000,"520",'Accounting Data'!J$2:J$100000,"2???")+SUMIFS('Accounting Data'!C$2:C$100000,'Accounting Data'!E$2:E$100000,"520",'Accounting Data'!J$2:J$100000,"3???")+SUMIFS('Accounting Data'!C$2:C$100000,'Accounting Data'!E$2:E$100000,"520",'Accounting Data'!J$2:J$100000,"4???")) -> 30807 | F13: 0 | G13: =[1]!F520BudgFY -> 60000 | H13: =(SUMIFS('Accounting Data'!C$2:C$100000,'Accounting Data'!E$2:E$100000,"520",'Accounting Data'!J$2:J$100000,"6???"))-(SUMIFS('Accounting Data'!C$2:C$100000,'Accounting Data'!E$2:E$100000,"520",'Accounting Data'!J$2:J$100000,"69??")) -> 35461 | I13: 279858 | J13: 7. | K13: Total Expenditures (lines 1-4) | M13: =SUM(M9:M12) -> 150000 | N13: =SUM(N9:N12) -> 76084 | O13: 5. | Q13: 7. | R13: =-(SUMIFS('Accounting Data'!C$2:C$100000,'Accounting Data'!E$2:E$100000,"520",'Accounting Data'!J$2:J$100000,"5???")) -> 0 | S13: =(SUMIFS('Accounting Data'!C$2:C$100000,'Accounting Data'!E$2:E$100000,"520",'Accounting Data'!J$2:J$100000,"69??")) -> 0 | T13: 7.
A14: 525 Auxiliary Operations | C14: 8. | D14: ='Accounting Data'!R357 -> 410612 | E14: =-(SUMIFS('Accounting Data'!C$2:C$100000,'Accounting Data'!E$2:E$100000,"525",'Accounting Data'!J$2:J$100000,"1???")+SUMIFS('Accounting Data'!C$2:C$100000,'Accounting Data'!E$2:E$100000,"525",'Accounting Data'!J$2:J$100000,"2???")+SUMIFS('Accounting Data'!C$2:C$100000,'Accounting Data'!E$2:E$100000,"525",'Accounting Data'!J$2:J$100000,"3???")+SUMIFS('Accounting Data'!C$2:C$100000,'Accounting Data'!E$2:E$100000,"525",'Accounting Data'!J$2:J$100000,"4???")) -> 236085 | F14: 0 | G14: =[1]!F525BudgFY -> 300000 | H14: =(SUMIFS('Accounting Data'!C$2:C$100000,'Accounting Data'!E$2:E$100000,"525",'Accounting Data'!J$2:J$100000,"6???"))-(SUMIFS('Accounting Data'!C$2:C$100000,'Accounting Data'!E$2:E$100000,"525",'Accounting Data'!J$2:J$100000,"69??")) -> 214074 | I14: 432623 | J14: 8. | K14: Total Expenditures from accounting data | N14: =F020ActExp -> 76084 | O14: 6. | Q14: 8. | R14: =-(SUMIFS('Accounting Data'!C$2:C$100000,'Accounting Data'!E$2:E$100000,"525",'Accounting Data'!J$2:J$100000,"5???")) -> 0 | S14: =(SUMIFS('Accounting Data'!C$2:C$100000,'Accounting Data'!E$2:E$100000,"525",'Accounting Data'!J$2:J$100000,"69??")) -> 0 | T14: 8.
A15: 526 Extracurricular Activities Fees Tax Credit | C15: 9. | D15: ='Accounting Data'!R358 -> 288452 | E15: =-(SUMIFS('Accounting Data'!C$2:C$100000,'Accounting Data'!E$2:E$100000,"526",'Accounting Data'!J$2:J$100000,"1???")+SUMIFS('Accounting Data'!C$2:C$100000,'Accounting Data'!E$2:E$100000,"526",'Accounting Data'!J$2:J$100000,"2???")+SUMIFS('Accounting Data'!C$2:C$100000,'Accounting Data'!E$2:E$100000,"526",'Accounting Data'!J$2:J$100000,"3???")+SUMIFS('Accounting Data'!C$2:C$100000,'Accounting Data'!E$2:E$100000,"526",'Accounting Data'!J$2:J$100000,"4???")) -> 25737 | F15: 0 | G15: =[1]!F526BudgFY -> 150000 | H15: =(SUMIFS('Accounting Data'!C$2:C$100000,'Accounting Data'!E$2:E$100000,"526",'Accounting Data'!J$2:J$100000,"6???"))-(SUMIFS('Accounting Data'!C$2:C$100000,'Accounting Data'!E$2:E$100000,"526",'Accounting Data'!J$2:J$100000,"69??")) -> 27868 | I15: 286321 | J15: 9. | Q15: 9. | R15: =-(SUMIFS('Accounting Data'!C$2:C$100000,'Accounting Data'!E$2:E$100000,"526",'Accounting Data'!J$2:J$100000,"5???")) -> 0 | S15: =(SUMIFS('Accounting Data'!C$2:C$100000,'Accounting Data'!E$2:E$100000,"526",'Accounting Data'!J$2:J$100000,"69??")) -> 0 | T15: 9.
A16: 530 Gifts and Donations | C16: 10. | D16: ='Accounting Data'!R359 -> 103828 | E16: =-(SUMIFS('Accounting Data'!C$2:C$100000,'Accounting Data'!E$2:E$100000,"530",'Accounting Data'!J$2:J$100000,"1???")+SUMIFS('Accounting Data'!C$2:C$100000,'Accounting Data'!E$2:E$100000,"530",'Accounting Data'!J$2:J$100000,"2???")+SUMIFS('Accounting Data'!C$2:C$100000,'Accounting Data'!E$2:E$100000,"530",'Accounting Data'!J$2:J$100000,"3???")+SUMIFS('Accounting Data'!C$2:C$100000,'Accounting Data'!E$2:E$100000,"530",'Accounting Data'!J$2:J$100000,"4???")) -> 51285 | F16: 0 | G16: =[1]!F530BudgFY -> 150000 | H16: =(SUMIFS('Accounting Data'!C$2:C$100000,'Accounting Data'!E$2:E$100000,"530",'Accounting Data'!J$2:J$100000,"6???"))-(SUMIFS('Accounting Data'!C$2:C$100000,'Accounting Data'!E$2:E$100000,"530",'Accounting Data'!J$2:J$100000,"69??")) -> 45456 | I16: 109657 | J16: 10. | K16: Check this box if your district did not have expenditures in the Instructional Improvement Fund | Q16: 10. | R16: =-(SUMIFS('Accounting Data'!C$2:C$100000,'Accounting Data'!E$2:E$100000,"530",'Accounting Data'!J$2:J$100000,"5???")) -> 0 | S16: =(SUMIFS('Accounting Data'!C$2:C$100000,'Accounting Data'!E$2:E$100000,"530",'Accounting Data'!J$2:J$100000,"69??")) -> 0 | T16: 10.
A17: 535 Career & Technical Education Projects | C17: 11. | D17: ='Accounting Data'!R360 -> 64225 | E17: =-(SUMIFS('Accounting Data'!C$2:C$100000,'Accounting Data'!E$2:E$100000,"535",'Accounting Data'!J$2:J$100000,"1???")+SUMIFS('Accounting Data'!C$2:C$100000,'Accounting Data'!E$2:E$100000,"535",'Accounting Data'!J$2:J$100000,"2???")+SUMIFS('Accounting Data'!C$2:C$100000,'Accounting Data'!E$2:E$100000,"535",'Accounting Data'!J$2:J$100000,"3???")+SUMIFS('Accounting Data'!C$2:C$100000,'Accounting Data'!E$2:E$100000,"535",'Accounting Data'!J$2:J$100000,"4???")) -> 7128 | F17: 0 | G17: =[1]!F535BudgFY -> 75000 | H17: =(SUMIFS('Accounting Data'!C$2:C$100000,'Accounting Data'!E$2:E$100000,"535",'Accounting Data'!J$2:J$100000,"6???"))-(SUMIFS('Accounting Data'!C$2:C$100000,'Accounting Data'!E$2:E$100000,"535",'Accounting Data'!J$2:J$100000,"69??")) -> 11257 | I17: 60096 | J17: 11. | Q17: 11. | R17: =-(SUMIFS('Accounting Data'!C$2:C$100000,'Accounting Data'!E$2:E$100000,"535",'Accounting Data'!J$2:J$100000,"5???")) -> 0 | S17: =(SUMIFS('Accounting Data'!C$2:C$100000,'Accounting Data'!E$2:E$100000,"535",'Accounting Data'!J$2:J$100000,"69??")) -> 0 | T17: 11.
A18: 540 Fingerprint | C18: 12. | D18: ='Accounting Data'!R361 -> 4616 | E18: =-(SUMIFS('Accounting Data'!C$2:C$100000,'Accounting Data'!E$2:E$100000,"540",'Accounting Data'!J$2:J$100000,"1???")+SUMIFS('Accounting Data'!C$2:C$100000,'Accounting Data'!E$2:E$100000,"540",'Accounting Data'!J$2:J$100000,"2???")+SUMIFS('Accounting Data'!C$2:C$100000,'Accounting Data'!E$2:E$100000,"540",'Accounting Data'!J$2:J$100000,"3???")+SUMIFS('Accounting Data'!C$2:C$100000,'Accounting Data'!E$2:E$100000,"540",'Accounting Data'!J$2:J$100000,"4???")) -> 1031 | F18: 0 | G18: =[1]!F540BudgFY -> 5000 | H18: =(SUMIFS('Accounting Data'!C$2:C$100000,'Accounting Data'!E$2:E$100000,"540",'Accounting Data'!J$2:J$100000,"6???"))-(SUMIFS('Accounting Data'!C$2:C$100000,'Accounting Data'!E$2:E$100000,"540",'Accounting Data'!J$2:J$100000,"69??")) -> 0 | I18: 5647 | J18: 12. | Q18: 12. | R18: =-(SUMIFS('Accounting Data'!C$2:C$100000,'Accounting Data'!E$2:E$100000,"540",'Accounting Data'!J$2:J$100000,"5???")) -> 0 | S18: =(SUMIFS('Accounting Data'!C$2:C$100000,'Accounting Data'!E$2:E$100000,"540",'Accounting Data'!J$2:J$100000,"69??")) -> 0 | T18: 12.
A19: 545 School Opening | C19: 13. | D19: ='Accounting Data'!R362 -> 0 | E19: =-(SUMIFS('Accounting Data'!C$2:C$100000,'Accounting Data'!E$2:E$100000,"545",'Accounting Data'!J$2:J$100000,"1???")+SUMIFS('Accounting Data'!C$2:C$100000,'Accounting Data'!E$2:E$100000,"545",'Accounting Data'!J$2:J$100000,"2???")+SUMIFS('Accounting Data'!C$2:C$100000,'Accounting Data'!E$2:E$100000,"545",'Accounting Data'!J$2:J$100000,"3???")+SUMIFS('Accounting Data'!C$2:C$100000,'Accounting Data'!E$2:E$100000,"545",'Accounting Data'!J$2:J$100000,"4???")) -> 0 | F19: 0 | G19: =[1]!F545BudgFY -> 0 | H19: =(SUMIFS('Accounting Data'!C$2:C$100000,'Accounting Data'!E$2:E$100000,"545",'Accounting Data'!J$2:J$100000,"6???"))-(SUMIFS('Accounting Data'!C$2:C$100000,'Accounting Data'!E$2:E$100000,"545",'Accounting Data'!J$2:J$100000,"69??")) -> 0 | I19: 0 | J19: 13. | Q19: 13. | R19: =-(SUMIFS('Accounting Data'!C$2:C$100000,'Accounting Data'!E$2:E$100000,"545",'Accounting Data'!J$2:J$100000,"5???")) -> 0 | S19: =(SUMIFS('Accounting Data'!C$2:C$100000,'Accounting Data'!E$2:E$100000,"545",'Accounting Data'!J$2:J$100000,"69??")) -> 0 | T19: 13.
A20: 550 Insurance Proceeds | C20: 14. | D20: ='Accounting Data'!R363 -> 92627 | E20: =-(SUMIFS('Accounting Data'!C$2:C$100000,'Accounting Data'!E$2:E$100000,"550",'Accounting Data'!J$2:J$100000,"1???")+SUMIFS('Accounting Data'!C$2:C$100000,'Accounting Data'!E$2:E$100000,"550",'Accounting Data'!J$2:J$100000,"2???")+SUMIFS('Accounting Data'!C$2:C$100000,'Accounting Data'!E$2:E$100000,"550",'Accounting Data'!J$2:J$100000,"3???")+SUMIFS('Accounting Data'!C$2:C$100000,'Accounting Data'!E$2:E$100000,"550",'Accounting Data'!J$2:J$100000,"4???")) -> 40476 | F20: 664 | G20: =[1]!F550BudgFY -> 100000 | H20: =(SUMIFS('Accounting Data'!C$2:C$100000,'Accounting Data'!E$2:E$100000,"550",'Accounting Data'!J$2:J$100000,"6???"))-(SUMIFS('Accounting Data'!C$2:C$100000,'Accounting Data'!E$2:E$100000,"550",'Accounting Data'!J$2:J$100000,"69??")) -> 42935 | I20: 90832 | J20: 14. | Q20: 14. | R20: =-(SUMIFS('Accounting Data'!C$2:C$100000,'Accounting Data'!E$2:E$100000,"550",'Accounting Data'!J$2:J$100000,"5???")) -> 664 | S20: =(SUMIFS('Accounting Data'!C$2:C$100000,'Accounting Data'!E$2:E$100000,"550",'Accounting Data'!J$2:J$100000,"69??")) -> 0 | T20: 14.
A21: 555 Textbooks | C21: 15. | D21: ='Accounting Data'!R364 -> 42534 | E21: =-(SUMIFS('Accounting Data'!C$2:C$100000,'Accounting Data'!E$2:E$100000,"555",'Accounting Data'!J$2:J$100000,"1???")+SUMIFS('Accounting Data'!C$2:C$100000,'Accounting Data'!E$2:E$100000,"555",'Accounting Data'!J$2:J$100000,"2???")+SUMIFS('Accounting Data'!C$2:C$100000,'Accounting Data'!E$2:E$100000,"555",'Accounting Data'!J$2:J$100000,"3???")+SUMIFS('Accounting Data'!C$2:C$100000,'Accounting Data'!E$2:E$100000,"555",'Accounting Data'!J$2:J$100000,"4???")) -> 1128 | F21: 0 | G21: =[1]!F555BudgFY -> 50000 | H21: =(SUMIFS('Accounting Data'!C$2:C$100000,'Accounting Data'!E$2:E$100000,"555",'Accounting Data'!J$2:J$100000,"6???"))-(SUMIFS('Accounting Data'!C$2:C$100000,'Accounting Data'!E$2:E$100000,"555",'Accounting Data'!J$2:J$100000,"69??")) -> 112 | I21: 43550 | J21: 15. | Q21: 15. | R21: =-(SUMIFS('Accounting Data'!C$2:C$100000,'Accounting Data'!E$2:E$100000,"555",'Accounting Data'!J$2:J$100000,"5???")) -> 0 | S21: =(SUMIFS('Accounting Data'!C$2:C$100000,'Accounting Data'!E$2:E$100000,"555",'Accounting Data'!J$2:J$100000,"69??")) -> 0 | T21: 15.
A22: 565 Litigation Recovery | C22: 16. | D22: ='Accounting Data'!R365 -> 98890 | E22: =-(SUMIFS('Accounting Data'!C$2:C$100000,'Accounting Data'!E$2:E$100000,"565",'Accounting Data'!J$2:J$100000,"1???")+SUMIFS('Accounting Data'!C$2:C$100000,'Accounting Data'!E$2:E$100000,"565",'Accounting Data'!J$2:J$100000,"2???")+SUMIFS('Accounting Data'!C$2:C$100000,'Accounting Data'!E$2:E$100000,"565",'Accounting Data'!J$2:J$100000,"3???")+SUMIFS('Accounting Data'!C$2:C$100000,'Accounting Data'!E$2:E$100000,"565",'Accounting Data'!J$2:J$100000,"4???")) -> 1488 | F22: 0 | G22: =[1]!F565BudgFY -> 100000 | H22: =(SUMIFS('Accounting Data'!C$2:C$100000,'Accounting Data'!E$2:E$100000,"565",'Accounting Data'!J$2:J$100000,"6???"))-(SUMIFS('Accounting Data'!C$2:C$100000,'Accounting Data'!E$2:E$100000,"565",'Accounting Data'!J$2:J$100000,"69??")) -> 0 | I22: 100378 | J22: 16. | Q22: 16. | R22: =-(SUMIFS('Accounting Data'!C$2:C$100000,'Accounting Data'!E$2:E$100000,"565",'Accounting Data'!J$2:J$100000,"5???")) -> 0 | S22: =(SUMIFS('Accounting Data'!C$2:C$100000,'Accounting Data'!E$2:E$100000,"565",'Accounting Data'!J$2:J$100000,"69??")) -> 0 | T22: 16.
A23: 570 Indirect Costs | C23: 17. | D23: ='Accounting Data'!R366 -> 503294 | E23: =-(SUMIFS('Accounting Data'!C$2:C$100000,'Accounting Data'!E$2:E$100000,"570",'Accounting Data'!J$2:J$100000,"1???")+SUMIFS('Accounting Data'!C$2:C$100000,'Accounting Data'!E$2:E$100000,"570",'Accounting Data'!J$2:J$100000,"2???")+SUMIFS('Accounting Data'!C$2:C$100000,'Accounting Data'!E$2:E$100000,"570",'Accounting Data'!J$2:J$100000,"3???")+SUMIFS('Accounting Data'!C$2:C$100000,'Accounting Data'!E$2:E$100000,"570",'Accounting Data'!J$2:J$100000,"4???")) -> 6122 | F23: 255853 | G23: =[1]!F570BudgFY -> 250000 | H23: =(SUMIFS('Accounting Data'!C$2:C$100000,'Accounting Data'!E$2:E$100000,"570",'Accounting Data'!J$2:J$100000,"6???"))-(SUMIFS('Accounting Data'!C$2:C$100000,'Accounting Data'!E$2:E$100000,"570",'Accounting Data'!J$2:J$100000,"69??")) -> 162642 | I23: 602627 | J23: 17. | Q23: 17. | R23: =-(SUMIFS('Accounting Data'!C$2:C$100000,'Accounting Data'!E$2:E$100000,"570",'Accounting Data'!J$2:J$100000,"5???")) -> 255853 | S23: =(SUMIFS('Accounting Data'!C$2:C$100000,'Accounting Data'!E$2:E$100000,"570",'Accounting Data'!J$2:J$100000,"69??")) -> 0 | T23: 17.
A24: 575 Unemployment Insurance | C24: 18. | D24: ='Accounting Data'!R367 -> 167 | E24: =-(SUMIFS('Accounting Data'!C$2:C$100000,'Accounting Data'!E$2:E$100000,"575",'Accounting Data'!J$2:J$100000,"1???")+SUMIFS('Accounting Data'!C$2:C$100000,'Accounting Data'!E$2:E$100000,"575",'Accounting Data'!J$2:J$100000,"2???")+SUMIFS('Accounting Data'!C$2:C$100000,'Accounting Data'!E$2:E$100000,"575",'Accounting Data'!J$2:J$100000,"3???")+SUMIFS('Accounting Data'!C$2:C$100000,'Accounting Data'!E$2:E$100000,"575",'Accounting Data'!J$2:J$100000,"4???")) -> 1 | F24: 0 | G24: =[1]!F575BudgFY -> 0 | H24: =(SUMIFS('Accounting Data'!C$2:C$100000,'Accounting Data'!E$2:E$100000,"575",'Accounting Data'!J$2:J$100000,"6???"))-(SUMIFS('Accounting Data'!C$2:C$100000,'Accounting Data'!E$2:E$100000,"575",'Accounting Data'!J$2:J$100000,"69??")) -> 0 | I24: 168 | J24: 18. | Q24: 18. | R24: =-(SUMIFS('Accounting Data'!C$2:C$100000,'Accounting Data'!E$2:E$100000,"575",'Accounting Data'!J$2:J$100000,"5???")) -> 0 | S24: =(SUMIFS('Accounting Data'!C$2:C$100000,'Accounting Data'!E$2:E$100000,"575",'Accounting Data'!J$2:J$100000,"69??")) -> 0 | T24: 18.
A25: 580 Teacherage | C25: 19. | D25: ='Accounting Data'!R368 -> 0 | E25: =-(SUMIFS('Accounting Data'!C$2:C$100000,'Accounting Data'!E$2:E$100000,"580",'Accounting Data'!J$2:J$100000,"1???")+SUMIFS('Accounting Data'!C$2:C$100000,'Accounting Data'!E$2:E$100000,"580",'Accounting Data'!J$2:J$100000,"2???")+SUMIFS('Accounting Data'!C$2:C$100000,'Accounting Data'!E$2:E$100000,"580",'Accounting Data'!J$2:J$100000,"3???")+SUMIFS('Accounting Data'!C$2:C$100000,'Accounting Data'!E$2:E$100000,"580",'Accounting Data'!J$2:J$100000,"4???")) -> 0 | F25: 0 | G25: =[1]!F580BudgFY -> 0 | H25: =(SUMIFS('Accounting Data'!C$2:C$100000,'Accounting Data'!E$2:E$100000,"580",'Accounting Data'!J$2:J$100000,"6???"))-(SUMIFS('Accounting Data'!C$2:C$100000,'Accounting Data'!E$2:E$100000,"580",'Accounting Data'!J$2:J$100000,"69??")) -> 0 | I25: 0 | J25: 19. | Q25: 19. | R25: =-(SUMIFS('Accounting Data'!C$2:C$100000,'Accounting Data'!E$2:E$100000,"580",'Accounting Data'!J$2:J$100000,"5???")) -> 0 | S25: =(SUMIFS('Accounting Data'!C$2:C$100000,'Accounting Data'!E$2:E$100000,"580",'Accounting Data'!J$2:J$100000,"69??")) -> 0 | T25: 19.
A26: 585 Insurance Refund | C26: 20. | D26: ='Accounting Data'!R369 -> 140373 | E26: =-(SUMIFS('Accounting Data'!C$2:C$100000,'Accounting Data'!E$2:E$100000,"585",'Accounting Data'!J$2:J$100000,"1???")+SUMIFS('Accounting Data'!C$2:C$100000,'Accounting Data'!E$2:E$100000,"585",'Accounting Data'!J$2:J$100000,"2???")+SUMIFS('Accounting Data'!C$2:C$100000,'Accounting Data'!E$2:E$100000,"585",'Accounting Data'!J$2:J$100000,"3???")+SUMIFS('Accounting Data'!C$2:C$100000,'Accounting Data'!E$2:E$100000,"585",'Accounting Data'!J$2:J$100000,"4???")) -> 4269 | F26: 0 | G26: =[1]!F585BudgFY -> 150000 | H26: =(SUMIFS('Accounting Data'!C$2:C$100000,'Accounting Data'!E$2:E$100000,"585",'Accounting Data'!J$2:J$100000,"6???"))-(SUMIFS('Accounting Data'!C$2:C$100000,'Accounting Data'!E$2:E$100000,"585",'Accounting Data'!J$2:J$100000,"69??")) -> 0 | I26: 144642 | J26: 20. | Q26: 20. | R26: =-(SUMIFS('Accounting Data'!C$2:C$100000,'Accounting Data'!E$2:E$100000,"585",'Accounting Data'!J$2:J$100000,"5???")) -> 0 | S26: =(SUMIFS('Accounting Data'!C$2:C$100000,'Accounting Data'!E$2:E$100000,"585",'Accounting Data'!J$2:J$100000,"69??")) -> 0 | T26: 20.
A27: 590 Grants and Gifts to Teachers | C27: 21. | D27: ='Accounting Data'!R370 -> 6361 | E27: =-(SUMIFS('Accounting Data'!C$2:C$100000,'Accounting Data'!E$2:E$100000,"590",'Accounting Data'!J$2:J$100000,"1???")+SUMIFS('Accounting Data'!C$2:C$100000,'Accounting Data'!E$2:E$100000,"590",'Accounting Data'!J$2:J$100000,"2???")+SUMIFS('Accounting Data'!C$2:C$100000,'Accounting Data'!E$2:E$100000,"590",'Accounting Data'!J$2:J$100000,"3???")+SUMIFS('Accounting Data'!C$2:C$100000,'Accounting Data'!E$2:E$100000,"590",'Accounting Data'!J$2:J$100000,"4???")) -> 76 | F27: 0 | G27: =[1]!F590BudgFY -> 6500 | H27: =(SUMIFS('Accounting Data'!C$2:C$100000,'Accounting Data'!E$2:E$100000,"590",'Accounting Data'!J$2:J$100000,"6???"))-(SUMIFS('Accounting Data'!C$2:C$100000,'Accounting Data'!E$2:E$100000,"590",'Accounting Data'!J$2:J$100000,"69??")) -> 0 | I27: 6437 | J27: 21. | K27: =IF(N39<>N40,"Total detailed Arizona Industry Credentials Incentive Fund expenditures reported on line 6 do not agree with your accounting records. Please verify entered amounts.","") ->  | Q27: 21. | R27: =-(SUMIFS('Accounting Data'!C$2:C$100000,'Accounting Data'!E$2:E$100000,"590",'Accounting Data'!J$2:J$100000,"5???")) -> 0 | S27: =(SUMIFS('Accounting Data'!C$2:C$100000,'Accounting Data'!E$2:E$100000,"590",'Accounting Data'!J$2:J$100000,"69??")) -> 0 | T27: 21.
A28: 595 Advertisement | C28: 22. | D28: ='Accounting Data'!R371 -> 833 | E28: =-(SUMIFS('Accounting Data'!C$2:C$100000,'Accounting Data'!E$2:E$100000,"595",'Accounting Data'!J$2:J$100000,"1???")+SUMIFS('Accounting Data'!C$2:C$100000,'Accounting Data'!E$2:E$100000,"595",'Accounting Data'!J$2:J$100000,"2???")+SUMIFS('Accounting Data'!C$2:C$100000,'Accounting Data'!E$2:E$100000,"595",'Accounting Data'!J$2:J$100000,"3???")+SUMIFS('Accounting Data'!C$2:C$100000,'Accounting Data'!E$2:E$100000,"595",'Accounting Data'!J$2:J$100000,"4???")) -> 4 | F28: 0 | G28: =[1]!F595BudgFY -> 995 | H28: =(SUMIFS('Accounting Data'!C$2:C$100000,'Accounting Data'!E$2:E$100000,"595",'Accounting Data'!J$2:J$100000,"6???"))-(SUMIFS('Accounting Data'!C$2:C$100000,'Accounting Data'!E$2:E$100000,"595",'Accounting Data'!J$2:J$100000,"69??")) -> 87 | I28: 750 | J28: 22. | Q28: 22. | R28: =-(SUMIFS('Accounting Data'!C$2:C$100000,'Accounting Data'!E$2:E$100000,"595",'Accounting Data'!J$2:J$100000,"5???")) -> 0 | S28: =(SUMIFS('Accounting Data'!C$2:C$100000,'Accounting Data'!E$2:E$100000,"595",'Accounting Data'!J$2:J$100000,"69??")) -> 0 | T28: 22.
A29: 596 Career Technical Education | C29: 23. | D29: ='Accounting Data'!R372 -> 138621 | E29: =-(SUMIFS('Accounting Data'!C$2:C$100000,'Accounting Data'!E$2:E$100000,"596",'Accounting Data'!J$2:J$100000,"1???")+SUMIFS('Accounting Data'!C$2:C$100000,'Accounting Data'!E$2:E$100000,"596",'Accounting Data'!J$2:J$100000,"2???")+SUMIFS('Accounting Data'!C$2:C$100000,'Accounting Data'!E$2:E$100000,"596",'Accounting Data'!J$2:J$100000,"3???")+SUMIFS('Accounting Data'!C$2:C$100000,'Accounting Data'!E$2:E$100000,"596",'Accounting Data'!J$2:J$100000,"4???")) -> 569469 | F29: 0 | G29: =[1]!F596BudgFY -> 650000 | H29: =(SUMIFS('Accounting Data'!C$2:C$100000,'Accounting Data'!E$2:E$100000,"596",'Accounting Data'!J$2:J$100000,"6???"))-(SUMIFS('Accounting Data'!C$2:C$100000,'Accounting Data'!E$2:E$100000,"596",'Accounting Data'!J$2:J$100000,"69??")) -> 564061 | I29: 144029 | J29: 23. | Q29: 23. | R29: =-(SUMIFS('Accounting Data'!C$2:C$100000,'Accounting Data'!E$2:E$100000,"596",'Accounting Data'!J$2:J$100000,"5???")) -> 0 | S29: =(SUMIFS('Accounting Data'!C$2:C$100000,'Accounting Data'!E$2:E$100000,"596",'Accounting Data'!J$2:J$100000,"69??")) -> 0 | T29: 23.
A30: 597 Arizona Industry Credentials Incentive | C30: 24. | D30: ='Accounting Data'!R373 -> 0 | E30: =-(SUMIFS('Accounting Data'!C$2:C$100000,'Accounting Data'!E$2:E$100000,"597",'Accounting Data'!J$2:J$100000,"1???")+SUMIFS('Accounting Data'!C$2:C$100000,'Accounting Data'!E$2:E$100000,"597",'Accounting Data'!J$2:J$100000,"2???")+SUMIFS('Accounting Data'!C$2:C$100000,'Accounting Data'!E$2:E$100000,"597",'Accounting Data'!J$2:J$100000,"3???")+SUMIFS('Accounting Data'!C$2:C$100000,'Accounting Data'!E$2:E$100000,"597",'Accounting Data'!J$2:J$100000,"4???")) -> 7172 | F30: 0 | G30: =[1]!F597BudgFY -> 22000 | H30: =ROUND((SUMIFS('Accounting Data'!C$2:C$100000,'Accounting Data'!E$2:E$100000,"597",'Accounting Data'!J$2:J$100000,"6???"))-(SUMIFS('Accounting Data'!C$2:C$100000,'Accounting Data'!E$2:E$100000,"597",'Accounting Data'!J$2:J$100000,"69??")),0) -> 7172 | I30: =D30+E30+F30-H30 -> 0 | J30: 24. | K30: Arizona Industry Credentials Incentive Fund 597 | M30: BUDGET | N30: ACTUAL | Q30: 24. | R30: =-(SUMIFS('Accounting Data'!C$2:C$100000,'Accounting Data'!E$2:E$100000,"597",'Accounting Data'!J$2:J$100000,"5???")) -> 0 | S30: =(SUMIFS('Accounting Data'!C$2:C$100000,'Accounting Data'!E$2:E$100000,"597",'Accounting Data'!J$2:J$100000,"69??")) -> 0 | T30: 24.
A31: 639 Impact Aid Revenue Bond Building | C31: 25. | D31: ='Accounting Data'!R377 -> 0 | E31: =-(SUMIFS('Accounting Data'!C$2:C$100000,'Accounting Data'!E$2:E$100000,"639",'Accounting Data'!J$2:J$100000,"1???")+SUMIFS('Accounting Data'!C$2:C$100000,'Accounting Data'!E$2:E$100000,"639",'Accounting Data'!J$2:J$100000,"2???")+SUMIFS('Accounting Data'!C$2:C$100000,'Accounting Data'!E$2:E$100000,"639",'Accounting Data'!J$2:J$100000,"3???")+SUMIFS('Accounting Data'!C$2:C$100000,'Accounting Data'!E$2:E$100000,"639",'Accounting Data'!J$2:J$100000,"4???")) -> 0 | F31: 0 | G31: =[1]!F639BudgFY -> 0 | H31: =(SUMIFS('Accounting Data'!C$2:C$100000,'Accounting Data'!E$2:E$100000,"639",'Accounting Data'!J$2:J$100000,"6???"))-(SUMIFS('Accounting Data'!C$2:C$100000,'Accounting Data'!E$2:E$100000,"639",'Accounting Data'!J$2:J$100000,"69??")) -> 0 | I31: =D31+E31+F31-H31 -> 0 | J31: 25. | K31: Expenditures | Q31: 25. | R31: =-(SUMIFS('Accounting Data'!C$2:C$100000,'Accounting Data'!E$2:E$100000,"639",'Accounting Data'!J$2:J$100000,"5???")) -> 0 | S31: =(SUMIFS('Accounting Data'!C$2:C$100000,'Accounting Data'!E$2:E$100000,"639",'Accounting Data'!J$2:J$100000,"69??")) -> 0 | T31: 25.
A32: 650 Gifts and Donations—Capital | C32: 26. | D32: ='Accounting Data'!R378 -> 0 | E32: =-(SUMIFS('Accounting Data'!C$2:C$100000,'Accounting Data'!E$2:E$100000,"650",'Accounting Data'!J$2:J$100000,"1???")+SUMIFS('Accounting Data'!C$2:C$100000,'Accounting Data'!E$2:E$100000,"650",'Accounting Data'!J$2:J$100000,"2???")+SUMIFS('Accounting Data'!C$2:C$100000,'Accounting Data'!E$2:E$100000,"650",'Accounting Data'!J$2:J$100000,"3???")+SUMIFS('Accounting Data'!C$2:C$100000,'Accounting Data'!E$2:E$100000,"650",'Accounting Data'!J$2:J$100000,"4???")) -> 0 | F32: 0 | G32: =[1]!F650BudgFY -> 0 | H32: =(SUMIFS('Accounting Data'!C$2:C$100000,'Accounting Data'!E$2:E$100000,"650",'Accounting Data'!J$2:J$100000,"6???"))-(SUMIFS('Accounting Data'!C$2:C$100000,'Accounting Data'!E$2:E$100000,"650",'Accounting Data'!J$2:J$100000,"69??")) -> 0 | I32: 0 | J32: 26. | K32: Teacher instructional costs and professional development | N32: 0 | O32: 1. | Q32: 26. | R32: =-(SUMIFS('Accounting Data'!C$2:C$100000,'Accounting Data'!E$2:E$100000,"650",'Accounting Data'!J$2:J$100000,"5???")) -> 0 | S32: =(SUMIFS('Accounting Data'!C$2:C$100000,'Accounting Data'!E$2:E$100000,"650",'Accounting Data'!J$2:J$100000,"69??")) -> 0 | T32: 26.
A33: 660 Condemnation | C33: 27. | D33: ='Accounting Data'!R379 -> 0 | E33: =-(SUMIFS('Accounting Data'!C$2:C$100000,'Accounting Data'!E$2:E$100000,"660",'Accounting Data'!J$2:J$100000,"1???")+SUMIFS('Accounting Data'!C$2:C$100000,'Accounting Data'!E$2:E$100000,"660",'Accounting Data'!J$2:J$100000,"2???")+SUMIFS('Accounting Data'!C$2:C$100000,'Accounting Data'!E$2:E$100000,"660",'Accounting Data'!J$2:J$100000,"3???")+SUMIFS('Accounting Data'!C$2:C$100000,'Accounting Data'!E$2:E$100000,"660",'Accounting Data'!J$2:J$100000,"4???")) -> 0 | F33: 0 | G33: =[1]!F660BudgFY -> 0 | H33: =(SUMIFS('Accounting Data'!C$2:C$100000,'Accounting Data'!E$2:E$100000,"660",'Accounting Data'!J$2:J$100000,"6???"))-(SUMIFS('Accounting Data'!C$2:C$100000,'Accounting Data'!E$2:E$100000,"660",'Accounting Data'!J$2:J$100000,"69??")) -> 0 | I33: 0 | J33: 27. | K33: Student certification, credentialing, or licensure costs | Q33: 27. | R33: =-(SUMIFS('Accounting Data'!C$2:C$100000,'Accounting Data'!E$2:E$100000,"660",'Accounting Data'!J$2:J$100000,"5???")) -> 0 | S33: =(SUMIFS('Accounting Data'!C$2:C$100000,'Accounting Data'!E$2:E$100000,"660",'Accounting Data'!J$2:J$100000,"69??")) -> 0 | T33: 27.
A34: 665 Energy and Water Savings | C34: 28. | D34: ='Accounting Data'!R380 -> 0 | E34: =-(SUMIFS('Accounting Data'!C$2:C$100000,'Accounting Data'!E$2:E$100000,"665",'Accounting Data'!J$2:J$100000,"1???")+SUMIFS('Accounting Data'!C$2:C$100000,'Accounting Data'!E$2:E$100000,"665",'Accounting Data'!J$2:J$100000,"2???")+SUMIFS('Accounting Data'!C$2:C$100000,'Accounting Data'!E$2:E$100000,"665",'Accounting Data'!J$2:J$100000,"3???")+SUMIFS('Accounting Data'!C$2:C$100000,'Accounting Data'!E$2:E$100000,"665",'Accounting Data'!J$2:J$100000,"4???")) -> 0 | F34: 0 | G34: =[1]!F665BudgFY -> 0 | H34: =(SUMIFS('Accounting Data'!C$2:C$100000,'Accounting Data'!E$2:E$100000,"665",'Accounting Data'!J$2:J$100000,"6???"))-(SUMIFS('Accounting Data'!C$2:C$100000,'Accounting Data'!E$2:E$100000,"665",'Accounting Data'!J$2:J$100000,"69??")) -> 0 | I34: 0 | J34: 28. | N34: 0 | O34: 2. | Q34: 28. | R34: =-(SUMIFS('Accounting Data'!C$2:C$100000,'Accounting Data'!E$2:E$100000,"665",'Accounting Data'!J$2:J$100000,"5???")) -> 0 | S34: =(SUMIFS('Accounting Data'!C$2:C$100000,'Accounting Data'!E$2:E$100000,"665",'Accounting Data'!J$2:J$100000,"69??")) -> 0 | T34: 28.
A35: 686 Emergency Deficiencies Correction | C35: 29. | D35: ='Accounting Data'!R381 -> 0 | E35: =-(SUMIFS('Accounting Data'!C$2:C$100000,'Accounting Data'!E$2:E$100000,"686",'Accounting Data'!J$2:J$100000,"1???")+SUMIFS('Accounting Data'!C$2:C$100000,'Accounting Data'!E$2:E$100000,"686",'Accounting Data'!J$2:J$100000,"2???")+SUMIFS('Accounting Data'!C$2:C$100000,'Accounting Data'!E$2:E$100000,"686",'Accounting Data'!J$2:J$100000,"3???")+SUMIFS('Accounting Data'!C$2:C$100000,'Accounting Data'!E$2:E$100000,"686",'Accounting Data'!J$2:J$100000,"4???")) -> 0 | F35: 0 | G35: =[1]!F686BudgFY -> 0 | H35: =(SUMIFS('Accounting Data'!C$2:C$100000,'Accounting Data'!E$2:E$100000,"686",'Accounting Data'!J$2:J$100000,"6???"))-(SUMIFS('Accounting Data'!C$2:C$100000,'Accounting Data'!E$2:E$100000,"686",'Accounting Data'!J$2:J$100000,"69??")) -> 0 | I35: 0 | J35: 29. | K35: Developmental costs | N35: 0 | O35: 3. | Q35: 29. | R35: =-(SUMIFS('Accounting Data'!C$2:C$100000,'Accounting Data'!E$2:E$100000,"686",'Accounting Data'!J$2:J$100000,"5???")) -> 0 | S35: =(SUMIFS('Accounting Data'!C$2:C$100000,'Accounting Data'!E$2:E$100000,"686",'Accounting Data'!J$2:J$100000,"69??")) -> 0 | T35: 29.
A36: 691 Building Renewal Grant | C36: 30. | D36: ='Accounting Data'!R382 -> 7443 | E36: =-(SUMIFS('Accounting Data'!C$2:C$100000,'Accounting Data'!E$2:E$100000,"691",'Accounting Data'!J$2:J$100000,"1???")+SUMIFS('Accounting Data'!C$2:C$100000,'Accounting Data'!E$2:E$100000,"691",'Accounting Data'!J$2:J$100000,"2???")+SUMIFS('Accounting Data'!C$2:C$100000,'Accounting Data'!E$2:E$100000,"691",'Accounting Data'!J$2:J$100000,"3???")+SUMIFS('Accounting Data'!C$2:C$100000,'Accounting Data'!E$2:E$100000,"691",'Accounting Data'!J$2:J$100000,"4???")) -> 1877045 | F36: 0 | G36: =[1]!F691BudgFY -> 500000 | H36: =(SUMIFS('Accounting Data'!C$2:C$100000,'Accounting Data'!E$2:E$100000,"691",'Accounting Data'!J$2:J$100000,"6???"))-(SUMIFS('Accounting Data'!C$2:C$100000,'Accounting Data'!E$2:E$100000,"691",'Accounting Data'!J$2:J$100000,"69??")) -> 2502272 | I36: -617784 | J36: 30. | K36: Instructional hardware, software, or supplies | N36: 7172 | O36: 4. | Q36: 30. | R36: =-(SUMIFS('Accounting Data'!C$2:C$100000,'Accounting Data'!E$2:E$100000,"691",'Accounting Data'!J$2:J$100000,"5???")) -> 0 | S36: =(SUMIFS('Accounting Data'!C$2:C$100000,'Accounting Data'!E$2:E$100000,"691",'Accounting Data'!J$2:J$100000,"69??")) -> 0 | T36: 30.
A37: 695 New School Facilities | C37: 31. | D37: ='Accounting Data'!R383 -> 0 | E37: =-(SUMIFS('Accounting Data'!C$2:C$100000,'Accounting Data'!E$2:E$100000,"695",'Accounting Data'!J$2:J$100000,"1???")+SUMIFS('Accounting Data'!C$2:C$100000,'Accounting Data'!E$2:E$100000,"695",'Accounting Data'!J$2:J$100000,"2???")+SUMIFS('Accounting Data'!C$2:C$100000,'Accounting Data'!E$2:E$100000,"695",'Accounting Data'!J$2:J$100000,"3???")+SUMIFS('Accounting Data'!C$2:C$100000,'Accounting Data'!E$2:E$100000,"695",'Accounting Data'!J$2:J$100000,"4???")) -> 0 | G37: =[1]!F695TotalBudgFY -> 0 | H37: =(SUMIFS('Accounting Data'!C$2:C$100000,'Accounting Data'!E$2:E$100000,"695",'Accounting Data'!J$2:J$100000,"6???"))-(SUMIFS('Accounting Data'!C$2:C$100000,'Accounting Data'!E$2:E$100000,"695",'Accounting Data'!J$2:J$100000,"69??")) -> 0 | I37: 0 | J37: 31. | K37: Career exploration | N37: 0 | O37: 5. | Q37: 31. | T37: 31.
H38: =(SUMIFS('Accounting Data'!C$2:C$100000,'Accounting Data'!E$2:E$100000,"050",'Accounting Data'!J$2:J$100000,"6???"))-(SUMIFS('Accounting Data'!C$2:C$100000,'Accounting Data'!E$2:E$100000,"050",'Accounting Data'!J$2:J$100000,"69??")) -> 272 | J38: 23. | Q38: 23. | T38: 23.
A39: 720 Impact Aid Revenue Bond Debt Service | C39: 32. | D39: ='Accounting Data'!R386 -> 0 | E39: =-(SUMIFS('Accounting Data'!C$2:C$100000,'Accounting Data'!E$2:E$100000,"720",'Accounting Data'!J$2:J$100000,"1???")+SUMIFS('Accounting Data'!C$2:C$100000,'Accounting Data'!E$2:E$100000,"720",'Accounting Data'!J$2:J$100000,"2???")+SUMIFS('Accounting Data'!C$2:C$100000,'Accounting Data'!E$2:E$100000,"720",'Accounting Data'!J$2:J$100000,"3???")+SUMIFS('Accounting Data'!C$2:C$100000,'Accounting Data'!E$2:E$100000,"720",'Accounting Data'!J$2:J$100000,"4???")) -> 0 | F39: =R39-S39 -> 0 | G39: =[1]!F720BudgFY -> 0 | H39: =(SUMIFS('Accounting Data'!C$2:C$100000,'Accounting Data'!E$2:E$100000,"720",'Accounting Data'!J$2:J$100000,"6???"))-(SUMIFS('Accounting Data'!C$2:C$100000,'Accounting Data'!E$2:E$100000,"720",'Accounting Data'!J$2:J$100000,"69??")) -> 0 | I39: 0 | J39: 32. | K39: Total Expenditures (lines 1-5) | M39: =[1]!F597BudgFY -> 22000 | N39: =SUM(N32:N37) -> 7172 | O39: 6. | Q39: 32. | R39: =-(SUMIFS('Accounting Data'!C$2:C$100000,'Accounting Data'!E$2:E$100000,"720",'Accounting Data'!J$2:J$100000,"5???")) -> 0 | S39: =(SUMIFS('Accounting Data'!C$2:C$100000,'Accounting Data'!E$2:E$100000,"720",'Accounting Data'!J$2:J$100000,"69??")) -> 0 | T39: 32.
A40: 750 Permanent Funds | C40: 33. | D40: 0 | E40: =-(SUM(SUMIFS('Accounting Data'!C$2:C$100000,'Accounting Data'!E$2:E$100000,"75?",'Accounting Data'!J$2:J$100000,{"1???","2???","3???","4???"}))) -> 0 | F40: =R40-S40 -> 0 | G40: 0 | H40: =(SUMIFS('Accounting Data'!C$2:C$100000,'Accounting Data'!E$2:E$100000,"75?",'Accounting Data'!J$2:J$100000,"6???"))-(SUMIFS('Accounting Data'!C$2:C$100000,'Accounting Data'!E$2:E$100000,"75?",'Accounting Data'!J$2:J$100000,"69??")) -> 0 | I40: 0 | J40: 33. | K40: Total Expenditures from accounting data | N40: =F597ActExp -> 7172 | O40: 7. | Q40: 33. | R40: =-(SUMIFS('Accounting Data'!C2:C100000,'Accounting Data'!E2:E100000,"75?",'Accounting Data'!J2:J100000,"5???")) -> 0 | S40: =(SUMIFS('Accounting Data'!C$2:C$100000,'Accounting Data'!E$2:E$100000,"75?",'Accounting Data'!J$2:J$100000,"69??")) -> 0 | T40: 33. | Y40: =IF(OR(SIBegFunBal="",F955BegFunBal="",OPEBBegFunBal="",ISFOthBegFunBal="",SIActRev="",F955ActRev="",OPEBActRev="",ISFOthActRev="",SIActExp="",F955ActExp="",OPEBActExp="",ISFOthActExp=""),"yes","") -> 
A41: 800-849 Trust and Custodial Funds | C41: 34. | D41: 0 | E41: =-(SUM(SUMIFS('Accounting Data'!C$2:C$100000,'Accounting Data'!E$2:E$100000,{"80?","81?","82?","83?","84?"},'Accounting Data'!J$2:J$100000,"1???"),SUMIFS('Accounting Data'!C$2:C$100000,'Accounting Data'!E$2:E$100000,{"80?","81?","82?","83?","84?"},'Accounting Data'!J$2:J$100000,"2???"),SUMIFS('Accounting Data'!C$2:C$100000,'Accounting Data'!E$2:E$100000,{"80?","81?","82?","83?","84?"},'Accounting Data'!J$2:J$100000,"3???"),SUMIFS('Accounting Data'!C$2:C$100000,'Accounting Data'!E$2:E$100000,{"80?","81?","82?","83?","84?"},'Accounting Data'!J$2:J$100000,"4???"))) -> 0 | F41: =R41-S41 -> 0 | G41: 0 | H41: =(SUM(SUMIFS('Accounting Data'!C$2:C$100000,'Accounting Data'!E$2:E$100000,{"80?","81?","82?","83?","84?"},'Accounting Data'!J$2:J$100000,"6???")))-(SUM(SUMIFS('Accounting Data'!C$2:C$100000,'Accounting Data'!E$2:E$100000,{"80?","81?","82?","83?","84?"},'Accounting Data'!J$2:J$100000,"69??"))) -> 0 | I41: =D41+E41+F41-H41 -> 0 | J41: 34. | Q41: 34. | R41: =-(SUM(SUMIFS('Accounting Data'!C$2:C$100000,'Accounting Data'!E$2:E$100000,{"80?","81?","82?","83?","84?"},'Accounting Data'!J$2:J$100000,"5???"))) -> 0 | S41: =-(SUM(SUMIFS('Accounting Data'!C$2:C$100000,'Accounting Data'!E$2:E$100000,{"80?","81?","82?","83?","84?"},'Accounting Data'!J$2:J$100000,"69??"))) -> 0 | T41: 34. | Y41: =IF(OR(AND(OthBegFunBal<>0,A46="Other ________________"),AND(OthActRev<>0,A46="Other ________________"),AND(OthTransf<>0,A46="Other ________________"),AND(OthBudgExp<>0,A46="Other ________________"),AND(OthActExp<>0,A46="Other ________________")),"Yes","") -> 
A42: 850 Student Activities | C42: 35. | D42: ='Accounting Data'!R438 -> 276381 | E42: =-(SUMIFS('Accounting Data'!C$2:C$100000,'Accounting Data'!E$2:E$100000,"850",'Accounting Data'!J$2:J$100000,"1???")+SUMIFS('Accounting Data'!C$2:C$100000,'Accounting Data'!E$2:E$100000,"850",'Accounting Data'!J$2:J$100000,"2???")+SUMIFS('Accounting Data'!C$2:C$100000,'Accounting Data'!E$2:E$100000,"850",'Accounting Data'!J$2:J$100000,"3???")+SUMIFS('Accounting Data'!C$2:C$100000,'Accounting Data'!E$2:E$100000,"850",'Accounting Data'!J$2:J$100000,"4???")) -> 69780 | G42: =[1]!F850BudgFY -> 150000 | H42: =(SUMIFS('Accounting Data'!C$2:C$100000,'Accounting Data'!E$2:E$100000,"850",'Accounting Data'!J$2:J$100000,"6???"))-(SUMIFS('Accounting Data'!C$2:C$100000,'Accounting Data'!E$2:E$100000,"850",'Accounting Data'!J$2:J$100000,"69??")) -> 65607 | I42: =D42+E42-H42 -> 280554 | J42: 35. | Q42: 35. | T42: 35.
A43: 855 Employee Insurance Program Withholdings | C43: 36. | D43: 0 | E43: =-(SUMIFS('Accounting Data'!C2:C100000,'Accounting Data'!E2:E100000,"855",'Accounting Data'!J2:J100000,"1???")+SUMIFS('Accounting Data'!C2:C100000,'Accounting Data'!E2:E100000,"855",'Accounting Data'!J2:J100000,"2???")+SUMIFS('Accounting Data'!C2:C100000,'Accounting Data'!E2:E100000,"855",'Accounting Data'!J2:J100000,"3???")+SUMIFS('Accounting Data'!C2:C100000,'Accounting Data'!E2:E100000,"855",'Accounting Data'!J2:J100000,"4???")) -> 0 | F43: =R43-S43 -> 0 | G43: 0 | H43: =(SUMIFS('Accounting Data'!C2:C100000,'Accounting Data'!E2:E100000,"855",'Accounting Data'!J2:J100000,"6???"))-(SUMIFS('Accounting Data'!C2:C100000,'Accounting Data'!E2:E100000,"855",'Accounting Data'!J2:J100000,"69??")) -> 0 | I43: =D43+E43+F43-H43 -> 0 | J43: 36. | Q43: 36. | R43: =-(SUMIFS('Accounting Data'!C$2:C$100000,'Accounting Data'!E$2:E$100000,"855",'Accounting Data'!J$2:J$100000,"5???")) -> 0 | S43: =-(SUMIFS('Accounting Data'!C$2:C$100000,'Accounting Data'!E$2:E$100000,"855",'Accounting Data'!J$2:J$100000,"69??")) -> 0 | T43: 36. | Y43: =O16="X" -> FALSE
A44: 865 State Income Tax Withholdings | C44: 37. | D44: 0 | E44: =-(SUMIFS('Accounting Data'!C2:C100000,'Accounting Data'!E2:E100000,"865",'Accounting Data'!J2:J100000,"1???")+SUMIFS('Accounting Data'!C2:C100000,'Accounting Data'!E2:E100000,"865",'Accounting Data'!J2:J100000,"2???")+SUMIFS('Accounting Data'!C2:C100000,'Accounting Data'!E2:E100000,"865",'Accounting Data'!J2:J100000,"3???")+SUMIFS('Accounting Data'!C2:C100000,'Accounting Data'!E2:E100000,"865",'Accounting Data'!J2:J100000,"4???")) -> 0 | F44: =R44-S44 -> 0 | G44: 0 | H44: =(SUMIFS('Accounting Data'!C2:C100000,'Accounting Data'!E2:E100000,"865",'Accounting Data'!J2:J100000,"6???"))-(SUMIFS('Accounting Data'!C2:C100000,'Accounting Data'!E2:E100000,"865",'Accounting Data'!J2:J100000,"69??")) -> 0 | I44: =D44+E44+F44-H44 -> 0 | J44: 37. | Q44: 37. | R44: =-(SUMIFS('Accounting Data'!C$2:C$100000,'Accounting Data'!E$2:E$100000,"865",'Accounting Data'!J$2:J$100000,"5???")) -> 0 | S44: =-(SUMIFS('Accounting Data'!C$2:C$100000,'Accounting Data'!E$2:E$100000,"865",'Accounting Data'!J$2:J$100000,"69??")) -> 0 | T44: 37.
A45: 900-949 Enterprise Funds | C45: 38. | D45: 0 | E45: =-(SUM(SUMIFS('Accounting Data'!C$2:C$100000,'Accounting Data'!E$2:E$100000,{"90?","91?","92?","93?","94?"},'Accounting Data'!J$2:J$100000,"1???"),SUMIFS('Accounting Data'!C$2:C$100000,'Accounting Data'!E$2:E$100000,{"90?","91?","92?","93?","94?"},'Accounting Data'!J$2:J$100000,"2???"),SUMIFS('Accounting Data'!C$2:C$100000,'Accounting Data'!E$2:E$100000,{"90?","91?","92?","93?","94?"},'Accounting Data'!J$2:J$100000,"3???"),SUMIFS('Accounting Data'!C$2:C$100000,'Accounting Data'!E$2:E$100000,{"90?","91?","92?","93?","94?"},'Accounting Data'!J$2:J$100000,"4???"))) -> 0 | F45: =R45-S45 -> 0 | G45: 0 | H45: =(SUM(SUMIFS('Accounting Data'!C$2:C$100000,'Accounting Data'!E$2:E$100000,{"90?","91?","92?","93?","94?"},'Accounting Data'!J$2:J$100000,"6???")))-(SUM(SUMIFS('Accounting Data'!C$2:C$100000,'Accounting Data'!E$2:E$100000,{"90?","91?","92?","93?","94?"},'Accounting Data'!J$2:J$100000,"69??"))) -> 0 | I45: =D45+E45+F45-H45 -> 0 | J45: 38. | Q45: 38. | R45: =-(SUM(SUMIFS('Accounting Data'!C$2:C$100000,'Accounting Data'!E$2:E$100000,{"90?","91?","92?","93?","94?"},'Accounting Data'!J$2:J$100000,"5???"))) -> 0 | S45: =-(SUM(SUMIFS('Accounting Data'!C$2:C$100000,'Accounting Data'!E$2:E$100000,{"90?","91?","92?","93?","94?"},'Accounting Data'!J$2:J$100000,"69??"))) -> 0 | T45: 38.
A46: Other ________________ | C46: 39. | D46: 0 | E46: =-(SUMIFS('Accounting Data'!C$2:C$100000,'Accounting Data'!E$2:E$100000,"Other",'Accounting Data'!J$2:J$100000,"1???")+SUMIFS('Accounting Data'!C$2:C$100000,'Accounting Data'!E$2:E$100000,"Other",'Accounting Data'!J$2:J$100000,"2???")+SUMIFS('Accounting Data'!C$2:C$100000,'Accounting Data'!E$2:E$100000,"Other",'Accounting Data'!J$2:J$100000,"3???")+SUMIFS('Accounting Data'!C$2:C$100000,'Accounting Data'!E$2:E$100000,"Other",'Accounting Data'!J$2:J$100000,"4???")) -> 0 | F46: =R46-S46 -> 0 | G46: 0 | H46: =(SUMIFS('Accounting Data'!C$2:C$100000,'Accounting Data'!E$2:E$100000,"Other",'Accounting Data'!J$2:J$100000,"6???"))-(SUMIFS('Accounting Data'!C$2:C$100000,'Accounting Data'!E$2:E$100000,"Other",'Accounting Data'!J$2:J$100000,"69??")) -> 0 | I46: =D46+E46+F46-H46 -> 0 | J46: 39. | Q46: 39. | R46: =-(SUMIFS('Accounting Data'!C$2:C$100000,'Accounting Data'!E$2:E$100000,"Other",'Accounting Data'!J$2:J$100000,"5???")) -> 0 | S46: =(SUMIFS('Accounting Data'!C$2:C$100000,'Accounting Data'!E$2:E$100000,"Other",'Accounting Data'!J$2:J$100000,"69??")) -> 0 | T46: 39.
A47: INTERNAL SERVICE FUNDS 950-989
A48: 9__ Self Insurance | C48: 1. | D48: 0 | E48: 0 | F48: =R48-S48 -> 0 | G48: =[1]!F9__SelfInsBudgFY -> 0 | H48: 0 | I48: =D48+E48+F48-H48 -> 0 | J48: 1. | Q48: 1. | R48: 0 | S48: 0 | T48: 1.
A49: 955 Intergovernmental Agreements | C49: 2. | D49: 361960 | E49: 47631 | F49: =R49-S49 -> 0 | G49: =[1]!F955BudgFY -> 100000 | H49: 60002 | I49: =D49+E49+F49-H49 -> 349589 | J49: 2. | Q49: 2. | R49: 0 | S49: 0 | T49: 2.
A50: 9__ OPEB | C50: 3. | D50: 0 | E50: 0 | F50: =R50-S50 -> 0 | G50: =[1]!F9__OPEBBudgFY -> 0 | H50: 0 | I50: =D50+E50+F50-H50 -> 0 | J50: 3. | Q50: 3. | R50: 0 | S50: 0 | T50: 3.
A51: 9 | C51: 4. | D51: 0 | E51: 0 | F51: =R51-S51 -> 0 | G51: =[1]!F9__OtherBudgFY -> 400000 | H51: 0 | I51: =D51+E51+F51-H51 -> 0 | J51: 4. | Q51: 4. | R51: 0 | S51: 0 | T51: 4.
A54: (1) Actual Revenues and Actual Expenditures should agree with Supplement, Fund 071—line 13 and Fund 072—line 26.

Sheet Page 7
B1: DISTRICT NAME | C1: =CoverDistrictName -> Page Unified School District | H1: COUNTY | I1: =County -> Coconino | L1: CTDS NUMBER | M1: =Cover!Q1 -> 030208000
A5: A. | B5: Bonds and Short-term Debt | H5: F. | I5: Total salaries and benefits expenditures related to an agreement with Department | AA5: =IF(OR(AA25="yes",AA16="yes",AA9="yes",AA7="yes",AA27="yes"),"yes","") -> 
B6: 1. Bonds Outstanding, July 1, 2022 | E6: 0 | F6: 1. | I6: of Labor to settle a decision based on the Fair Labor Standards Act | M6: 0
B7: 2. Bonds issued during FY 2023 | E7: 0 | F7: 2. | AA7: =IF(OR(E6="",E7="",E8="",E11="",E12=""),"yes","") -> 
B8: 3. Bonds retired during FY 2023 | E8: 0 | F8: 3.
B9: 4. Bonds Outstanding, June 30, 2023 | E9: =E6+E7+E8 -> 0 | F9: 4. | I9: Rewards, Discounts, Incentives, and Other Financial Consideration Received from Credit Card Companies (A.R.S. §35-391) | AA9: =IF(OR(M6="",M6="$",M10="",M14="",M14="$",M15="",M15="$",M16="",M16="$",CurrentYearSalary="",F41="",F41="$",F42="",F42="$",F43="",F44="",F45=""),"yes","") -> 
H10: G. | M10: 3894
B11: 5. Short-term Debt Outstanding, July 1, 2022 | E11: 0 | F11: 5.
B12: 6. Short-term Debt Outstanding, June 30, 2023 | E12: 0 | F12: 6.
H13: H. | I13: Cash and Investments held at June 30, 2023
A14: B. | B14: District Assessed Valuation and Other District Information | I14: 1. Sinking funds | M14: 0
B15: 1. FY 2023 Assessed Valuations and Tax Rates | I15: 2. Bond funds | M15: 0
B16: a. Primary | C16: 93319461 | D16: Tax Rate | E16: 4.0827 | I16: 3. Other funds, except for any employee retirement funds | M16: 0 | AA16: =IF(OR(C16="",C16="$",C17="",C17="$",PrimaryTaxRate="",SecondaryTaxRate="",E18="",E19="",E20=""),"yes","") -> 
B17: b. Secondary | C17: 0 | D17: Tax Rate | E17: 0
B18: 2. Number of Schools | E18: 5
B19: 3. Actual Days in Session | E19: 180
B20: 4. Area of School District (Square Miles) | E20: 1800 | H20: I. | I20: Average Teacher Salary (A.R.S. §15-903.E)
B21: (Report this WHETHER OR NOT district changed boundaries in FY 2023) | I21: 1. Average salary of all teachers employed in FY 2023 | M21: 52937
I22: 2. Average salary of all teachers employed in FY 2022 | M22: =[2]!CurrentYearSalary -> 53731 | P22: Check this box if your district has no teachers (transporting districts and some CTEDs).
A23: C. | B23: County Approved Liabilities incurred in excess of | F23: Unrestricted | I23: 3. Increase in average teacher salary from prior year | M23: =M21-M22 -> -794
B24: district budget (A.R.S. §15-907) | E24: M & O | F24: Capital Outlay | I24: 4. Percentage increase | M24: =IF(PriorYearSalary<>0,M23/M22,0) -> -0.015
B25: 1. Destruction or damage | E25: 0 | F25: 0 | G25: 1. | I25: Comments on Average Salary Calculation (Optional): | AA25: =IF(OR(E25="",E26="",E27="",F25="",F26="",F27=""),"yes","") -> 
B26: 2. Excessive/unexpected legal expenses | E26: 0 | F26: 0 | G26: 2.
B27: 3. Mitigation or removal of health or safety hazard | E27: 0 | F27: 0 | G27: 3. | AA27: =IF(OR(L34="",L35="",L36="",L37="",L38="",L39="",L40="",L41="",M35="",M36="",M37="",M45="",M46=""),"yes","") -> 
A29: D. | B29: Current Expenditures by Category
B30: 1. Classroom Instruction excl. Supplies (Function 1000, except line 2 amount) | F30: 13083588
B31: 2. Classroom Supplies (Function 1000, Object Code 6600) | F31: 1001018
B32: 3. Administration (Functions 2300, 2400, 2500, & 2900) | F32: 3169021
B33: 4. Support Services—Students (Function 2100) | F33: 3581431 | H33: J. | I33: Certified Staff Salaries and FTE (Funds 001-799 excluding 575) | L33: Salaries | M33: FTE | T33: =O22="X" -> FALSE
B34: 5. All Other Support Services & Operations (Functions 2200, 2600, 2700, | I34: 1. Substitute Teachers (Functions 1000 & 2213) | L34: 525996
B35: 3100, & 3400) | F35: 11970804 | I35: 2. Classroom Teacher Base Salaries (Functions 1000 & 3300) | L35: 7160657 | M35: 139
B36: 6. Total Current Expenditures | F36: =IF(F30="$","$",SUM(F30:F35)) -> 32805862 | I36: a. Classroom teachers with fewer than 3 years of experience as defined by A.R.S. §15-941(E) | L36: 617188 | M36: 15
B37: 7. Total Current Expenditures from Federal Funds, excluding those funds intended to replace local tax revenues (e.g., impact aid funds) | F37: 2934985 | I37: b. Classroom teachers with 3 or more years of experience as defined by A.R.S. §15-941(E) | L37: 6543469 | M37: 124
B38: 8. Total Current Expenditures from State and Local Funds, including those funds intended to replace local tax revenues (e.g., impact aid funds) | F38: =F36-F37 -> 29870877 | I38: 3. Classroom Teacher Performance Pay (Functions 1000 & 3300) | L38: 397232
I39: 4. Classroom Teacher Payments Not Related to Additional Duties (Function 1000 & 3300) | L39: 214250
A40: E. | B40: Other long-term debt | I40: 5. Classroom Teacher Payments Related to Additional Duties (All Functions) | L40: 133748
B41: 1. Other Principal (object 6832) | F41: 233188 | I41: 6. Other Certified Staff (All Functions) | L41: 2760371
B42: 2. Other Interest (object 6842) | F42: 0
B43: 3. Instructional software subscriptions (more than 12 months) Principal (object 6833) | F43: 0 | I43: 7. In FY 2023, did the district pay any of its classroom teachers for prior classroom experience outside of the school district using either of the following
B44: 4. Instructional software subscriptions (more than 12 months) Interest (object 6843) | F44: 0 | I44: two methods: | O44: =IF(M48<>SUM(L34:L35,L38:L41),"Total certified salaries do not agree with your accounting records. Please verify the amounts.","") -> 
B45: 5. Did the district enter into any new financed purchase agreements or more than 12-month lease agreements or software subscriptions during the fiscal year? (Yes or No) | F45: no | I45: a. Increasing base salary by granting years of experience on its salary schedule? (Yes or No) | M45: yes
I46: b. Making payments in addition to their base salary? (Yes or No) | M46: yes
I48: Total Certified Salary Payments from accounting data | M48: =SUM(SUMIFS('Accounting Data'!C2:C100000,'Accounting Data'!E2:E100000,{"0??","1??","2??","3??","4??","5??","6??","7??","COVID"},'Accounting Data'!J2:J100000,"610?"),SUMIFS('Accounting Data'!C2:C100000,'Accounting Data'!E2:E100000,{"0??","1??","2??","3??","4??","5??","6??","7??","COVID"},'Accounting Data'!J2:J100000,"611?"),SUMIFS('Accounting Data'!C2:C100000,'Accounting Data'!E2:E100000,{"0??","1??","2??","3??","4??","5??","6??","7??","COVID"},'Accounting Data'!J2:J100000,"612?"),SUMIFS('Accounting Data'!C2:C100000,'Accounting Data'!E2:E100000,{"0??","1??","2??","3??","4??","5??","6??","7??","COVID"},'Accounting Data'!J2:J100000,"613?"),SUMIFS('Accounting Data'!C2:C100000,'Accounting Data'!E2:E100000,{"0??","1??","2??","3??","4??","5??","6??","7??","COVID"},'Accounting Data'!J2:J100000,"614?"))-SUM(SUMIFS('Accounting Data'!C2:C100000,'Accounting Data'!E2:E100000,"575",'Accounting Data'!J2:J100000,{"610?","611?","612?","613?","614?"})) -> 11192254
I50: (1) This form mirrors changes to the certified salary expenditure object code range (6100 to 6149) added to the FY 2024 USFR Chart of Accounts that will be required starting in FY 2025.

Sheet Page 8
B1: DISTRICT NAME | C1: =CoverDistrictName -> Page Unified School District | G1: COUNTY | H1: =County -> Coconino | P1: CTDS NUMBER | Q1: =Cover!Q1 -> 030208000
A3: A. ENROLLMENT OF GIFTED PUPILS BY GRADE (A.R.S. §15-779.02)
A4: Areas of Identification [A.R.S. §15-203(A)(15)] | D4: GRADE
D5: K | E5: 1 | F5: 2 | G5: 3 | H5: 4 | I5: 5 | J5: 6 | K5: 7 | L5: 8 | M5: 9 | N5: 10 | O5: 11 | P5: 12 | Q5: TOTAL | AA5: =IF(OR(AA6="yes",AA7="yes",AA8="yes",AA16="yes",AA17="yes",AA33="yes"),"yes","") -> 
A6: 1. Quantitative Reasoning | D6: 0 | E6: 3 | F6: 1 | G6: 3 | H6: 1 | I6: 0 | J6: 3 | K6: 3 | L6: 0 | M6: 4 | N6: 3 | O6: 3 | P6: 4 | Q6: =SUM(D6:P6) -> 28 | R6: 1. | AA6: =IF(OR(D6="",E6="",F6="",G6="",H6="",I6="",J6="",K6="",L6="",M6="",N6="",O6="",P6=""),"yes","") -> 
A7: 2. Verbal Reasoning | D7: 0 | E7: 0 | F7: 0 | G7: 4 | H7: 1 | I7: 0 | J7: 1 | K7: 1 | L7: 2 | M7: 2 | N7: 0 | O7: 0 | P7: 2 | Q7: =SUM(D7:P7) -> 13 | R7: 2. | AA7: =IF(OR(D7="",E7="",F7="",G7="",H7="",I7="",J7="",K7="",L7="",M7="",N7="",O7="",P7=""),"yes","") -> 
A8: 3. Nonverbal Reasoning | D8: 0 | E8: 2 | F8: 1 | G8: 7 | H8: 6 | I8: 5 | J8: 3 | K8: 10 | L8: 9 | M8: 8 | N8: 9 | O8: 11 | P8: 15 | Q8: =SUM(D8:P8) -> 86 | R8: 3. | AA8: =IF(OR(D8="",E8="",F8="",G8="",H8="",I8="",J8="",K8="",L8="",M8="",N8="",O8="",P8=""),"yes","") -> 
A9: 4. Total Duplicated Enrollment (lines 1-3) | D9: =SUM(D6:D8) -> 0 | E9: =SUM(E6:E8) -> 5 | F9: 2 | G9: 14 | H9: 8 | I9: 5 | J9: 7 | K9: 14 | L9: =SUM(L6:L8) -> 11 | M9: 14 | N9: 12 | O9: 14 | P9: 21 | Q9: 127 | R9: 4.
A12: B. M&O SPECIAL EDUCATION PROGRAMS BY TYPE | I12: C. MAINTENANCE AND OPERATION FUND EXPENDITURES FOR
A13: (A.R.S. § 15-761) | D13: PROGRAM | E13: PROGRAM | I13: GIFTED PUPILS (ELEMENTARY, SECONDARY, AND TOTAL)
D14: 200 & 300 | E14: 200 & 300 | J14: Actual Expenditures for all Gifted Programs:
D15: BUDGET | E15: ACTUAL | K15: K-8 $ | L15: 0
A16: 1. Total All Disability Classifications | D16: =[1]!F001P200Subtotal -> 3415080 | E16: 2834405 | F16: 1. | K16: 9-12 $ | L16: 0 | AA16: =IF(OR(E16="",E17="",E18="",E19="",E20="",E21="",E22="",E23="",E27=""),"yes","") -> 
A17: 2. Gifted Education | D17: =[1]!SPEDGiftedEdBudgFY -> 2600 | E17: 0 | F17: 2. | K17: Total $ | L17: =SUM(L15:L16) -> 0 | AA17: =IF(OR(L15="",L16="",O21="",O22="",N26=""),"yes","") -> 
A18: 3. Remedial Education | D18: =[1]!SPEDRemedialEdBudgFY -> 0 | E18: 0 | F18: 3.
A19: 4. ELL Incremental Costs | D19: =[1]!SPEDELLIncCostBudgFY -> 159646 | E19: 0 | F19: 4. | I19: D. EXPENDITURES FOR AUDIT SERVICES
A20: 5. ELL Compensatory Instruction | D20: =[1]!SPEDELLCompInstrBudgFY -> 0 | E20: 0 | F20: 5. | N20: BUDGET | O20: ACTUAL
A21: 6. Vocational and Technological Education (non-CTED) | D21: =[1]!SPEDVocTechEdBudgFY -> 0 | E21: 0 | F21: 6. | I21: 1. | J21: Nonfederal Audit Expenditures - M&O Fund | M21: 6350 | N21: =[1]!F001AuditBudg6350 -> 34500 | O21: 35500 | P21: 1.
A22: 7. Career Education | D22: =[1]!SPEDCareerEdBudgFY -> 0 | E22: 0 | F22: 7. | I22: 2. | J22: Federal Audit Expenditures - All Funds | M22: 6330 | N22: =[1]!AllFundAuditBudg6330 -> 0 | O22: 0 | P22: 2.
A23: 8. Career Technical Education (CTED programs in 300 range) | D23: =[1]!JTEDBudgFY -> 213178 | E23: 130008 | F23: 8.
A24: 9. Total (lines 1-8) | D24: =SUM(D16:D23) -> 3790504 | E24: =SUM(E16:E23) -> 2964413 | F24: 9.
I25: E. MAINTENANCE AND OPERATION FUND EXPENDITURES FOR PERFORMANCE PAY (A.R.S. §15-920)
A26: 10. IEP required pupil transportation costs coded within Program 400 | I26: Actual Expenditures made in FY 2023 | M26: $ | N26: 0
D27: =[1]!IEPTransportCosts -> 68224 | E27: 27673 | F27: 10.
I29: F. TUITION | N29: Tuition Expenditures
I31: Type 03 Districts Only | N31: Operations | O31: Capital | P31: Debt | Q31: Total
I32: 1. Tuition to Other Arizona Districts
J33: for high school students only (objects 6561 & 6565) | N33: 0 | O33: 0 | P33: 0 | Q33: =SUM(N33:P33) -> 0 | R33: 1. | AA33: =IF(OR(N33="",O33="",P33="",N35="",O35="",N37="",O37="",P37="",N39="",O39="",N41="",O41="",N42="",O42="",N44="",O44="",N45="",O45="",N46="",O46=""),"yes","") -> 
I34: 2. Tuition to Other Arizona Districts
J35: for all other students (objects 6561) | N35: 0 | O35: 0 | Q35: =SUM(N35:O35) -> 0 | R35: 2.
I36: 3. Tuition to Out-of-State Districts
J37: for high school students only (objects 6562 & 6565) | N37: 0 | O37: 0 | P37: 0 | Q37: =SUM(N37:P37) -> 0 | R37: 3.
I38: 4. Tuition to Out-of-State Districts
J39: for all other students (objects 6562) | N39: 0 | O39: 0 | Q39: =SUM(N39:O39) -> 0 | R39: 4.
I40: Non-Type 03 Districts
I41: 5. Tuition to Other Arizona Districts (object 6561) | N41: 0 | O41: 0 | Q41: =SUM(N41:O41) -> 0 | R41: 5.
I42: 6. Tuition to Out-of-State Districts (object 6562) | N42: 0 | O42: 0 | Q42: =SUM(N42:O42) -> 0 | R42: 6.
I43: All Districts
I44: 7. Tuition to Private Schools (object 6563) | N44: 0 | O44: 0 | Q44: =SUM(N44:O44) -> 0 | R44: 7.
I45: 8. Tuition to Ed Services\Coops\IGAs (object 6564) | N45: 0 | O45: 0 | Q45: =SUM(N45:O45) -> 0 | R45: 8.
I46: 9. Tuition Other (object 6569) (1) | N46: 22236 | O46: 0 | Q46: =SUM(N46:O46) -> 22236 | R46: 9.
I47: 10. Total (lines 1-9) | N47: =N33+N35+N37+N39+SUM(N41:N42)+SUM(N44:N46) -> 22236 | O47: =O33+O35+O37+O39+SUM(O41:O42)+SUM(O44:O46) -> 0 | P47: =P33+P37 -> 0 | Q47: =Q33+Q35+Q37+Q39++SUM(Q41:Q42)+SUM(Q44:Q46) -> 22236 | R47: 10.
I49: (1) Tuition paid to the State and other governmental organizations, such as the Arizona School for the Deaf and Blind, as reimbursement for providing specialized instructional services to students residing within the boundaries of the paying district.

Sheet Page 9
A1: DISTRICT NAME | B1: =CoverDistrictName -> Page Unified School District | G1: COUNTY | H1: =County -> Coconino | M1: CTDS NUMBER | N1: =Cover!Q1 -> 030208000
A3: ADDITIONAL INFORMATION FOR NATIONAL PUBLIC EDUCATION FINANCIAL SURVEY (NPEFS) REPORTING | Z3: The following tables are outside the printable range of the AFR, but are used in the formulas in the NPEFS table to pull amounts from the accounting data based on the fund, program, function and object criteria indicated on the tables.
C5: Programs 100-630 | M5: Programs 700-900
E6: Purchased | I6: Judgments | L6: Miscellaneous and | DC6: Programs 700-999
D7: Employee | E7: Services | I7: Against a | J7: Redemption of | K7: Interest | L7: Charges for | M7: All | S7: Food service supplies expenses minus commodities | Z7: Object 6100 | AH7: Object 6200 | BF7: Object 6600 | BN7: Object 6700 | BV7: Object 6810 | CT7: Object 6890 | DC7: All object codes
A8: Funds 001-799 (excluding 575) | C8: Salaries | D8: Benefits | E8: 6300, 6400, | F8: Supplies | G8: Property | H8: Dues and Fees | I8: District | J8: Principal | K8: 6841, 6842, | L8: District Services | M8: Object Codes | N8: Total | AA8: All Funds | AB8: Excluded Funds 575, 800-999 | AC8: Programs 700-900 | AD8: Programs 700-900 Excluded Funds (to add back to avoid double exclusion) | AI8: All Funds | AJ8: Excluded Funds 575, 800-999 | AK8: Programs 700-900 | AL8: Programs 700-900 Excluded Funds (to add back to avoid double exclusion) | AP8: Objects 6300, 6400 and 6500 | BF8: Function | BG8: All funds | BH8: Excluded Funds 575,800-999 | BI8: Programs 700-900 All Funds | BJ8: Programs 700-900 Excluded Funds (to add back to avoid double exclusion) | BO8: All funds | BP8: Funds 575,800-999 | BQ8: Programs 700-900 | BR8: Programs 700-900 Excluded Funds (to add back to avoid double exclusion) | BW8: All funds | BX8: Funds 575,800-999 | BY8: Programs 700-900 | BZ8: Programs 700-900 Excluded Funds (to add back to avoid double exclusion) | CT8: Function | CU8: All funds | CV8: Funds 575,800-999 | CW8: Programs 700-900 | CX8: Programs 700-900 Fund 575 | CY8: Programs 700-900 Funds 800-899 | CZ8: Programs 700-900 Funds 900-999 | DC8: All funds and objects, programs 700-900 | DD8: All funds and object 6900, programs 700-900 | DE8: Funds 575 programs 700-900, and all objects. | DF8: Funds 800-999, programs 700-900, and all objects | DG8: Funds 575, programs 700-900, and object 6900 | DH8: Funds 800-999, programs 700-900, and object 6900
C9: 6100 | D9: 6200 | E9: 6500 | F9: 6600 | G9: 6700 | H9: 6810 | I9: 6820 | J9: 6831, 6832, 6833 | K9: 6843, 6850 | L9: 6885, 6890 | M9: (excluding 6900) | Z9: Function | AC9: All Funds | AD9: Fund 575 | AE9: Funds 800-899 | AF9: Funds 900-999 | AH9: Function | AK9: All Funds | AL9: Fund 575 | AM9: Funds 800-899 | AN9: Funds 900-999 | AP9: Function | AQ9: All funds | AR9: Excluded Funds 575, 800-999 | AU9: Programs 700-900 | AV9: Programs 700-900, Funds 575 | AY9: Programs 700-900, Funds 800-899 | BB9: Programs 700-900, Funds 900-999 | BJ9: Fund 575 | BK9: Funds 800-899 | BL9: Funds 900-999 | BN9: Function | BQ9: All Funds | BR9: Fund 575 | BS9: Funds 800-899 | BT9: Funds 900-999 | BV9: Function | BY9: All Funds | BZ9: Fund 575 | CA9: Funds 800-899 | CB9: Funds 900-999 | DB9: Function
A10: 1000 Instruction | B10: 1. | C10: =(AA10-AB10-AC10)+(AD10+AE10+AF10) -> 9821369 | D10: =(AI10-AJ10-AK10)+(AL10+AM10+AN10) -> 2363743 | E10: =(AQ10-AR10-AS10-AT10-AU10)+(AV10+AW10+AX10+AY10+AZ10+BA10+BB10+BC10+BD10) -> 110412 | F10: =(BG10-BH10-BI10)+(BJ10+BK10+BL10) -> 968760 | G10: =(BO10-BP10-BQ10)+(BR10+BS10+BT10) -> 718826 | H10: =(BW10-BX10-BY10)+(BZ10+CA10+CB10) -> 20579 | L10: =(CU10-CV10-CW10)+(CX10+CY10+CZ10) -> 15310 | M10: =(DC10-DD10)-((DE10+DF10)-(DG10+DH10)) -> 0 | N10: =SUM(C10:M10) -> 14018999 | O10: 1. | S10: 0 | T10: Amount used for food service allocation (lesser of restricted Fund 510 federal revenue or cell S14) | Z10: 1000 | AA10: =ROUND(SUMIFS('Accounting Data'!C2:C100000,'Accounting Data'!I2:I100000,"1???",'Accounting Data'!J2:J100000,"61??"),0) -> 9821369 | AB10: =ROUND(SUMIFS('Accounting Data'!C2:C100000,'Accounting Data'!E2:E100000,"575",'Accounting Data'!I2:I100000,"1???",'Accounting Data'!J2:J100000,"61??")+SUMIFS('Accounting Data'!C2:C100000,'Accounting Data'!E2:E100000,"8??",'Accounting Data'!I2:I100000,"1???",'Accounting Data'!J2:J100000,"61??")+SUMIFS('Accounting Data'!C2:C100000,'Accounting Data'!E2:E100000,"9??",'Accounting Data'!I2:I100000,"1???",'Accounting Data'!J2:J100000,"61??"),0) -> 0 | AC10: =ROUND(SUMIFS('Accounting Data'!C2:C100000,'Accounting Data'!H2:H100000,"7??",'Accounting Data'!I2:I100000,"1???",'Accounting Data'!J2:J100000,"61??")+SUMIFS('Accounting Data'!C2:C100000,'Accounting Data'!H2:H100000,"8??",'Accounting Data'!I2:I100000,"1???",'Accounting Data'!J2:J100000,"61??")+SUMIFS('Accounting Data'!C2:C100000,'Accounting Data'!H2:H100000,"9??",'Accounting Data'!I2:I100000,"1???",'Accounting Data'!J2:J100000,"61??"),0) -> 0 | AD10: =ROUND(SUMIFS('Accounting Data'!C2:C100000,'Accounting Data'!E2:E100000,"575",'Accounting Data'!H2:H100000,"7??",'Accounting Data'!I2:I100000,"1???",'Accounting Data'!J2:J100000,"61??")+SUMIFS('Accounting Data'!C2:C100000,'Accounting Data'!E2:E100000,"575",'Accounting Data'!H2:H100000,"8??",'Accounting Data'!I2:I100000,"1???",'Accounting Data'!J2:J100000,"61??")+SUMIFS('Accounting Data'!C2:C100000,'Accounting Data'!E2:E100000,"575",'Accounting Data'!H2:H100000,"9??",'Accounting Data'!I2:I100000,"1???",'Accounting Data'!J2:J100000,"61??"),0) -> 0 | AE10: =ROUND(SUMIFS('Accounting Data'!C2:C100000,'Accounting Data'!E2:E100000,"8??",'Accounting Data'!H2:H100000,"7??",'Accounting Data'!I2:I100000,"1???",'Accounting Data'!J2:J100000,"61??")+SUMIFS('Accounting Data'!C2:C100000,'Accounting Data'!E2:E100000,"8??",'Accounting Data'!H2:H100000,"8??",'Accounting Data'!I2:I100000,"1???",'Accounting Data'!J2:J100000,"61??")+SUMIFS('Accounting Data'!C2:C100000,'Accounting Data'!E2:E100000,"8??",'Accounting Data'!H2:H100000,"9??",'Accounting Data'!I2:I100000,"1???",'Accounting Data'!J2:J100000,"61??"),0) -> 0 | AF10: =ROUND(SUMIFS('Accounting Data'!C2:C100000,'Accounting Data'!E2:E100000,"9??",'Accounting Data'!H2:H100000,"7??",'Accounting Data'!I2:I100000,"1???",'Accounting Data'!J2:J100000,"61??")+SUMIFS('Accounting Data'!C2:C100000,'Accounting Data'!E2:E100000,"9??",'Accounting Data'!H2:H100000,"8??",'Accounting Data'!I2:I100000,"1???",'Accounting Data'!J2:J100000,"61??")+SUMIFS('Accounting Data'!C2:C100000,'Accounting Data'!E2:E100000,"9??",'Accounting Data'!H2:H100000,"9??",'Accounting Data'!I2:I100000,"1???",'Accounting Data'!J2:J100000,"61??"),0) -> 0 | AH10: 1000 | AI10: =SUMIFS('Accounting Data'!C2:C100000,'Accounting Data'!I2:I100000,"1???",'Accounting Data'!J2:J100000,"62??") -> 2363743 | AJ10: =SUMIFS('Accounting Data'!C2:C100000,'Accounting Data'!E2:E100000,"575",'Accounting Data'!I2:I100000,"1???",'Accounting Data'!J2:J100000,"62??")+SUMIFS('Accounting Data'!C2:C100000,'Accounting Data'!E2:E100000,"8??",'Accounting Data'!I2:I100000,"1???",'Accounting Data'!J2:J100000,"62??")+SUMIFS('Accounting Data'!C2:C100000,'Accounting Data'!E2:E100000,"9??",'Accounting Data'!I2:I100000,"1???",'Accounting Data'!J2:J100000,"62??") -> 0 | AK10: =SUMIFS('Accounting Data'!C2:C100000,'Accounting Data'!H2:H100000,"7??",'Accounting Data'!I2:I100000,"1???",'Accounting Data'!J2:J100000,"62??")+SUMIFS('Accounting Data'!C2:C100000,'Accounting Data'!H2:H100000,"8??",'Accounting Data'!I2:I100000,"1???",'Accounting Data'!J2:J100000,"62??")+SUMIFS('Accounting Data'!C2:C100000,'Accounting Data'!H2:H100000,"9??",'Accounting Data'!I2:I100000,"1???",'Accounting Data'!J2:J100000,"62??") -> 0 | AL10: =SUMIFS('Accounting Data'!C2:C100000,'Accounting Data'!E2:E100000,"575",'Accounting Data'!H2:H100000,"7??",'Accounting Data'!I2:I100000,"1???",'Accounting Data'!J2:J100000,"62??")+SUMIFS('Accounting Data'!C2:C100000,'Accounting Data'!E2:E100000,"575",'Accounting Data'!H2:H100000,"8??",'Accounting Data'!I2:I100000,"1???",'Accounting Data'!J2:J100000,"62??")+SUMIFS('Accounting Data'!C2:C100000,'Accounting Data'!E2:E100000,"575",'Accounting Data'!H2:H100000,"9??",'Accounting Data'!I2:I100000,"1???",'Accounting Data'!J2:J100000,"62??") -> 0 | AM10: =SUMIFS('Accounting Data'!C2:C100000,'Accounting Data'!E2:E100000,"8??",'Accounting Data'!H2:H100000,"7??",'Accounting Data'!I2:I100000,"1???",'Accounting Data'!J2:J100000,"62??")+SUMIFS('Accounting Data'!C2:C100000,'Accounting Data'!E2:E100000,"8??",'Accounting Data'!H2:H100000,"8??",'Accounting Data'!I2:I100000,"1???",'Accounting Data'!J2:J100000,"62??")+SUMIFS('Accounting Data'!C2:C100000,'Accounting Data'!E2:E100000,"8??",'Accounting Data'!H2:H100000,"9??",'Accounting Data'!I2:I100000,"1???",'Accounting Data'!J2:J100000,"62??") -> 0 | AN10: =SUMIFS('Accounting Data'!C2:C100000,'Accounting Data'!E2:E100000,"9??",'Accounting Data'!H2:H100000,"7??",'Accounting Data'!I2:I100000,"1???",'Accounting Data'!J2:J100000,"62??")+SUMIFS('Accounting Data'!C2:C100000,'Accounting Data'!E2:E100000,"9??",'Accounting Data'!H2:H100000,"8??",'Accounting Data'!I2:I100000,"1???",'Accounting Data'!J2:J100000,"62??")+SUMIFS('Accounting Data'!C2:C100000,'Accounting Data'!E2:E100000,"9??",'Accounting Data'!H2:H100000,"9??",'Accounting Data'!I2:I100000,"1???",'Accounting Data'!J2:J100000,"62??") -> 0 | AP10: 1000 | AQ10: =SUMIFS('Accounting Data'!C2:C100000,'Accounting Data'!I2:I100000,"1???",'Accounting Data'!J2:J100000,"63??")+SUMIFS('Accounting Data'!C2:C100000,'Accounting Data'!I2:I100000,"1???",'Accounting Data'!J2:J100000,"64??")+SUMIFS('Accounting Data'!C2:C100000,'Accounting Data'!I2:I100000,"1???",'Accounting Data'!J2:J100000,"65??") -> 115361 | AR10: =SUMIFS('Accounting Data'!C2:C100000,'Accounting Data'!E2:E100000,"575",'Accounting Data'!I2:I100000,"1???",'Accounting Data'!J2:J100000,"63??")+SUMIFS('Accounting Data'!C2:C100000,'Accounting Data'!E2:E100000,"8??",'Accounting Data'!I2:I100000,"1???",'Accounting Data'!J2:J100000,"63??")+SUMIFS('Accounting Data'!C2:C100000,'Accounting Data'!E2:E100000,"9??",'Accounting Data'!I2:I100000,"1???",'Accounting Data'!J2:J100000,"63??") -> 2850 | AS10: =SUMIFS('Accounting Data'!C2:C100000,'Accounting Data'!E2:E100000,"575",'Accounting Data'!I2:I100000,"1???",'Accounting Data'!J2:J100000,"64??")+SUMIFS('Accounting Data'!C2:C100000,'Accounting Data'!E2:E100000,"8??",'Accounting Data'!I2:I100000,"1???",'Accounting Data'!J2:J100000,"64??")+SUMIFS('Accounting Data'!C2:C100000,'Accounting Data'!E2:E100000,"9??",'Accounting Data'!I2:I100000,"1???",'Accounting Data'!J2:J100000,"64??") -> 0 | AT10: =SUMIFS('Accounting Data'!C2:C100000,'Accounting Data'!E2:E100000,"575",'Accounting Data'!I2:I100000,"1???",'Accounting Data'!J2:J100000,"65??")+SUMIFS('Accounting Data'!C2:C100000,'Accounting Data'!E2:E100000,"8??",'Accounting Data'!I2:I100000,"1???",'Accounting Data'!J2:J100000,"65??")+SUMIFS('Accounting Data'!C2:C100000,'Accounting Data'!E2:E100000,"9??",'Accounting Data'!I2:I100000,"1???",'Accounting Data'!J2:J100000,"65??") -> 2099 | AU10: =SUMIFS('Accounting Data'!C2:C100000,'Accounting Data'!H2:H100000,"7??",'Accounting Data'!I2:I100000,"1???",'Accounting Data'!J2:J100000,"63??")+SUMIFS('Accounting Data'!C2:C100000,'Accounting Data'!H2:H100000,"8??",'Accounting Data'!I2:I100000,"1???",'Accounting Data'!J2:J100000,"63??")+SUMIFS('Accounting Data'!C2:C100000,'Accounting Data'!H2:H100000,"9??",'Accounting Data'!I2:I100000,"1???",'Accounting Data'!J2:J100000,"63??")+SUMIFS('Accounting Data'!C2:C100000,'Accounting Data'!H2:H100000,"7??",'Accounting Data'!I2:I100000,"1???",'Accounting Data'!J2:J100000,"64??")+SUMIFS('Accounting Data'!C2:C100000,'Accounting Data'!H2:H100000,"8??",'Accounting Data'!I2:I100000,"1???",'Accounting Data'!J2:J100000,"64??")+SUMIFS('Accounting Data'!C2:C100000,'Accounting Data'!H2:H100000,"9??",'Accounting Data'!I2:I100000,"1???",'Accounting Data'!J2:J100000,"64??")+SUMIFS('Accounting Data'!C2:C100000,'Accounting Data'!H2:H100000,"7??",'Accounting Data'!I2:I100000,"1???",'Accounting Data'!J2:J100000,"65??")+SUMIFS('Accounting Data'!C2:C100000,'Accounting Data'!H2:H100000,"8??",'Accounting Data'!I2:I100000,"1???",'Accounting Data'!J2:J100000,"65??")+SUMIFS('Accounting Data'!C2:C100000,'Accounting Data'!H2:H100000,"9??",'Accounting Data'!I2:I100000,"1???",'Accounting Data'!J2:J100000,"65??") -> 0 | AV10: =SUMIFS('Accounting Data'!C2:C100000,'Accounting Data'!E2:E100000,"575",'Accounting Data'!H2:H100000,"7??",'Accounting Data'!I2:I100000,"1???",'Accounting Data'!J2:J100000,"63??")+SUMIFS('Accounting Data'!C2:C100000,'Accounting Data'!E2:E100000,"575",'Accounting Data'!H2:H100000,"8??",'Accounting Data'!I2:I100000,"1???",'Accounting Data'!J2:J100000,"63??")+SUMIFS('Accounting Data'!C2:C100000,'Accounting Data'!E2:E100000,"575",'Accounting Data'!H2:H100000,"9??",'Accounting Data'!I2:I100000,"1???",'Accounting Data'!J2:J100000,"63??") -> 0 | AW10: =SUMIFS('Accounting Data'!C2:C100000,'Accounting Data'!E2:E100000,"575",'Accounting Data'!H2:H100000,"7??",'Accounting Data'!I2:I100000,"1???",'Accounting Data'!J2:J100000,"64??")+SUMIFS('Accounting Data'!C2:C100000,'Accounting Data'!E2:E100000,"575",'Accounting Data'!H2:H100000,"8??",'Accounting Data'!I2:I100000,"1???",'Accounting Data'!J2:J100000,"64??")+SUMIFS('Accounting Data'!C2:C100000,'Accounting Data'!E2:E100000,"575",'Accounting Data'!H2:H100000,"9??",'Accounting Data'!I2:I100000,"1???",'Accounting Data'!J2:J100000,"64??") -> 0 | AX10: =SUMIFS('Accounting Data'!C2:C100000,'Accounting Data'!E2:E100000,"575",'Accounting Data'!H2:H100000,"7??",'Accounting Data'!I2:I100000,"1???",'Accounting Data'!J2:J100000,"65??")+SUMIFS('Accounting Data'!C2:C100000,'Accounting Data'!E2:E100000,"575",'Accounting Data'!H2:H100000,"8??",'Accounting Data'!I2:I100000,"1???",'Accounting Data'!J2:J100000,"65??")+SUMIFS('Accounting Data'!C2:C100000,'Accounting Data'!E2:E100000,"575",'Accounting Data'!H2:H100000,"9??",'Accounting Data'!I2:I100000,"1???",'Accounting Data'!J2:J100000,"65??") -> 0 | AY10: =SUMIFS('Accounting Data'!C2:C100000,'Accounting Data'!E2:E100000,"8??",'Accounting Data'!H2:H100000,"7??",'Accounting Data'!I2:I100000,"1???",'Accounting Data'!J2:J100000,"63??")+SUMIFS('Accounting Data'!C2:C100000,'Accounting Data'!E2:E100000,"8??",'Accounting Data'!H2:H100000,"8??",'Accounting Data'!I2:I100000,"1???",'Accounting Data'!J2:J100000,"63??")+SUMIFS('Accounting Data'!C2:C100000,'Accounting Data'!E2:E100000,"8??",'Accounting Data'!H2:H100000,"9??",'Accounting Data'!I2:I100000,"1???",'Accounting Data'!J2:J100000,"63??") -> 0 | AZ10: =SUMIFS('Accounting Data'!C2:C100000,'Accounting Data'!E2:E100000,"8??",'Accounting Data'!H2:H100000,"7??",'Accounting Data'!I2:I100000,"1???",'Accounting Data'!J2:J100000,"64??")+SUMIFS('Accounting Data'!C2:C100000,'Accounting Data'!E2:E100000,"8??",'Accounting Data'!H2:H100000,"8??",'Accounting Data'!I2:I100000,"1???",'Accounting Data'!J2:J100000,"64??")+SUMIFS('Accounting Data'!C2:C100000,'Accounting Data'!E2:E100000,"8??",'Accounting Data'!H2:H100000,"9??",'Accounting Data'!I2:I100000,"1???",'Accounting Data'!J2:J100000,"64??") -> 0 | BA10: =SUMIFS('Accounting Data'!C2:C100000,'Accounting Data'!E2:E100000,"8??",'Accounting Data'!H2:H100000,"7??",'Accounting Data'!I2:I100000,"1???",'Accounting Data'!J2:J100000,"65??")+SUMIFS('Accounting Data'!C2:C100000,'Accounting Data'!E2:E100000,"8??",'Accounting Data'!H2:H100000,"8??",'Accounting Data'!I2:I100000,"1???",'Accounting Data'!J2:J100000,"65??")+SUMIFS('Accounting Data'!C2:C100000,'Accounting Data'!E2:E100000,"8??",'Accounting Data'!H2:H100000,"9??",'Accounting Data'!I2:I100000,"1???",'Accounting Data'!J2:J100000,"65??") -> 0 | BB10: =SUMIFS('Accounting Data'!C2:C100000,'Accounting Data'!E2:E100000,"9??",'Accounting Data'!H2:H100000,"7??",'Accounting Data'!I2:I100000,"1???",'Accounting Data'!J2:J100000,"63??")+SUMIFS('Accounting Data'!C2:C100000,'Accounting Data'!E2:E100000,"9??",'Accounting Data'!H2:H100000,"8??",'Accounting Data'!I2:I100000,"1???",'Accounting Data'!J2:J100000,"63??")+SUMIFS('Accounting Data'!C2:C100000,'Accounting Data'!E2:E100000,"9??",'Accounting Data'!H2:H100000,"9??",'Accounting Data'!I2:I100000,"1???",'Accounting Data'!J2:J100000,"63??") -> 0 | BC10: =SUMIFS('Accounting Data'!C2:C100000,'Accounting Data'!E2:E100000,"9??",'Accounting Data'!H2:H100000,"7??",'Accounting Data'!I2:I100000,"1???",'Accounting Data'!J2:J100000,"64??")+SUMIFS('Accounting Data'!C2:C100000,'Accounting Data'!E2:E100000,"9??",'Accounting Data'!H2:H100000,"8??",'Accounting Data'!I2:I100000,"1???",'Accounting Data'!J2:J100000,"64??")+SUMIFS('Accounting Data'!C2:C100000,'Accounting Data'!E2:E100000,"9??",'Accounting Data'!H2:H100000,"9??",'Accounting Data'!I2:I100000,"1???",'Accounting Data'!J2:J100000,"64??") -> 0 | BD10: =SUMIFS('Accounting Data'!C2:C100000,'Accounting Data'!E2:E100000,"9??",'Accounting Data'!H2:H100000,"7??",'Accounting Data'!I2:I100000,"1???",'Accounting Data'!J2:J100000,"65??")+SUMIFS('Accounting Data'!C2:C100000,'Accounting Data'!E2:E100000,"9??",'Accounting Data'!H2:H100000,"8??",'Accounting Data'!I2:I100000,"1???",'Accounting Data'!J2:J100000,"65??")+SUMIFS('Accounting Data'!C2:C100000,'Accounting Data'!E2:E100000,"9??",'Accounting Data'!H2:H100000,"9??",'Accounting Data'!I2:I100000,"1???",'Accounting Data'!J2:J100000,"65??") -> 0 | BF10: 1000 | BG10: =SUMIFS('Accounting Data'!C2:C100000,'Accounting Data'!I2:I100000,"1???",'Accounting Data'!J2:J100000,"66??") -> 1001018 | BH10: =SUMIFS('Accounting Data'!$C$2:$C$100000,'Accounting Data'!$E$2:$E$100000,"575",'Accounting Data'!$I$2:$I$100000,"1???",'Accounting Data'!$J$2:$J$100000,"66??")+SUMIFS('Accounting Data'!$C$2:$C$100000,'Accounting Data'!$E$2:$E$100000,"8??",'Accounting Data'!$I$2:$I$100000,"1???",'Accounting Data'!$J$2:$J$100000,"66??")+SUMIFS('Accounting Data'!$C$2:$C$100000,'Accounting Data'!$E$2:$E$100000,"9??",'Accounting Data'!$I$2:$I$100000,"1???",'Accounting Data'!$J$2:$J$100000,"66??") -> 32258 | BI10: =SUMIFS('Accounting Data'!$C$2:$C$100000,'Accounting Data'!$H$2:$H$100000,"7??",'Accounting Data'!$I$2:$I$100000,"1???",'Accounting Data'!$J$2:$J$100000,"66??")+SUMIFS('Accounting Data'!$C$2:$C$100000,'Accounting Data'!$H$2:$H$100000,"8??",'Accounting Data'!$I$2:$I$100000,"1???",'Accounting Data'!$J$2:$J$100000,"66??")+SUMIFS('Accounting Data'!$C$2:$C$100000,'Accounting Data'!$H$2:$H$100000,"9??",'Accounting Data'!$I$2:$I$100000,"1???",'Accounting Data'!$J$2:$J$100000,"66??") -> 0 | BJ10: =SUMIFS('Accounting Data'!$C$2:$C$100000,'Accounting Data'!$E$2:$E$100000,"575",'Accounting Data'!$H$2:$H$100000,"7??",'Accounting Data'!$I$2:$I$100000,"1???",'Accounting Data'!$J$2:$J$100000,"66??")+SUMIFS('Accounting Data'!$C$2:$C$100000,'Accounting Data'!$E$2:$E$100000,"575",'Accounting Data'!$H$2:$H$100000,"8??",'Accounting Data'!$I$2:$I$100000,"1???",'Accounting Data'!$J$2:$J$100000,"66??")+SUMIFS('Accounting Data'!$C$2:$C$100000,'Accounting Data'!$E$2:$E$100000,"575",'Accounting Data'!$H$2:$H$100000,"9??",'Accounting Data'!$I$2:$I$100000,"1???",'Accounting Data'!$J$2:$J$100000,"66??") -> 0 | BK10: =SUMIFS('Accounting Data'!$C$2:$C$100000,'Accounting Data'!$E$2:$E$100000,"8??",'Accounting Data'!$H$2:$H$100000,"7??",'Accounting Data'!$I$2:$I$100000,"1???",'Accounting Data'!$J$2:$J$100000,"66??")+SUMIFS('Accounting Data'!$C$2:$C$100000,'Accounting Data'!$E$2:$E$100000,"8??",'Accounting Data'!$H$2:$H$100000,"8??",'Accounting Data'!$I$2:$I$100000,"1???",'Accounting Data'!$J$2:$J$100000,"66??")+SUMIFS('Accounting Data'!$C$2:$C$100000,'Accounting Data'!$E$2:$E$100000,"8??",'Accounting Data'!$H$2:$H$100000,"9??",'Accounting Data'!$I$2:$I$100000,"1???",'Accounting Data'!$J$2:$J$100000,"66??") -> 0 | BL10: =SUMIFS('Accounting Data'!$C$2:$C$100000,'Accounting Data'!$E$2:$E$100000,"9??",'Accounting Data'!$H$2:$H$100000,"7??",'Accounting Data'!$I$2:$I$100000,"1???",'Accounting Data'!$J$2:$J$100000,"66??")+SUMIFS('Accounting Data'!$C$2:$C$100000,'Accounting Data'!$E$2:$E$100000,"9??",'Accounting Data'!$H$2:$H$100000,"8??",'Accounting Data'!$I$2:$I$100000,"1???",'Accounting Data'!$J$2:$J$100000,"66??")+SUMIFS('Accounting Data'!$C$2:$C$100000,'Accounting Data'!$E$2:$E$100000,"9??",'Accounting Data'!$H$2:$H$100000,"9??",'Accounting Data'!$I$2:$I$100000,"1???",'Accounting Data'!$J$2:$J$100000,"66??") -> 0 | BN10: 1000 | BO10: =SUMIFS('Accounting Data'!C2:C100000,'Accounting Data'!I2:I100000,"1???",'Accounting Data'!J2:J100000,"67??") -> 719375 | BP10: =SUMIFS('Accounting Data'!$C$2:$C$100000,'Accounting Data'!$E$2:$E$100000,"575",'Accounting Data'!$I$2:$I$100000,"1???",'Accounting Data'!$J$2:$J$100000,"67??")+SUMIFS('Accounting Data'!$C$2:$C$100000,'Accounting Data'!$E$2:$E$100000,"8??",'Accounting Data'!$I$2:$I$100000,"1???",'Accounting Data'!$J$2:$J$100000,"67??")+SUMIFS('Accounting Data'!$C$2:$C$100000,'Accounting Data'!$E$2:$E$100000,"9??",'Accounting Data'!$I$2:$I$100000,"1???",'Accounting Data'!$J$2:$J$100000,"67??") -> 549 | BQ10: =SUMIFS('Accounting Data'!$C$2:$C$100000,'Accounting Data'!$H$2:$H$100000,"7??",'Accounting Data'!$I$2:$I$100000,"1???",'Accounting Data'!$J$2:$J$100000,"67??")+SUMIFS('Accounting Data'!$C$2:$C$100000,'Accounting Data'!$H$2:$H$100000,"8??",'Accounting Data'!$I$2:$I$100000,"1???",'Accounting Data'!$J$2:$J$100000,"67??")+SUMIFS('Accounting Data'!$C$2:$C$100000,'Accounting Data'!$H$2:$H$100000,"9??",'Accounting Data'!$I$2:$I$100000,"1???",'Accounting Data'!$J$2:$J$100000,"67??") -> 0 | BR10: =SUMIFS('Accounting Data'!$C$2:$C$100000,'Accounting Data'!$E$2:$E$100000,"575",'Accounting Data'!$H$2:$H$100000,"7??",'Accounting Data'!$I$2:$I$100000,"1???",'Accounting Data'!$J$2:$J$100000,"67??")+SUMIFS('Accounting Data'!$C$2:$C$100000,'Accounting Data'!$E$2:$E$100000,"575",'Accounting Data'!$H$2:$H$100000,"8??",'Accounting Data'!$I$2:$I$100000,"1???",'Accounting Data'!$J$2:$J$100000,"67??")+SUMIFS('Accounting Data'!$C$2:$C$100000,'Accounting Data'!$E$2:$E$100000,"575",'Accounting Data'!$H$2:$H$100000,"9??",'Accounting Data'!$I$2:$I$100000,"1???",'Accounting Data'!$J$2:$J$100000,"67??") -> 0 | BS10: =SUMIFS('Accounting Data'!$C$2:$C$100000,'Accounting Data'!$E$2:$E$100000,"8??",'Accounting Data'!$H$2:$H$100000,"7??",'Accounting Data'!$I$2:$I$100000,"1???",'Accounting Data'!$J$2:$J$100000,"67??")+SUMIFS('Accounting Data'!$C$2:$C$100000,'Accounting Data'!$E$2:$E$100000,"8??",'Accounting Data'!$H$2:$H$100000,"8??",'Accounting Data'!$I$2:$I$100000,"1???",'Accounting Data'!$J$2:$J$100000,"67??")+SUMIFS('Accounting Data'!$C$2:$C$100000,'Accounting Data'!$E$2:$E$100000,"8??",'Accounting Data'!$H$2:$H$100000,"9??",'Accounting Data'!$I$2:$I$100000,"1???",'Accounting Data'!$J$2:$J$100000,"67??") -> 0 | BT10: =SUMIFS('Accounting Data'!$C$2:$C$100000,'Accounting Data'!$E$2:$E$100000,"9??",'Accounting Data'!$H$2:$H$100000,"7??",'Accounting Data'!$I$2:$I$100000,"1???",'Accounting Data'!$J$2:$J$100000,"67??")+SUMIFS('Accounting Data'!$C$2:$C$100000,'Accounting Data'!$E$2:$E$100000,"9??",'Accounting Data'!$H$2:$H$100000,"8??",'Accounting Data'!$I$2:$I$100000,"1???",'Accounting Data'!$J$2:$J$100000,"67??")+SUMIFS('Accounting Data'!$C$2:$C$100000,'Accounting Data'!$E$2:$E$100000,"9??",'Accounting Data'!$H$2:$H$100000,"9??",'Accounting Data'!$I$2:$I$100000,"1???",'Accounting Data'!$J$2:$J$100000,"67??") -> 0 | BV10: 1000 | BW10: =SUMIFS('Accounting Data'!C2:C100000,'Accounting Data'!I2:I100000,"1???",'Accounting Data'!J2:J100000,"681?") -> 35024 | BX10: =SUMIFS('Accounting Data'!$C$2:$C$100000,'Accounting Data'!$E$2:$E$100000,"575",'Accounting Data'!$I$2:$I$100000,"1???",'Accounting Data'!$J$2:$J$100000,"681?")+SUMIFS('Accounting Data'!$C$2:$C$100000,'Accounting Data'!$E$2:$E$100000,"8??",'Accounting Data'!$I$2:$I$100000,"1???",'Accounting Data'!$J$2:$J$100000,"681?")+SUMIFS('Accounting Data'!$C$2:$C$100000,'Accounting Data'!$E$2:$E$100000,"9??",'Accounting Data'!$I$2:$I$100000,"1???",'Accounting Data'!$J$2:$J$100000,"681?") -> 14445 | BY10: =SUMIFS('Accounting Data'!$C$2:$C$100000,'Accounting Data'!$H$2:$H$100000,"7??",'Accounting Data'!$I$2:$I$100000,"1???",'Accounting Data'!$J$2:$J$100000,"681?")+SUMIFS('Accounting Data'!$C$2:$C$100000,'Accounting Data'!$H$2:$H$100000,"8??",'Accounting Data'!$I$2:$I$100000,"1???",'Accounting Data'!$J$2:$J$100000,"681?")+SUMIFS('Accounting Data'!$C$2:$C$100000,'Accounting Data'!$H$2:$H$100000,"9??",'Accounting Data'!$I$2:$I$100000,"1???",'Accounting Data'!$J$2:$J$100000,"681?") -> 0 | BZ10: =SUMIFS('Accounting Data'!$C$2:$C$100000,'Accounting Data'!$E$2:$E$100000,"575",'Accounting Data'!$H$2:$H$100000,"7??",'Accounting Data'!$I$2:$I$100000,"1???",'Accounting Data'!$J$2:$J$100000,"681?")+SUMIFS('Accounting Data'!$C$2:$C$100000,'Accounting Data'!$E$2:$E$100000,"575",'Accounting Data'!$H$2:$H$100000,"8??",'Accounting Data'!$I$2:$I$100000,"1???",'Accounting Data'!$J$2:$J$100000,"681?")+SUMIFS('Accounting Data'!$C$2:$C$100000,'Accounting Data'!$E$2:$E$100000,"575",'Accounting Data'!$H$2:$H$100000,"9??",'Accounting Data'!$I$2:$I$100000,"1???",'Accounting Data'!$J$2:$J$100000,"681?") -> 0 | CA10: =SUMIFS('Accounting Data'!$C$2:$C$100000,'Accounting Data'!$E$2:$E$100000,"8??",'Accounting Data'!$H$2:$H$100000,"7??",'Accounting Data'!$I$2:$I$100000,"1???",'Accounting Data'!$J$2:$J$100000,"681?")+SUMIFS('Accounting Data'!$C$2:$C$100000,'Accounting Data'!$E$2:$E$100000,"8??",'Accounting Data'!$H$2:$H$100000,"8??",'Accounting Data'!$I$2:$I$100000,"1???",'Accounting Data'!$J$2:$J$100000,"681?")+SUMIFS('Accounting Data'!$C$2:$C$100000,'Accounting Data'!$E$2:$E$100000,"8??",'Accounting Data'!$H$2:$H$100000,"9??",'Accounting Data'!$I$2:$I$100000,"1???",'Accounting Data'!$J$2:$J$100000,"681?") -> 0 | CB10: =SUMIFS('Accounting Data'!$C$2:$C$100000,'Accounting Data'!$E$2:$E$100000,"9??",'Accounting Data'!$H$2:$H$100000,"7??",'Accounting Data'!$I$2:$I$100000,"1???",'Accounting Data'!$J$2:$J$100000,"681?")+SUMIFS('Accounting Data'!$C$2:$C$100000,'Accounting Data'!$E$2:$E$100000,"9??",'Accounting Data'!$H$2:$H$100000,"8??",'Accounting Data'!$I$2:$I$100000,"1???",'Accounting Data'!$J$2:$J$100000,"681?")+SUMIFS('Accounting Data'!$C$2:$C$100000,'Accounting Data'!$E$2:$E$100000,"9??",'Accounting Data'!$H$2:$H$100000,"9??",'Accounting Data'!$I$2:$I$100000,"1???",'Accounting Data'!$J$2:$J$100000,"681?") -> 0 | CT10: 1000 | CU10: =SUM(SUMIFS('Accounting Data'!C2:C100000,'Accounting Data'!I2:I100000,"1???",'Accounting Data'!J2:J100000,{"689?","6885"})) -> 28717 | CV10: =SUM(SUMIFS('Accounting Data'!$C$2:$C$100000,'Accounting Data'!$E$2:$E$100000,"575",'Accounting Data'!$I$2:$I$100000,"1???",'Accounting Data'!$J$2:$J$100000,{"689?","6885"}))+SUM(SUMIFS('Accounting Data'!$C$2:$C$100000,'Accounting Data'!$E$2:$E$100000,"8??",'Accounting Data'!$I$2:$I$100000,"1???",'Accounting Data'!$J$2:$J$100000,{"689?","6885"}))+SUM(SUMIFS('Accounting Data'!$C$2:$C$100000,'Accounting Data'!$E$2:$E$100000,"9??",'Accounting Data'!$I$2:$I$100000,"1???",'Accounting Data'!$J$2:$J$100000,{"689?","6885"})) -> 13407 | CW10: =SUM(SUMIFS('Accounting Data'!$C$2:$C$100000,'Accounting Data'!$H$2:$H$100000,"7??",'Accounting Data'!$I$2:$I$100000,"1???",'Accounting Data'!$J$2:$J$100000,{"689?","6885"}))+SUM(SUMIFS('Accounting Data'!$C$2:$C$100000,'Accounting Data'!$H$2:$H$100000,"8??",'Accounting Data'!$I$2:$I$100000,"1???",'Accounting Data'!$J$2:$J$100000,{"689?","6885"}))+SUM(SUMIFS('Accounting Data'!$C$2:$C$100000,'Accounting Data'!$H$2:$H$100000,"9??",'Accounting Data'!$I$2:$I$100000,"1???",'Accounting Data'!$J$2:$J$100000,{"689?","6885"})) -> 0 | CX10: =SUM(SUMIFS('Accounting Data'!$C$2:$C$100000,'Accounting Data'!$E$2:$E$100000,"575",'Accounting Data'!$H$2:$H$100000,"7??",'Accounting Data'!$I$2:$I$100000,"1???",'Accounting Data'!$J$2:$J$100000,{"689?","6885"}))+SUM(SUMIFS('Accounting Data'!$C$2:$C$100000,'Accounting Data'!$E$2:$E$100000,"575",'Accounting Data'!$H$2:$H$100000,"8??",'Accounting Data'!$I$2:$I$100000,"1???",'Accounting Data'!$J$2:$J$100000,{"689?","6885"}))+SUM(SUMIFS('Accounting Data'!$C$2:$C$100000,'Accounting Data'!$E$2:$E$100000,"575",'Accounting Data'!$H$2:$H$100000,"9??",'Accounting Data'!$I$2:$I$100000,"1???",'Accounting Data'!$J$2:$J$100000,{"689?","6885"})) -> 0 | CY10: =SUM(SUMIFS('Accounting Data'!$C$2:$C$100000,'Accounting Data'!$E$2:$E$100000,"8??",'Accounting Data'!$H$2:$H$100000,"7??",'Accounting Data'!$I$2:$I$100000,"1???",'Accounting Data'!$J$2:$J$100000,{"689?","6885"}))+SUM(SUMIFS('Accounting Data'!$C$2:$C$100000,'Accounting Data'!$E$2:$E$100000,"8??",'Accounting Data'!$H$2:$H$100000,"8??",'Accounting Data'!$I$2:$I$100000,"1???",'Accounting Data'!$J$2:$J$100000,{"689?","6885"}))+SUM(SUMIFS('Accounting Data'!$C$2:$C$100000,'Accounting Data'!$E$2:$E$100000,"8??",'Accounting Data'!$H$2:$H$100000,"9??",'Accounting Data'!$I$2:$I$100000,"1???",'Accounting Data'!$J$2:$J$100000,{"689?","6885"})) -> 0 | CZ10: =SUM(SUMIFS('Accounting Data'!$C$2:$C$100000,'Accounting Data'!$E$2:$E$100000,"9??",'Accounting Data'!$H$2:$H$100000,"7??",'Accounting Data'!$I$2:$I$100000,"1???",'Accounting Data'!$J$2:$J$100000,{"689?","6885"}))+SUM(SUMIFS('Accounting Data'!$C$2:$C$100000,'Accounting Data'!$E$2:$E$100000,"9??",'Accounting Data'!$H$2:$H$100000,"8??",'Accounting Data'!$I$2:$I$100000,"1???",'Accounting Data'!$J$2:$J$100000,{"689?","6885"}))+SUM(SUMIFS('Accounting Data'!$C$2:$C$100000,'Accounting Data'!$E$2:$E$100000,"9??",'Accounting Data'!$H$2:$H$100000,"9??",'Accounting Data'!$I$2:$I$100000,"1???",'Accounting Data'!$J$2:$J$100000,{"689?","6885"})) -> 0 | DB10: 1000 | DC10: =SUMIFS('Accounting Data'!$C$2:$C$100000,'Accounting Data'!$H$2:$H$100000,"7??",'Accounting Data'!$I$2:$I$100000,"1???",'Accounting Data'!$J$2:$J$100000,"6???")+SUMIFS('Accounting Data'!$C$2:$C$100000,'Accounting Data'!$H$2:$H$100000,"8??",'Accounting Data'!$I$2:$I$100000,"1???",'Accounting Data'!$J$2:$J$100000,"6???")+SUMIFS('Accounting Data'!$C$2:$C$100000,'Accounting Data'!$H$2:$H$100000,"9??",'Accounting Data'!$I$2:$I$100000,"1???",'Accounting Data'!$J$2:$J$100000,"6???") -> 0 | DD10: =SUMIFS('Accounting Data'!$C$2:$C$100000,'Accounting Data'!$H$2:$H$100000,"7??",'Accounting Data'!$I$2:$I$100000,"1???",'Accounting Data'!$J$2:$J$100000,"69??")+SUMIFS('Accounting Data'!$C$2:$C$100000,'Accounting Data'!$H$2:$H$100000,"8??",'Accounting Data'!$I$2:$I$100000,"1???",'Accounting Data'!$J$2:$J$100000,"69??")+SUMIFS('Accounting Data'!$C$2:$C$100000,'Accounting Data'!$H$2:$H$100000,"9??",'Accounting Data'!$I$2:$I$100000,"1???",'Accounting Data'!$J$2:$J$100000,"69??") -> 0 | DE10: =SUMIFS('Accounting Data'!$C$2:$C$100000,'Accounting Data'!$E$2:$E$100000,"575",'Accounting Data'!$H$2:$H$100000,"7??",'Accounting Data'!$I$2:$I$100000,"1???",'Accounting Data'!$J$2:$J$100000,"6???")+SUMIFS('Accounting Data'!$C$2:$C$100000,'Accounting Data'!$E$2:$E$100000,"575",'Accounting Data'!$H$2:$H$100000,"8??",'Accounting Data'!$I$2:$I$100000,"1???",'Accounting Data'!$J$2:$J$100000,"6???")+SUMIFS('Accounting Data'!$C$2:$C$100000,'Accounting Data'!$E$2:$E$100000,"575",'Accounting Data'!$H$2:$H$100000,"9??",'Accounting Data'!$I$2:$I$100000,"1???",'Accounting Data'!$J$2:$J$100000,"6???") -> 0 | DF10: =SUMIFS('Accounting Data'!$C$2:$C$100000,'Accounting Data'!$E$2:$E$100000,"8??",'Accounting Data'!$H$2:$H$100000,"7??",'Accounting Data'!$I$2:$I$100000,"1???",'Accounting Data'!$J$2:$J$100000,"6???")+SUMIFS('Accounting Data'!$C$2:$C$100000,'Accounting Data'!$E$2:$E$100000,"8??",'Accounting Data'!$H$2:$H$100000,"8??",'Accounting Data'!$I$2:$I$100000,"1???",'Accounting Data'!$J$2:$J$100000,"6???")+SUMIFS('Accounting Data'!$C$2:$C$100000,'Accounting Data'!$E$2:$E$100000,"8??",'Accounting Data'!$H$2:$H$100000,"9??",'Accounting Data'!$I$2:$I$100000,"1???",'Accounting Data'!$J$2:$J$100000,"6???")+SUMIFS('Accounting Data'!$C$2:$C$100000,'Accounting Data'!$E$2:$E$100000,"9??",'Accounting Data'!$H$2:$H$100000,"7??",'Accounting Data'!$I$2:$I$100000,"1???",'Accounting Data'!$J$2:$J$100000,"6???")+SUMIFS('Accounting Data'!$C$2:$C$100000,'Accounting Data'!$E$2:$E$100000,"9??",'Accounting Data'!$H$2:$H$100000,"8??",'Accounting Data'!$I$2:$I$100000,"1???",'Accounting Data'!$J$2:$J$100000,"6???")+SUMIFS('Accounting Data'!$C$2:$C$100000,'Accounting Data'!$E$2:$E$100000,"9??",'Accounting Data'!$H$2:$H$100000,"9??",'Accounting Data'!$I$2:$I$100000,"1???",'Accounting Data'!$J$2:$J$100000,"6???") -> 0 | DG10: =SUMIFS('Accounting Data'!$C$2:$C$100000,'Accounting Data'!$E$2:$E$100000,"575",'Accounting Data'!$H$2:$H$100000,"7??",'Accounting Data'!$I$2:$I$100000,"1???",'Accounting Data'!$J$2:$J$100000,"69??")+SUMIFS('Accounting Data'!$C$2:$C$100000,'Accounting Data'!$E$2:$E$100000,"575",'Accounting Data'!$H$2:$H$100000,"8??",'Accounting Data'!$I$2:$I$100000,"1???",'Accounting Data'!$J$2:$J$100000,"69??")+SUMIFS('Accounting Data'!$C$2:$C$100000,'Accounting Data'!$E$2:$E$100000,"575",'Accounting Data'!$H$2:$H$100000,"9??",'Accounting Data'!$I$2:$I$100000,"1???",'Accounting Data'!$J$2:$J$100000,"69??") -> 0 | DH10: =SUMIFS('Accounting Data'!$C$2:$C$100000,'Accounting Data'!$E$2:$E$100000,"8??",'Accounting Data'!$H$2:$H$100000,"7??",'Accounting Data'!$I$2:$I$100000,"1???",'Accounting Data'!$J$2:$J$100000,"69??")+SUMIFS('Accounting Data'!$C$2:$C$100000,'Accounting Data'!$E$2:$E$100000,"8??",'Accounting Data'!$H$2:$H$100000,"8??",'Accounting Data'!$I$2:$I$100000,"1???",'Accounting Data'!$J$2:$J$100000,"69??")+SUMIFS('Accounting Data'!$C$2:$C$100000,'Accounting Data'!$E$2:$E$100000,"8??",'Accounting Data'!$H$2:$H$100000,"9??",'Accounting Data'!$I$2:$I$100000,"1???",'Accounting Data'!$J$2:$J$100000,"69??")+SUMIFS('Accounting Data'!$C$2:$C$100000,'Accounting Data'!$E$2:$E$100000,"9??",'Accounting Data'!$H$2:$H$100000,"7??",'Accounting Data'!$I$2:$I$100000,"1???",'Accounting Data'!$J$2:$J$100000,"69??")+SUMIFS('Accounting Data'!$C$2:$C$100000,'Accounting Data'!$E$2:$E$100000,"9??",'Accounting Data'!$H$2:$H$100000,"8??",'Accounting Data'!$I$2:$I$100000,"1???",'Accounting Data'!$J$2:$J$100000,"69??")+SUMIFS('Accounting Data'!$C$2:$C$100000,'Accounting Data'!$E$2:$E$100000,"9??",'Accounting Data'!$H$2:$H$100000,"9??",'Accounting Data'!$I$2:$I$100000,"1???",'Accounting Data'!$J$2:$J$100000,"69??") -> 0
A11: 2000 Support Services | S11: Total food service expenses minus commodities | CD11: Object 6820
A12: 2100 Students | B12: 2. | C12: =(AA12-AB12-AC12)+(AD12+AE12+AF12) -> 1910785 | D12: =(AI12-AJ12-AK12)+(AL12+AM12+AN12) -> 607601 | E12: =(AQ12-AR12-AS12-AT12-AU12)+(AV12+AW12+AX12+AY12+AZ12+BA12+BB12+BC12+BD12) -> 791661 | F12: =(BG12-BH12-BI12)+(BJ12+BK12+BL12) -> 106618 | G12: =(BO12-BP12-BQ12)+(BR12+BS12+BT12) -> 12910 | H12: =(BW12-BX12-BY12)+(BZ12+CA12+CB12) -> 17965 | L12: =(CU12-CV12-CW12)+(CX12+CY12+CZ12) -> 77502 | M12: =(DC12-DD12)-((DE12+DF12)-(DG12+DH12)) -> 0 | N12: =SUM(C12:M12) -> 3525042 | O12: 2. | Z12: 2100 | AA12: =SUMIFS('Accounting Data'!C2:C100000,'Accounting Data'!I2:I100000,"21??",'Accounting Data'!J2:J100000,"61??") -> 1952381 | AB12: =SUMIFS('Accounting Data'!C2:C100000,'Accounting Data'!E2:E100000,"575",'Accounting Data'!I2:I100000,"21??",'Accounting Data'!J2:J100000,"61??")+SUMIFS('Accounting Data'!C2:C100000,'Accounting Data'!E2:E100000,"8??",'Accounting Data'!I2:I100000,"21??",'Accounting Data'!J2:J100000,"61??")+SUMIFS('Accounting Data'!C2:C100000,'Accounting Data'!E2:E100000,"9??",'Accounting Data'!I2:I100000,"21??",'Accounting Data'!J2:J100000,"61??") -> 41596 | AC12: =SUMIFS('Accounting Data'!C2:C100000,'Accounting Data'!H2:H100000,"7??",'Accounting Data'!I2:I100000,"21??",'Accounting Data'!J2:J100000,"61??")+SUMIFS('Accounting Data'!C2:C100000,'Accounting Data'!H2:H100000,"8??",'Accounting Data'!I2:I100000,"21??",'Accounting Data'!J2:J100000,"61??")+SUMIFS('Accounting Data'!C2:C100000,'Accounting Data'!H2:H100000,"9??",'Accounting Data'!I2:I100000,"21??",'Accounting Data'!J2:J100000,"61??") -> 0 | AD12: =SUMIFS('Accounting Data'!C2:C100000,'Accounting Data'!E2:E100000,"575",'Accounting Data'!H2:H100000,"7??",'Accounting Data'!I2:I100000,"21??",'Accounting Data'!J2:J100000,"61??")+SUMIFS('Accounting Data'!C2:C100000,'Accounting Data'!E2:E100000,"575",'Accounting Data'!H2:H100000,"8??",'Accounting Data'!I2:I100000,"21??",'Accounting Data'!J2:J100000,"61??")+SUMIFS('Accounting Data'!C2:C100000,'Accounting Data'!E2:E100000,"575",'Accounting Data'!H2:H100000,"9??",'Accounting Data'!I2:I100000,"21??",'Accounting Data'!J2:J100000,"61??") -> 0 | AE12: =SUMIFS('Accounting Data'!C2:C100000,'Accounting Data'!E2:E100000,"8??",'Accounting Data'!H2:H100000,"7??",'Accounting Data'!I2:I100000,"21??",'Accounting Data'!J2:J100000,"61??")+SUMIFS('Accounting Data'!C2:C100000,'Accounting Data'!E2:E100000,"8??",'Accounting Data'!H2:H100000,"8??",'Accounting Data'!I2:I100000,"21??",'Accounting Data'!J2:J100000,"61??")+SUMIFS('Accounting Data'!C2:C100000,'Accounting Data'!E2:E100000,"8??",'Accounting Data'!H2:H100000,"9??",'Accounting Data'!I2:I100000,"21??",'Accounting Data'!J2:J100000,"61??") -> 0 | AF12: =SUMIFS('Accounting Data'!C2:C100000,'Accounting Data'!E2:E100000,"9??",'Accounting Data'!H2:H100000,"7??",'Accounting Data'!I2:I100000,"21??",'Accounting Data'!J2:J100000,"61??")+SUMIFS('Accounting Data'!C2:C100000,'Accounting Data'!E2:E100000,"9??",'Accounting Data'!H2:H100000,"8??",'Accounting Data'!I2:I100000,"21??",'Accounting Data'!J2:J100000,"61??")+SUMIFS('Accounting Data'!C2:C100000,'Accounting Data'!E2:E100000,"9??",'Accounting Data'!H2:H100000,"9??",'Accounting Data'!I2:I100000,"21??",'Accounting Data'!J2:J100000,"61??") -> 0 | AH12: 2100 | AI12: =SUMIFS('Accounting Data'!C2:C100000,'Accounting Data'!I2:I100000,"21??",'Accounting Data'!J2:J100000,"62??") -> 622200 | AJ12: =SUMIFS('Accounting Data'!C2:C100000,'Accounting Data'!E2:E100000,"575",'Accounting Data'!I2:I100000,"21??",'Accounting Data'!J2:J100000,"62??")+SUMIFS('Accounting Data'!C2:C100000,'Accounting Data'!E2:E100000,"8??",'Accounting Data'!I2:I100000,"21??",'Accounting Data'!J2:J100000,"62??")+SUMIFS('Accounting Data'!C2:C100000,'Accounting Data'!E2:E100000,"9??",'Accounting Data'!I2:I100000,"21??",'Accounting Data'!J2:J100000,"62??") -> 14599 | AK12: =SUMIFS('Accounting Data'!C2:C100000,'Accounting Data'!H2:H100000,"7??",'Accounting Data'!I2:I100000,"21??",'Accounting Data'!J2:J100000,"62??")+SUMIFS('Accounting Data'!C2:C100000,'Accounting Data'!H2:H100000,"8??",'Accounting Data'!I2:I100000,"21??",'Accounting Data'!J2:J100000,"62??")+SUMIFS('Accounting Data'!C2:C100000,'Accounting Data'!H2:H100000,"9??",'Accounting Data'!I2:I100000,"21??",'Accounting Data'!J2:J100000,"62??") -> 0 | AL12: =SUMIFS('Accounting Data'!C2:C100000,'Accounting Data'!E2:E100000,"575",'Accounting Data'!H2:H100000,"7??",'Accounting Data'!I2:I100000,"21??",'Accounting Data'!J2:J100000,"62??")+SUMIFS('Accounting Data'!C2:C100000,'Accounting Data'!E2:E100000,"575",'Accounting Data'!H2:H100000,"8??",'Accounting Data'!I2:I100000,"21??",'Accounting Data'!J2:J100000,"62??")+SUMIFS('Accounting Data'!C2:C100000,'Accounting Data'!E2:E100000,"575",'Accounting Data'!H2:H100000,"9??",'Accounting Data'!I2:I100000,"21??",'Accounting Data'!J2:J100000,"62??") -> 0 | AM12: =SUMIFS('Accounting Data'!C2:C100000,'Accounting Data'!E2:E100000,"8??",'Accounting Data'!H2:H100000,"7??",'Accounting Data'!I2:I100000,"21??",'Accounting Data'!J2:J100000,"62??")+SUMIFS('Accounting Data'!C2:C100000,'Accounting Data'!E2:E100000,"8??",'Accounting Data'!H2:H100000,"8??",'Accounting Data'!I2:I100000,"21??",'Accounting Data'!J2:J100000,"62??")+SUMIFS('Accounting Data'!C2:C100000,'Accounting Data'!E2:E100000,"8??",'Accounting Data'!H2:H100000,"9??",'Accounting Data'!I2:I100000,"21??",'Accounting Data'!J2:J100000,"62??") -> 0 | AN12: =SUMIFS('Accounting Data'!C2:C100000,'Accounting Data'!E2:E100000,"9??",'Accounting Data'!H2:H100000,"7??",'Accounting Data'!I2:I100000,"21??",'Accounting Data'!J2:J100000,"62??")+SUMIFS('Accounting Data'!C2:C100000,'Accounting Data'!E2:E100000,"9??",'Accounting Data'!H2:H100000,"8??",'Accounting Data'!I2:I100000,"21??",'Accounting Data'!J2:J100000,"62??")+SUMIFS('Accounting Data'!C2:C100000,'Accounting Data'!E2:E100000,"9??",'Accounting Data'!H2:H100000,"9??",'Accounting Data'!I2:I100000,"21??",'Accounting Data'!J2:J100000,"62??") -> 0 | AP12: 2100 | AQ12: =SUMIFS('Accounting Data'!C2:C100000,'Accounting Data'!I2:I100000,"21??",'Accounting Data'!J2:J100000,"63??")+SUMIFS('Accounting Data'!C2:C100000,'Accounting Data'!I2:I100000,"21??",'Accounting Data'!J2:J100000,"64??")+SUMIFS('Accounting Data'!C2:C100000,'Accounting Data'!I2:I100000,"21??",'Accounting Data'!J2:J100000,"65??") -> 791661 | AR12: =SUMIFS('Accounting Data'!C2:C100000,'Accounting Data'!E2:E100000,"575",'Accounting Data'!I2:I100000,"21??",'Accounting Data'!J2:J100000,"63??")+SUMIFS('Accounting Data'!C2:C100000,'Accounting Data'!E2:E100000,"8??",'Accounting Data'!I2:I100000,"21??",'Accounting Data'!J2:J100000,"63??")+SUMIFS('Accounting Data'!C2:C100000,'Accounting Data'!E2:E100000,"9??",'Accounting Data'!I2:I100000,"21??",'Accounting Data'!J2:J100000,"63??") -> 0 | AS12: =SUMIFS('Accounting Data'!C2:C100000,'Accounting Data'!E2:E100000,"575",'Accounting Data'!I2:I100000,"21??",'Accounting Data'!J2:J100000,"64??")+SUMIFS('Accounting Data'!C2:C100000,'Accounting Data'!E2:E100000,"8??",'Accounting Data'!I2:I100000,"21??",'Accounting Data'!J2:J100000,"64??")+SUMIFS('Accounting Data'!C2:C100000,'Accounting Data'!E2:E100000,"9??",'Accounting Data'!I2:I100000,"21??",'Accounting Data'!J2:J100000,"64??") -> 0 | AT12: =SUMIFS('Accounting Data'!C2:C100000,'Accounting Data'!E2:E100000,"575",'Accounting Data'!I2:I100000,"21??",'Accounting Data'!J2:J100000,"65??")+SUMIFS('Accounting Data'!C2:C100000,'Accounting Data'!E2:E100000,"8??",'Accounting Data'!I2:I100000,"21??",'Accounting Data'!J2:J100000,"65??")+SUMIFS('Accounting Data'!C2:C100000,'Accounting Data'!E2:E100000,"9??",'Accounting Data'!I2:I100000,"21??",'Accounting Data'!J2:J100000,"65??") -> 0 | AU12: =SUMIFS('Accounting Data'!C2:C100000,'Accounting Data'!H2:H100000,"7??",'Accounting Data'!I2:I100000,"21??",'Accounting Data'!J2:J100000,"63??")+SUMIFS('Accounting Data'!C2:C100000,'Accounting Data'!H2:H100000,"8??",'Accounting Data'!I2:I100000,"21??",'Accounting Data'!J2:J100000,"63??")+SUMIFS('Accounting Data'!C2:C100000,'Accounting Data'!H2:H100000,"9??",'Accounting Data'!I2:I100000,"21??",'Accounting Data'!J2:J100000,"63??")+SUMIFS('Accounting Data'!C2:C100000,'Accounting Data'!H2:H100000,"7??",'Accounting Data'!I2:I100000,"21??",'Accounting Data'!J2:J100000,"64??")+SUMIFS('Accounting Data'!C2:C100000,'Accounting Data'!H2:H100000,"8??",'Accounting Data'!I2:I100000,"21??",'Accounting Data'!J2:J100000,"64??")+SUMIFS('Accounting Data'!C2:C100000,'Accounting Data'!H2:H100000,"9??",'Accounting Data'!I2:I100000,"21??",'Accounting Data'!J2:J100000,"64??")+SUMIFS('Accounting Data'!C2:C100000,'Accounting Data'!H2:H100000,"7??",'Accounting Data'!I2:I100000,"21??",'Accounting Data'!J2:J100000,"65??")+SUMIFS('Accounting Data'!C2:C100000,'Accounting Data'!H2:H100000,"8??",'Accounting Data'!I2:I100000,"21??",'Accounting Data'!J2:J100000,"65??")+SUMIFS('Accounting Data'!C2:C100000,'Accounting Data'!H2:H100000,"9??",'Accounting Data'!I2:I100000,"21??",'Accounting Data'!J2:J100000,"65??") -> 0 | AV12: =SUMIFS('Accounting Data'!C2:C100000,'Accounting Data'!E2:E100000,"575",'Accounting Data'!H2:H100000,"7??",'Accounting Data'!I2:I100000,"21??",'Accounting Data'!J2:J100000,"63??")+SUMIFS('Accounting Data'!C2:C100000,'Accounting Data'!E2:E100000,"575",'Accounting Data'!H2:H100000,"8??",'Accounting Data'!I2:I100000,"21??",'Accounting Data'!J2:J100000,"63??")+SUMIFS('Accounting Data'!C2:C100000,'Accounting Data'!E2:E100000,"575",'Accounting Data'!H2:H100000,"9??",'Accounting Data'!I2:I100000,"21??",'Accounting Data'!J2:J100000,"63??") -> 0 | AW12: =SUMIFS('Accounting Data'!C2:C100000,'Accounting Data'!E2:E100000,"575",'Accounting Data'!H2:H100000,"7??",'Accounting Data'!I2:I100000,"21??",'Accounting Data'!J2:J100000,"64??")+SUMIFS('Accounting Data'!C2:C100000,'Accounting Data'!E2:E100000,"575",'Accounting Data'!H2:H100000,"8??",'Accounting Data'!I2:I100000,"21??",'Accounting Data'!J2:J100000,"64??")+SUMIFS('Accounting Data'!C2:C100000,'Accounting Data'!E2:E100000,"575",'Accounting Data'!H2:H100000,"9??",'Accounting Data'!I2:I100000,"21??",'Accounting Data'!J2:J100000,"64??") -> 0 | AX12: =SUMIFS('Accounting Data'!C2:C100000,'Accounting Data'!E2:E100000,"575",'Accounting Data'!H2:H100000,"7??",'Accounting Data'!I2:I100000,"21??",'Accounting Data'!J2:J100000,"65??")+SUMIFS('Accounting Data'!C2:C100000,'Accounting Data'!E2:E100000,"575",'Accounting Data'!H2:H100000,"8??",'Accounting Data'!I2:I100000,"21??",'Accounting Data'!J2:J100000,"65??")+SUMIFS('Accounting Data'!C2:C100000,'Accounting Data'!E2:E100000,"575",'Accounting Data'!H2:H100000,"9??",'Accounting Data'!I2:I100000,"21??",'Accounting Data'!J2:J100000,"65??") -> 0 | AY12: =SUMIFS('Accounting Data'!C2:C100000,'Accounting Data'!E2:E100000,"8??",'Accounting Data'!H2:H100000,"7??",'Accounting Data'!I2:I100000,"21??",'Accounting Data'!J2:J100000,"63??")+SUMIFS('Accounting Data'!C2:C100000,'Accounting Data'!E2:E100000,"8??",'Accounting Data'!H2:H100000,"8??",'Accounting Data'!I2:I100000,"21??",'Accounting Data'!J2:J100000,"63??")+SUMIFS('Accounting Data'!C2:C100000,'Accounting Data'!E2:E100000,"8??",'Accounting Data'!H2:H100000,"9??",'Accounting Data'!I2:I100000,"21??",'Accounting Data'!J2:J100000,"63??") -> 0 | AZ12: =SUMIFS('Accounting Data'!C2:C100000,'Accounting Data'!E2:E100000,"8??",'Accounting Data'!H2:H100000,"7??",'Accounting Data'!I2:I100000,"21??",'Accounting Data'!J2:J100000,"64??")+SUMIFS('Accounting Data'!C2:C100000,'Accounting Data'!E2:E100000,"8??",'Accounting Data'!H2:H100000,"8??",'Accounting Data'!I2:I100000,"21??",'Accounting Data'!J2:J100000,"64??")+SUMIFS('Accounting Data'!C2:C100000,'Accounting Data'!E2:E100000,"8??",'Accounting Data'!H2:H100000,"9??",'Accounting Data'!I2:I100000,"21??",'Accounting Data'!J2:J100000,"64??") -> 0 | BA12: =SUMIFS('Accounting Data'!C2:C100000,'Accounting Data'!E2:E100000,"8??",'Accounting Data'!H2:H100000,"7??",'Accounting Data'!I2:I100000,"21??",'Accounting Data'!J2:J100000,"65??")+SUMIFS('Accounting Data'!C2:C100000,'Accounting Data'!E2:E100000,"8??",'Accounting Data'!H2:H100000,"8??",'Accounting Data'!I2:I100000,"21??",'Accounting Data'!J2:J100000,"65??")+SUMIFS('Accounting Data'!C2:C100000,'Accounting Data'!E2:E100000,"8??",'Accounting Data'!H2:H100000,"9??",'Accounting Data'!I2:I100000,"21??",'Accounting Data'!J2:J100000,"65??") -> 0 | BB12: =SUMIFS('Accounting Data'!C2:C100000,'Accounting Data'!E2:E100000,"9??",'Accounting Data'!H2:H100000,"7??",'Accounting Data'!I2:I100000,"21??",'Accounting Data'!J2:J100000,"63??")+SUMIFS('Accounting Data'!C2:C100000,'Accounting Data'!E2:E100000,"9??",'Accounting Data'!H2:H100000,"8??",'Accounting Data'!I2:I100000,"21??",'Accounting Data'!J2:J100000,"63??")+SUMIFS('Accounting Data'!C2:C100000,'Accounting Data'!E2:E100000,"9??",'Accounting Data'!H2:H100000,"9??",'Accounting Data'!I2:I100000,"21??",'Accounting Data'!J2:J100000,"63??") -> 0 | BC12: =SUMIFS('Accounting Data'!C2:C100000,'Accounting Data'!E2:E100000,"9??",'Accounting Data'!H2:H100000,"7??",'Accounting Data'!I2:I100000,"21??",'Accounting Data'!J2:J100000,"64??")+SUMIFS('Accounting Data'!C2:C100000,'Accounting Data'!E2:E100000,"9??",'Accounting Data'!H2:H100000,"8??",'Accounting Data'!I2:I100000,"21??",'Accounting Data'!J2:J100000,"64??")+SUMIFS('Accounting Data'!C2:C100000,'Accounting Data'!E2:E100000,"9??",'Accounting Data'!H2:H100000,"9??",'Accounting Data'!I2:I100000,"21??",'Accounting Data'!J2:J100000,"64??") -> 0 | BD12: =SUMIFS('Accounting Data'!C2:C100000,'Accounting Data'!E2:E100000,"9??",'Accounting Data'!H2:H100000,"7??",'Accounting Data'!I2:I100000,"21??",'Accounting Data'!J2:J100000,"65??")+SUMIFS('Accounting Data'!C2:C100000,'Accounting Data'!E2:E100000,"9??",'Accounting Data'!H2:H100000,"8??",'Accounting Data'!I2:I100000,"21??",'Accounting Data'!J2:J100000,"65??")+SUMIFS('Accounting Data'!C2:C100000,'Accounting Data'!E2:E100000,"9??",'Accounting Data'!H2:H100000,"9??",'Accounting Data'!I2:I100000,"21??",'Accounting Data'!J2:J100000,"65??") -> 0 | BF12: 2100 | BG12: =SUMIFS('Accounting Data'!C2:C100000,'Accounting Data'!I2:I100000,"21??",'Accounting Data'!J2:J100000,"66??") -> 106618 | BH12: =SUMIFS('Accounting Data'!$C$2:$C$100000,'Accounting Data'!$E$2:$E$100000,"575",'Accounting Data'!$I$2:$I$100000,"21??",'Accounting Data'!$J$2:$J$100000,"66??")+SUMIFS('Accounting Data'!$C$2:$C$100000,'Accounting Data'!$E$2:$E$100000,"8??",'Accounting Data'!$I$2:$I$100000,"21??",'Accounting Data'!$J$2:$J$100000,"66??")+SUMIFS('Accounting Data'!$C$2:$C$100000,'Accounting Data'!$E$2:$E$100000,"9??",'Accounting Data'!$I$2:$I$100000,"21??",'Accounting Data'!$J$2:$J$100000,"66??") -> 0 | BI12: =SUMIFS('Accounting Data'!$C$2:$C$100000,'Accounting Data'!$H$2:$H$100000,"7??",'Accounting Data'!$I$2:$I$100000,"21??",'Accounting Data'!$J$2:$J$100000,"66??")+SUMIFS('Accounting Data'!$C$2:$C$100000,'Accounting Data'!$H$2:$H$100000,"8??",'Accounting Data'!$I$2:$I$100000,"21??",'Accounting Data'!$J$2:$J$100000,"66??")+SUMIFS('Accounting Data'!$C$2:$C$100000,'Accounting Data'!$H$2:$H$100000,"9??",'Accounting Data'!$I$2:$I$100000,"21??",'Accounting Data'!$J$2:$J$100000,"66??") -> 0 | BJ12: =SUMIFS('Accounting Data'!$C$2:$C$100000,'Accounting Data'!$E$2:$E$100000,"575",'Accounting Data'!$H$2:$H$100000,"7??",'Accounting Data'!$I$2:$I$100000,"21??",'Accounting Data'!$J$2:$J$100000,"66??")+SUMIFS('Accounting Data'!$C$2:$C$100000,'Accounting Data'!$E$2:$E$100000,"575",'Accounting Data'!$H$2:$H$100000,"8??",'Accounting Data'!$I$2:$I$100000,"21??",'Accounting Data'!$J$2:$J$100000,"66??")+SUMIFS('Accounting Data'!$C$2:$C$100000,'Accounting Data'!$E$2:$E$100000,"575",'Accounting Data'!$H$2:$H$100000,"9??",'Accounting Data'!$I$2:$I$100000,"21??",'Accounting Data'!$J$2:$J$100000,"66??") -> 0 | BK12: =SUMIFS('Accounting Data'!$C$2:$C$100000,'Accounting Data'!$E$2:$E$100000,"8??",'Accounting Data'!$H$2:$H$100000,"7??",'Accounting Data'!$I$2:$I$100000,"21??",'Accounting Data'!$J$2:$J$100000,"66??")+SUMIFS('Accounting Data'!$C$2:$C$100000,'Accounting Data'!$E$2:$E$100000,"8??",'Accounting Data'!$H$2:$H$100000,"8??",'Accounting Data'!$I$2:$I$100000,"21??",'Accounting Data'!$J$2:$J$100000,"66??")+SUMIFS('Accounting Data'!$C$2:$C$100000,'Accounting Data'!$E$2:$E$100000,"8??",'Accounting Data'!$H$2:$H$100000,"9??",'Accounting Data'!$I$2:$I$100000,"21??",'Accounting Data'!$J$2:$J$100000,"66??") -> 0 | BL12: =SUMIFS('Accounting Data'!$C$2:$C$100000,'Accounting Data'!$E$2:$E$100000,"9??",'Accounting Data'!$H$2:$H$100000,"7??",'Accounting Data'!$I$2:$I$100000,"21??",'Accounting Data'!$J$2:$J$100000,"66??")+SUMIFS('Accounting Data'!$C$2:$C$100000,'Accounting Data'!$E$2:$E$100000,"9??",'Accounting Data'!$H$2:$H$100000,"8??",'Accounting Data'!$I$2:$I$100000,"21??",'Accounting Data'!$J$2:$J$100000,"66??")+SUMIFS('Accounting Data'!$C$2:$C$100000,'Accounting Data'!$E$2:$E$100000,"9??",'Accounting Data'!$H$2:$H$100000,"9??",'Accounting Data'!$I$2:$I$100000,"21??",'Accounting Data'!$J$2:$J$100000,"66??") -> 0 | BN12: 2100 | BO12: =SUMIFS('Accounting Data'!C2:C100000,'Accounting Data'!I2:I100000,"21??",'Accounting Data'!J2:J100000,"67??") -> 12910 | BP12: =SUMIFS('Accounting Data'!$C$2:$C$100000,'Accounting Data'!$E$2:$E$100000,"575",'Accounting Data'!$I$2:$I$100000,"21??",'Accounting Data'!$J$2:$J$100000,"67??")+SUMIFS('Accounting Data'!$C$2:$C$100000,'Accounting Data'!$E$2:$E$100000,"8??",'Accounting Data'!$I$2:$I$100000,"21??",'Accounting Data'!$J$2:$J$100000,"67??")+SUMIFS('Accounting Data'!$C$2:$C$100000,'Accounting Data'!$E$2:$E$100000,"9??",'Accounting Data'!$I$2:$I$100000,"21??",'Accounting Data'!$J$2:$J$100000,"67??") -> 0 | BQ12: =SUMIFS('Accounting Data'!$C$2:$C$100000,'Accounting Data'!$H$2:$H$100000,"7??",'Accounting Data'!$I$2:$I$100000,"21??",'Accounting Data'!$J$2:$J$100000,"67??")+SUMIFS('Accounting Data'!$C$2:$C$100000,'Accounting Data'!$H$2:$H$100000,"8??",'Accounting Data'!$I$2:$I$100000,"21??",'Accounting Data'!$J$2:$J$100000,"67??")+SUMIFS('Accounting Data'!$C$2:$C$100000,'Accounting Data'!$H$2:$H$100000,"9??",'Accounting Data'!$I$2:$I$100000,"21??",'Accounting Data'!$J$2:$J$100000,"67??") -> 0 | BR12: =SUMIFS('Accounting Data'!$C$2:$C$100000,'Accounting Data'!$E$2:$E$100000,"575",'Accounting Data'!$H$2:$H$100000,"7??",'Accounting Data'!$I$2:$I$100000,"21??",'Accounting Data'!$J$2:$J$100000,"67??")+SUMIFS('Accounting Data'!$C$2:$C$100000,'Accounting Data'!$E$2:$E$100000,"575",'Accounting Data'!$H$2:$H$100000,"8??",'Accounting Data'!$I$2:$I$100000,"21??",'Accounting Data'!$J$2:$J$100000,"67??")+SUMIFS('Accounting Data'!$C$2:$C$100000,'Accounting Data'!$E$2:$E$100000,"575",'Accounting Data'!$H$2:$H$100000,"9??",'Accounting Data'!$I$2:$I$100000,"21??",'Accounting Data'!$J$2:$J$100000,"67??") -> 0 | BS12: =SUMIFS('Accounting Data'!$C$2:$C$100000,'Accounting Data'!$E$2:$E$100000,"8??",'Accounting Data'!$H$2:$H$100000,"7??",'Accounting Data'!$I$2:$I$100000,"21??",'Accounting Data'!$J$2:$J$100000,"67??")+SUMIFS('Accounting Data'!$C$2:$C$100000,'Accounting Data'!$E$2:$E$100000,"8??",'Accounting Data'!$H$2:$H$100000,"8??",'Accounting Data'!$I$2:$I$100000,"21??",'Accounting Data'!$J$2:$J$100000,"67??")+SUMIFS('Accounting Data'!$C$2:$C$100000,'Accounting Data'!$E$2:$E$100000,"8??",'Accounting Data'!$H$2:$H$100000,"9??",'Accounting Data'!$I$2:$I$100000,"21??",'Accounting Data'!$J$2:$J$100000,"67??") -> 0 | BT12: =SUMIFS('Accounting Data'!$C$2:$C$100000,'Accounting Data'!$E$2:$E$100000,"9??",'Accounting Data'!$H$2:$H$100000,"7??",'Accounting Data'!$I$2:$I$100000,"21??",'Accounting Data'!$J$2:$J$100000,"67??")+SUMIFS('Accounting Data'!$C$2:$C$100000,'Accounting Data'!$E$2:$E$100000,"9??",'Accounting Data'!$H$2:$H$100000,"8??",'Accounting Data'!$I$2:$I$100000,"21??",'Accounting Data'!$J$2:$J$100000,"67??")+SUMIFS('Accounting Data'!$C$2:$C$100000,'Accounting Data'!$E$2:$E$100000,"9??",'Accounting Data'!$H$2:$H$100000,"9??",'Accounting Data'!$I$2:$I$100000,"21??",'Accounting Data'!$J$2:$J$100000,"67??") -> 0 | BV12: 2100 | BW12: =SUMIFS('Accounting Data'!C2:C100000,'Accounting Data'!I2:I100000,"21??",'Accounting Data'!J2:J100000,"681?") -> 18160 | BX12: =SUMIFS('Accounting Data'!$C$2:$C$100000,'Accounting Data'!$E$2:$E$100000,"575",'Accounting Data'!$I$2:$I$100000,"21??",'Accounting Data'!$J$2:$J$100000,"681?")+SUMIFS('Accounting Data'!$C$2:$C$100000,'Accounting Data'!$E$2:$E$100000,"8??",'Accounting Data'!$I$2:$I$100000,"21??",'Accounting Data'!$J$2:$J$100000,"681?")+SUMIFS('Accounting Data'!$C$2:$C$100000,'Accounting Data'!$E$2:$E$100000,"9??",'Accounting Data'!$I$2:$I$100000,"21??",'Accounting Data'!$J$2:$J$100000,"681?") -> 195 | BY12: =SUMIFS('Accounting Data'!$C$2:$C$100000,'Accounting Data'!$H$2:$H$100000,"7??",'Accounting Data'!$I$2:$I$100000,"21??",'Accounting Data'!$J$2:$J$100000,"681?")+SUMIFS('Accounting Data'!$C$2:$C$100000,'Accounting Data'!$H$2:$H$100000,"8??",'Accounting Data'!$I$2:$I$100000,"21??",'Accounting Data'!$J$2:$J$100000,"681?")+SUMIFS('Accounting Data'!$C$2:$C$100000,'Accounting Data'!$H$2:$H$100000,"9??",'Accounting Data'!$I$2:$I$100000,"21??",'Accounting Data'!$J$2:$J$100000,"681?") -> 0 | BZ12: =SUMIFS('Accounting Data'!$C$2:$C$100000,'Accounting Data'!$E$2:$E$100000,"575",'Accounting Data'!$H$2:$H$100000,"7??",'Accounting Data'!$I$2:$I$100000,"21??",'Accounting Data'!$J$2:$J$100000,"681?")+SUMIFS('Accounting Data'!$C$2:$C$100000,'Accounting Data'!$E$2:$E$100000,"575",'Accounting Data'!$H$2:$H$100000,"8??",'Accounting Data'!$I$2:$I$100000,"21??",'Accounting Data'!$J$2:$J$100000,"681?")+SUMIFS('Accounting Data'!$C$2:$C$100000,'Accounting Data'!$E$2:$E$100000,"575",'Accounting Data'!$H$2:$H$100000,"9??",'Accounting Data'!$I$2:$I$100000,"21??",'Accounting Data'!$J$2:$J$100000,"681?") -> 0 | CA12: =SUMIFS('Accounting Data'!$C$2:$C$100000,'Accounting Data'!$E$2:$E$100000,"8??",'Accounting Data'!$H$2:$H$100000,"7??",'Accounting Data'!$I$2:$I$100000,"21??",'Accounting Data'!$J$2:$J$100000,"681?")+SUMIFS('Accounting Data'!$C$2:$C$100000,'Accounting Data'!$E$2:$E$100000,"8??",'Accounting Data'!$H$2:$H$100000,"8??",'Accounting Data'!$I$2:$I$100000,"21??",'Accounting Data'!$J$2:$J$100000,"681?")+SUMIFS('Accounting Data'!$C$2:$C$100000,'Accounting Data'!$E$2:$E$100000,"8??",'Accounting Data'!$H$2:$H$100000,"9??",'Accounting Data'!$I$2:$I$100000,"21??",'Accounting Data'!$J$2:$J$100000,"681?") -> 0 | CB12: =SUMIFS('Accounting Data'!$C$2:$C$100000,'Accounting Data'!$E$2:$E$100000,"9??",'Accounting Data'!$H$2:$H$100000,"7??",'Accounting Data'!$I$2:$I$100000,"21??",'Accounting Data'!$J$2:$J$100000,"681?")+SUMIFS('Accounting Data'!$C$2:$C$100000,'Accounting Data'!$E$2:$E$100000,"9??",'Accounting Data'!$H$2:$H$100000,"8??",'Accounting Data'!$I$2:$I$100000,"21??",'Accounting Data'!$J$2:$J$100000,"681?")+SUMIFS('Accounting Data'!$C$2:$C$100000,'Accounting Data'!$E$2:$E$100000,"9??",'Accounting Data'!$H$2:$H$100000,"9??",'Accounting Data'!$I$2:$I$100000,"21??",'Accounting Data'!$J$2:$J$100000,"681?") -> 0 | CD12: Function | CE12: All funds | CF12: Funds 575,800-999 | CG12: Programs 700-900 | CH12: Programs 700-900 Funds 575 | CI12: Programs 700-900 Funds 800-899 | CJ12: Programs 700-900 Funds 900-99 | CT12: 2100 | CU12: =SUM(SUMIFS('Accounting Data'!C2:C100000,'Accounting Data'!I2:I100000,"21??",'Accounting Data'!J2:J100000,{"689?","6885"})) -> 77502 | CV12: =SUM(SUMIFS('Accounting Data'!$C$2:$C$100000,'Accounting Data'!$E$2:$E$100000,"575",'Accounting Data'!$I$2:$I$100000,"21??",'Accounting Data'!$J$2:$J$100000,{"689?","6885"}))+SUM(SUMIFS('Accounting Data'!$C$2:$C$100000,'Accounting Data'!$E$2:$E$100000,"8??",'Accounting Data'!$I$2:$I$100000,"21??",'Accounting Data'!$J$2:$J$100000,{"689?","6885"}))+SUM(SUMIFS('Accounting Data'!$C$2:$C$100000,'Accounting Data'!$E$2:$E$100000,"9??",'Accounting Data'!$I$2:$I$100000,"21??",'Accounting Data'!$J$2:$J$100000,{"689?","6885"})) -> 0 | CW12: =SUM(SUMIFS('Accounting Data'!$C$2:$C$100000,'Accounting Data'!$H$2:$H$100000,"7??",'Accounting Data'!$I$2:$I$100000,"21??",'Accounting Data'!$J$2:$J$100000,{"689?","6885"}))+SUM(SUMIFS('Accounting Data'!$C$2:$C$100000,'Accounting Data'!$H$2:$H$100000,"8??",'Accounting Data'!$I$2:$I$100000,"21??",'Accounting Data'!$J$2:$J$100000,{"689?","6885"}))+SUM(SUMIFS('Accounting Data'!$C$2:$C$100000,'Accounting Data'!$H$2:$H$100000,"9??",'Accounting Data'!$I$2:$I$100000,"21??",'Accounting Data'!$J$2:$J$100000,{"689?","6885"})) -> 0 | CX12: =SUM(SUMIFS('Accounting Data'!$C$2:$C$100000,'Accounting Data'!$E$2:$E$100000,"575",'Accounting Data'!$H$2:$H$100000,"7??",'Accounting Data'!$I$2:$I$100000,"21??",'Accounting Data'!$J$2:$J$100000,{"689?","6885"}))+SUM(SUMIFS('Accounting Data'!$C$2:$C$100000,'Accounting Data'!$E$2:$E$100000,"575",'Accounting Data'!$H$2:$H$100000,"8??",'Accounting Data'!$I$2:$I$100000,"21??",'Accounting Data'!$J$2:$J$100000,{"689?","6885"}))+SUM(SUMIFS('Accounting Data'!$C$2:$C$100000,'Accounting Data'!$E$2:$E$100000,"575",'Accounting Data'!$H$2:$H$100000,"9??",'Accounting Data'!$I$2:$I$100000,"21??",'Accounting Data'!$J$2:$J$100000,{"689?","6885"})) -> 0 | CY12: =SUM(SUMIFS('Accounting Data'!$C$2:$C$100000,'Accounting Data'!$E$2:$E$100000,"8??",'Accounting Data'!$H$2:$H$100000,"7??",'Accounting Data'!$I$2:$I$100000,"21??",'Accounting Data'!$J$2:$J$100000,{"689?","6885"}))+SUM(SUMIFS('Accounting Data'!$C$2:$C$100000,'Accounting Data'!$E$2:$E$100000,"8??",'Accounting Data'!$H$2:$H$100000,"8??",'Accounting Data'!$I$2:$I$100000,"21??",'Accounting Data'!$J$2:$J$100000,{"689?","6885"}))+SUM(SUMIFS('Accounting Data'!$C$2:$C$100000,'Accounting Data'!$E$2:$E$100000,"8??",'Accounting Data'!$H$2:$H$100000,"9??",'Accounting Data'!$I$2:$I$100000,"21??",'Accounting Data'!$J$2:$J$100000,{"689?","6885"})) -> 0 | CZ12: =SUM(SUMIFS('Accounting Data'!$C$2:$C$100000,'Accounting Data'!$E$2:$E$100000,"9??",'Accounting Data'!$H$2:$H$100000,"7??",'Accounting Data'!$I$2:$I$100000,"21??",'Accounting Data'!$J$2:$J$100000,{"689?","6885"}))+SUM(SUMIFS('Accounting Data'!$C$2:$C$100000,'Accounting Data'!$E$2:$E$100000,"9??",'Accounting Data'!$H$2:$H$100000,"8??",'Accounting Data'!$I$2:$I$100000,"21??",'Accounting Data'!$J$2:$J$100000,{"689?","6885"}))+SUM(SUMIFS('Accounting Data'!$C$2:$C$100000,'Accounting Data'!$E$2:$E$100000,"9??",'Accounting Data'!$H$2:$H$100000,"9??",'Accounting Data'!$I$2:$I$100000,"21??",'Accounting Data'!$J$2:$J$100000,{"689?","6885"})) -> 0 | DB12: 2100 | DC12: =SUMIFS('Accounting Data'!$C$2:$C$100000,'Accounting Data'!$H$2:$H$100000,"7??",'Accounting Data'!$I$2:$I$100000,"21??",'Accounting Data'!$J$2:$J$100000,"6???")+SUMIFS('Accounting Data'!$C$2:$C$100000,'Accounting Data'!$H$2:$H$100000,"8??",'Accounting Data'!$I$2:$I$100000,"21??",'Accounting Data'!$J$2:$J$100000,"6???")+SUMIFS('Accounting Data'!$C$2:$C$100000,'Accounting Data'!$H$2:$H$100000,"9??",'Accounting Data'!$I$2:$I$100000,"21??",'Accounting Data'!$J$2:$J$100000,"6???") -> 0 | DD12: =SUMIFS('Accounting Data'!$C$2:$C$100000,'Accounting Data'!$H$2:$H$100000,"7??",'Accounting Data'!$I$2:$I$100000,"21??",'Accounting Data'!$J$2:$J$100000,"69??")+SUMIFS('Accounting Data'!$C$2:$C$100000,'Accounting Data'!$H$2:$H$100000,"8??",'Accounting Data'!$I$2:$I$100000,"21??",'Accounting Data'!$J$2:$J$100000,"69??")+SUMIFS('Accounting Data'!$C$2:$C$100000,'Accounting Data'!$H$2:$H$100000,"9??",'Accounting Data'!$I$2:$I$100000,"21??",'Accounting Data'!$J$2:$J$100000,"69??") -> 0 | DE12: =SUMIFS('Accounting Data'!$C$2:$C$100000,'Accounting Data'!$E$2:$E$100000,"575",'Accounting Data'!$H$2:$H$100000,"7??",'Accounting Data'!$I$2:$I$100000,"21??",'Accounting Data'!$J$2:$J$100000,"6???")+SUMIFS('Accounting Data'!$C$2:$C$100000,'Accounting Data'!$E$2:$E$100000,"575",'Accounting Data'!$H$2:$H$100000,"8??",'Accounting Data'!$I$2:$I$100000,"21??",'Accounting Data'!$J$2:$J$100000,"6???")+SUMIFS('Accounting Data'!$C$2:$C$100000,'Accounting Data'!$E$2:$E$100000,"575",'Accounting Data'!$H$2:$H$100000,"9??",'Accounting Data'!$I$2:$I$100000,"21??",'Accounting Data'!$J$2:$J$100000,"6???") -> 0 | DF12: =SUMIFS('Accounting Data'!$C$2:$C$100000,'Accounting Data'!$E$2:$E$100000,"8??",'Accounting Data'!$H$2:$H$100000,"7??",'Accounting Data'!$I$2:$I$100000,"21??",'Accounting Data'!$J$2:$J$100000,"6???")+SUMIFS('Accounting Data'!$C$2:$C$100000,'Accounting Data'!$E$2:$E$100000,"8??",'Accounting Data'!$H$2:$H$100000,"8??",'Accounting Data'!$I$2:$I$100000,"21??",'Accounting Data'!$J$2:$J$100000,"6???")+SUMIFS('Accounting Data'!$C$2:$C$100000,'Accounting Data'!$E$2:$E$100000,"8??",'Accounting Data'!$H$2:$H$100000,"9??",'Accounting Data'!$I$2:$I$100000,"21??",'Accounting Data'!$J$2:$J$100000,"6???")+SUMIFS('Accounting Data'!$C$2:$C$100000,'Accounting Data'!$E$2:$E$100000,"9??",'Accounting Data'!$H$2:$H$100000,"7??",'Accounting Data'!$I$2:$I$100000,"21??",'Accounting Data'!$J$2:$J$100000,"6???")+SUMIFS('Accounting Data'!$C$2:$C$100000,'Accounting Data'!$E$2:$E$100000,"9??",'Accounting Data'!$H$2:$H$100000,"8??",'Accounting Data'!$I$2:$I$100000,"21??",'Accounting Data'!$J$2:$J$100000,"6???")+SUMIFS('Accounting Data'!$C$2:$C$100000,'Accounting Data'!$E$2:$E$100000,"9??",'Accounting Data'!$H$2:$H$100000,"9??",'Accounting Data'!$I$2:$I$100000,"21??",'Accounting Data'!$J$2:$J$100000,"6???") -> 0 | DG12: =SUMIFS('Accounting Data'!$C$2:$C$100000,'Accounting Data'!$E$2:$E$100000,"575",'Accounting Data'!$H$2:$H$100000,"7??",'Accounting Data'!$I$2:$I$100000,"21??",'Accounting Data'!$J$2:$J$100000,"69??")+SUMIFS('Accounting Data'!$C$2:$C$100000,'Accounting Data'!$E$2:$E$100000,"575",'Accounting Data'!$H$2:$H$100000,"8??",'Accounting Data'!$I$2:$I$100000,"21??",'Accounting Data'!$J$2:$J$100000,"69??")+SUMIFS('Accounting Data'!$C$2:$C$100000,'Accounting Data'!$E$2:$E$100000,"575",'Accounting Data'!$H$2:$H$100000,"9??",'Accounting Data'!$I$2:$I$100000,"21??",'Accounting Data'!$J$2:$J$100000,"69??") -> 0 | DH12: =SUMIFS('Accounting Data'!$C$2:$C$100000,'Accounting Data'!$E$2:$E$100000,"8??",'Accounting Data'!$H$2:$H$100000,"7??",'Accounting Data'!$I$2:$I$100000,"21??",'Accounting Data'!$J$2:$J$100000,"69??")+SUMIFS('Accounting Data'!$C$2:$C$100000,'Accounting Data'!$E$2:$E$100000,"8??",'Accounting Data'!$H$2:$H$100000,"8??",'Accounting Data'!$I$2:$I$100000,"21??",'Accounting Data'!$J$2:$J$100000,"69??")+SUMIFS('Accounting Data'!$C$2:$C$100000,'Accounting Data'!$E$2:$E$100000,"8??",'Accounting Data'!$H$2:$H$100000,"9??",'Accounting Data'!$I$2:$I$100000,"21??",'Accounting Data'!$J$2:$J$100000,"69??")+SUMIFS('Accounting Data'!$C$2:$C$100000,'Accounting Data'!$E$2:$E$100000,"9??",'Accounting Data'!$H$2:$H$100000,"7??",'Accounting Data'!$I$2:$I$100000,"21??",'Accounting Data'!$J$2:$J$100000,"69??")+SUMIFS('Accounting Data'!$C$2:$C$100000,'Accounting Data'!$E$2:$E$100000,"9??",'Accounting Data'!$H$2:$H$100000,"8??",'Accounting Data'!$I$2:$I$100000,"21??",'Accounting Data'!$J$2:$J$100000,"69??")+SUMIFS('Accounting Data'!$C$2:$C$100000,'Accounting Data'!$E$2:$E$100000,"9??",'Accounting Data'!$H$2:$H$100000,"9??",'Accounting Data'!$I$2:$I$100000,"21??",'Accounting Data'!$J$2:$J$100000,"69??") -> 0
